Workbook

Sheet INTRO
E3: Web: | F3: www.and2.pl
E4: FB: | F4: And2
E5: Instagram: | F5: and2_szkolenia_excel
E6: LinkedIn: | F6: And2 Marzena Andrykowska
E7: Mail: | F7: office@and2.pl
D10: Udostępnianie i nauka
D11: Nie krępuj się podzielić tym plikiem z każdym, kto może skorzystać!

Sheet START

Sheet PODSTAWY
B1: Instrukcja do testu Excel - Poziom Podstawowy
B3: Test składa się z 10 arkuszy oznaczonych kolorem granatowym i obejmuje zagadnienia, które omawiane są na szkoleniu z Excela podstawowego.
B5: Oto kilka ważnych wskazówek:
B6: Czas | C6: Staraj się wykonywać zadania sprawnie maksymalnie w przeciągu 15-20 min.
C7: Jeśli potrzebujesz więcej czasu na rozwiązanie, oznaczać to może, że jeszcze niektóre czynności wymagają przećwiczenia, aby stały się bardziej intuicyjne.
B9: Samodzielność | C9: Rozwiązuj zadania samodzielnie, bez korzystania z pomocy kolegów, koleżanek lub innych zasobów wiedzy, w tym stron internetowych.
B11: Intuicja | C11: Wykonuj zadania intuicyjnie, tak jak na co dzień korzystasz z programu Excel.
C12: Warto, abyś wykonywał zadania w sposób mechaniczny, aby ocenić swoje faktyczne umiejętności z zakresu podstawowego Excela.
B14: Samodzielna ocena | C14: Po zakończeniu testu, spróbuj samodzielnie ocenić, które zadania wykonujesz poprawnie.
C15: Ewentualnie, możesz skorzystać z pliku "Rozwiązany test poziomujący z Excela" dla samokontroli. Natomiast pamiętaj, że do poprawnego wyniku
C16: może prowadzić kilka dróg, więc jeśli uzyskasz te same wyniki, ale innymi metodami to nie oznacza, że rozwiązałeś zadanie źle.
B18: Zakończenie | C18: Gdy już rozwiążesz swój test, przejdź do arkusza "PODSUMOWANIE PODSTAWY"
B20: Gotowy? Świetnie! Rozpocznij test!
B22: Pamiętaj, że praktyka czyni mistrza, więc niezależnie od wyników, każde podejście do nauki Excela przyniesie Ci cenne doświadczenie.

Sheet 1
B13: Źródło listy w tym samym arkuszu
B15: Województwo | C15: Liczba mieszkańców | E15: Lista województw
B29: Źródło listy w innym arkuszu
B31: Województwo | C31: Liczba mieszkańców

Sheet Test
B13: Źródło listy w tym samym arkuszu
B15: Województwo | C15: Liczba mieszkańców | E15: Lista województw
B29: Źródło listy w innym arkuszu
B31: Województwo | C31: Liczba mieszkańców

Sheet Ukryty (hidden)

Sheet 2
J1: Lp | K1: Imię | L1: Nazwisko | M1: Dział | N1: Pensja
J2: 1 | K2: Mieszko | L2: Jaworski | M2: Sprzedaż | N2: 4773
A3: data | B3: nr FV | C3: miasto | D3: cena | E3: towar | F3: ilość sztuk | G3: przychód | J3: 2 | K3: Allan | L3: Kołodziej | M3: Sprzedaż | N3: 8105
A4: 2023-07-17 | B4: 2021/1 | C4: Koszalin | D4: 5000 | E4: kanapa | F4: 1 | G4: =D4*F4 -> 5000 | J4: 3 | K4: Czesław | L4: Jaworski | M4: Inż.-Techn. | N4: 5450
A5: 2023-07-18 | B5: 2021/2 | C5: Bytów | D5: 500 | E5: fotel | F5: 2 | G5: 1000 | J5: 4 | K5: Alexander | L5: Kalinowski | M5: Admin. | N5: 8433
A6: 2023-07-19 | B6: 2021/3 | C6: Kraków | D6: 495 | E6: biurko | F6: 1 | G6: 495 | J6: 5 | K6: Damian | L6: Mazur | M6: Sprzedaż | N6: 4372
A7: 2023-07-20 | B7: 2021/4 | C7: Kraków | D7: 459 | E7: krzesło | F7: 4 | G7: 1836 | J7: 6 | K7: Ksawery | L7: Ostrowski | M7: Sprzedaż | N7: 7128
A8: 2023-07-21 | B8: 2021/5 | C8: Poznań | D8: 4500 | E8: kanapa | F8: 1 | G8: 4500 | J8: 7 | K8: Natan | L8: Mróz | M8: Inż.-Techn. | N8: 3599
A9: 2023-07-22 | B9: 2021/6 | C9: Warszawa | D9: 1200 | E9: stół | F9: 1 | G9: 1200 | J9: 8 | K9: Ksawery | L9: Szymański | M9: Inż.-Techn. | N9: 7647
A10: 2023-07-23 | B10: 2021/7 | C10: Bydgoszcz | D10: 100 | E10: krzesło | F10: 6 | G10: 600 | J10: 9 | K10: Oskar | L10: Sokołowski | M10: Admin. | N10: 7140
A11: 2023-07-24 | B11: 2021/8 | C11: Bydgoszcz | D11: 680 | E11: biurko | F11: 2 | G11: 1360 | J11: 10 | K11: Fabian | L11: Szulc | M11: Inż.-Techn. | N11: 3879
A12: 2023-07-25 | B12: 2021/9 | C12: Zamość | D12: 580 | E12: fotel | F12: 2 | G12: 1160 | J12: 11 | K12: Ewelina | L12: Sadowska | M12: Admin. | N12: 7390
A13: 2023-07-26 | B13: 2021/10 | C13: Warszawa | D13: 2500 | E13: meblościanka | F13: 1 | G13: 2500 | J13: 12 | K13: Zuzanna | L13: Błaszczyk | M13: Sprzedaż | N13: 3683
A14: 2023-07-17 | B14: 2021/10 | C14: Koszalin | D14: 5620 | E14: kanapa | F14: 1 | G14: =D14*F14 -> 5620 | J14: 13 | K14: Franciszka | L14: Cieślak | M14: Inż.-Techn. | N14: 7393
A15: 2023-07-18 | B15: 2021/11 | C15: Bytów | D15: 800 | E15: fotel | F15: 2 | G15: 1600 | J15: 14 | K15: Ilona | L15: Krawczyk | M15: Inż.-Techn. | N15: 8059
A16: 2023-07-19 | B16: 2021/12 | C16: Kraków | D16: 1100 | E16: biurko | F16: 1 | G16: 1100 | J16: 15 | K16: Teresa | L16: Czarnecka | M16: Sprzedaż | N16: 6087
A17: 2023-07-20 | B17: 2021/13 | C17: Kraków | D17: 278 | E17: krzesło | F17: 4 | G17: 1112 | J17: 16 | K17: Paula | L17: Włodarczyk | M17: Zarządzania | N17: 6148
A18: 2023-07-21 | B18: 2021/14 | C18: Poznań | D18: 8000 | E18: kanapa | F18: 1 | G18: 8000 | J18: 17 | K18: Lila | L18: Zielińska | M18: Inż.-Techn. | N18: 8445
A19: 2023-07-22 | B19: 2021/15 | C19: Warszawa | D19: 2150 | E19: stół | F19: 1 | G19: 2150 | J19: 18 | K19: Danuta | L19: Ostrowska | M19: Inż.-Techn. | N19: 3949
A20: 2023-07-23 | B20: 2021/16 | C20: Bydgoszcz | D20: 272 | E20: krzesło | F20: 6 | G20: 1632 | J20: 19 | K20: Regina | L20: Kowalczyk | M20: Inż.-Techn. | N20: 3642
A21: 2023-07-24 | B21: 2021/17 | C21: Bydgoszcz | D21: 698 | E21: biurko | F21: 2 | G21: 1396 | J21: 20 | K21: Cecylia | L21: Sokołowska | M21: Księgowość | N21: 4751
A22: 2023-07-25 | B22: 2021/18 | C22: Zamość | D22: 562 | E22: fotel | F22: 2 | G22: 1124 | J22: 21 | K22: Ada | L22: Błaszczyk | M22: Sprzedaż | N22: 3227
A23: 2023-07-26 | B23: 2021/19 | C23: Warszawa | D23: 6852 | E23: kanapa | F23: 1 | G23: 6852 | J23: 22 | K23: Alice | L23: Bąk | M23: Sprzedaż | N23: 6678
A24: 2023-07-17 | B24: 2021/20 | C24: Koszalin | D24: 1500 | E24: fotel | F24: 1 | G24: 1500 | J24: 23 | K24: Maja | L24: Adamska | M24: Księgowość | N24: 6808
A25: 2023-07-18 | B25: 2021/21 | C25: Bytów | D25: 700 | E25: biurko | F25: 2 | G25: 1400 | J25: 24 | K25: Andżelika | L25: Wojciechowska | M25: HR | N25: 3749
A26: 2023-07-19 | B26: 2021/22 | C26: Kraków | D26: 286 | E26: krzesło | F26: 1 | G26: 286 | J26: 25 | K26: Stanisława | L26: Baran | M26: Logistyka | N26: 4639
A27: 2023-07-20 | B27: 2021/23 | C27: Kraków | D27: 5620 | E27: kanapa | F27: 4 | G27: 22480 | J27: 26 | K27: Asia | L27: Sobczak | M27: Zakupy | N27: 4213
A28: 2023-07-21 | B28: 2021/24 | C28: Poznań | D28: 1100 | E28: biurko | F28: 1 | G28: 1100
A29: 2023-07-22 | B29: 2021/25 | C29: Warszawa | D29: 856 | E29: fotel | F29: 1 | G29: 856
A30: 2023-07-23 | B30: 2021/26 | C30: Bydgoszcz | D30: 9685 | E30: kanapa | F30: 6 | G30: 58110
A31: 2023-07-24 | B31: 2021/27 | C31: Bydgoszcz | D31: 2300 | E31: biurko | F31: 2 | G31: 4600
A32: 2023-07-25 | B32: 2021/28 | C32: Zamość | D32: 800 | E32: fotel | F32: 2 | G32: 1600
A33: 2023-07-26 | B33: 2021/29 | C33: Warszawa | D33: 9654 | E33: kanapa | F33: 1 | G33: 9654

Sheet 3
A16: Lp. | B16: Nazwisko | C16: Imię | D16: Rodzaj umowy | E16: KWOTA PLN | F16: KWOTA EUR | G16: KWOTA USD
A17: 1 | B17: Mentel | C17: Ernestyna | D17: zlecenie | E17: 7395 | F17: 7395 | G17: 7395
A18: 2 | B18: Bis | C18: Sybilla | D18: o pracę | E18: 3089 | F18: 3089 | G18: 3089
A19: 3 | B19: Siemiński | C19: Fryderyk | D19: B2B | E19: 8494 | F19: 8494 | G19: 8494
A20: 4 | B20: Konarski | C20: Marian | D20: o pracę | E20: 3777 | F20: 3777 | G20: 3777
A21: 5 | B21: Rudowski | C21: Apolonia | D21: o pracę | E21: 4004 | F21: 4004 | G21: 4004
A22: 6 | B22: Sławek | C22: Rozalia | D22: o pracę | E22: 3901 | F22: 3901 | G22: 3901
A23: 7 | B23: Filipczak | C23: Inka | D23: zlecenie | E23: 8593 | F23: 8593 | G23: 8593
A24: 8 | B24: Formela | C24: Apolinary | D24: B2B | E24: 6597 | F24: 6597 | G24: 6597
A25: 9 | B25: Bartosik | C25: Maryn | D25: o dzieło | E25: 6292 | F25: 6292 | G25: 6292
A26: 10 | B26: Wilczewski | C26: Makary | D26: o pracę | E26: 7342 | F26: 7342 | G26: 7342
A27: 11 | B27: Rucki | C27: Karol | D27: o pracę | E27: 4738 | F27: 4738 | G27: 4738
A28: 12 | B28: Dąbek | C28: Anna | D28: o pracę | E28: 5198 | F28: 5198 | G28: 5198
A29: 13 | B29: Wardak | C29: Rudolf | D29: o pracę | E29: 3792 | F29: 3792 | G29: 3792
A30: 14 | B30: Wąsik | C30: Aniela | D30: o pracę | E30: 8659 | F30: 8659 | G30: 8659
A31: 15 | B31: Mruk | C31: Zenobiusz | D31: o pracę | E31: 7925 | F31: 7925 | G31: 7925
A32: 16 | B32: Mania | C32: Mirella | D32: o pracę | E32: 5100 | F32: 5100 | G32: 5100
A33: 17 | B33: Przybyszewski | C33: Wiktoryna | D33: o pracę | E33: 8046 | F33: 8046 | G33: 8046
A34: 18 | B34: Szreder | C34: Ludowit | D34: o pracę | E34: 4944 | F34: 4944 | G34: 4944
A35: 19 | B35: Nadolski | C35: Dzwonimierz | D35: o pracę | E35: 3932 | F35: 3932 | G35: 3932
A36: 20 | B36: Joachimiak | C36: Ewaryst | D36: o pracę | E36: 5488 | F36: 5488 | G36: 5488
A37: 21 | B37: Mól | C37: Urszula | D37: o pracę | E37: 2623 | F37: 2623 | G37: 2623
A38: 22 | B38: Skłodowski | C38: Larisa | D38: zlecenie | E38: 6146 | F38: 6146 | G38: 6146
A39: 23 | B39: Łabędzki | C39: Felicyta | D39: ZLECENIA | E39: 4061 | F39: 4061 | G39: 4061
A40: 24 | B40: Szynal | C40: Jaromiła | D40: ZLECENIA | E40: 6400 | F40: 6400 | G40: 6400
A41: 25 | B41: Chmurzyński | C41: Augusta | D41: ZLECENIA | E41: 3833 | F41: 3833 | G41: 3833
A42: 26 | B42: Bogucki | C42: Aleksander | D42: ZLECENIA | E42: 8152 | F42: 8152 | G42: 8152
A43: 27 | B43: Pindel | C43: Ginter | D43: ZLECENIA | E43: 4838 | F43: 4838 | G43: 4838
A44: 28 | B44: Cyran | C44: Delia | D44: ZLECENIA | E44: 3313 | F44: 3313 | G44: 3313
A45: 29 | B45: Gmyrek | C45: Narcyz | D45: ZLECENIA | E45: 7312 | F45: 7312 | G45: 7312
A46: 30 | B46: Kukiełka | C46: Larysa | D46: ZLECENIA | E46: 8713 | F46: 8713 | G46: 8713
A47: 31 | B47: Strzeszewski | C47: Tomisław | D47: ZLECENIA | E47: 4060 | F47: 4060 | G47: 4060
A48: 32 | B48: Olkiewicz | C48: Beatrycze | D48: ZLECENIA | E48: 3724 | F48: 3724 | G48: 3724
A49: 33 | B49: Fiedorowicz | C49: Bogumir | D49: ZLECENIA | E49: 5605 | F49: 5605 | G49: 5605
A50: 34 | B50: Maćkowski | C50: Franciszka | D50: ZLECENIA | E50: 5065 | F50: 5065 | G50: 5065
A51: 35 | B51: Mąka | C51: Efraim | D51: ZLECENIA | E51: 5231 | F51: 5231 | G51: 5231
A52: 36 | B52: Sitarz | C52: Romuald | D52: o dzieło | E52: 6062 | F52: 6062 | G52: 6062
A53: 37 | B53: Noworyta | C53: Antonin | D53: B2B | E53: 5825 | F53: 5825 | G53: 5825
A54: 38 | B54: Kubala | C54: Ksawery | D54: o pracę | E54: 2733 | F54: 2733 | G54: 2733
A55: 39 | B55: Mirecki | C55: Bożydar | D55: o pracę | E55: 7840 | F55: 7840 | G55: 7840
A56: 40 | B56: Kiedrowski | C56: Błażena | D56: o pracę | E56: 8600 | F56: 8600 | G56: 8600
A57: 41 | B57: Panasiuk | C57: Olek | D57: o pracę | E57: 4280 | F57: 4280 | G57: 4280
A58: 42 | B58: Kochański | C58: Lilianna | D58: o pracę | E58: 4835 | F58: 4835 | G58: 4835
A59: 43 | B59: Cieślicki | C59: Edeltruda | D59: o pracę | E59: 2524 | F59: 2524 | G59: 2524
A60: 44 | B60: Jurgielewicz | C60: Stefania | D60: o pracę | E60: 8939 | F60: 8939 | G60: 8939
A61: 45 | B61: Bryś | C61: Narcyza | D61: o pracę | E61: 7245 | F61: 7245 | G61: 7245
A62: 46 | B62: Kmiecik | C62: Filipa | D62: o pracę | E62: 3314 | F62: 3314 | G62: 3314
A63: 47 | B63: Fudala | C63: Albina | D63: o pracę | E63: 3541 | F63: 3541 | G63: 3541
A64: 48 | B64: Nowaczyk | C64: Ludwina | D64: o pracę | E64: 4008 | F64: 4008 | G64: 4008
A65: 49 | B65: Wosik | C65: Kinga | D65: o pracę | E65: 2591 | F65: 2591 | G65: 2591
A66: 50 | B66: Kubiak | C66: Jaromiła | D66: o pracę | E66: 7809 | F66: 7809 | G66: 7809
A67: 51 | B67: Burek | C67: Joachim | D67: B2B | E67: 6489 | F67: 6489 | G67: 6489
A68: 52 | B68: Gradowski | C68: Zachariasz | D68: o pracę | E68: 6189 | F68: 6189 | G68: 6189
A69: 53 | B69: Dyla | C69: Godfryd | D69: o pracę | E69: 2671 | F69: 2671 | G69: 2671
A70: 54 | B70: Wojtas | C70: Łucja | D70: o pracę | E70: 5700 | F70: 5700 | G70: 5700
A71: 55 | B71: Ossowski | C71: Karina | D71: zlecenie | E71: 4159 | F71: 4159 | G71: 4159
A72: 56 | B72: Ryczek | C72: Olek | D72: o pracę | E72: 8595 | F72: 8595 | G72: 8595
A73: 57 | B73: Czerwik | C73: Bazyli | D73: o pracę | E73: 6330 | F73: 6330 | G73: 6330
A74: 58 | B74: Wojciechowski | C74: Lajla | D74: o pracę | E74: 8286 | F74: 8286 | G74: 8286
A75: 59 | B75: Rasiński | C75: Łukasz | D75: o pracę | E75: 6112 | F75: 6112 | G75: 6112
A76: 60 | B76: Kruczek | C76: Honorata | D76: o pracę | E76: 4206 | F76: 4206 | G76: 4206
A77: 61 | B77: Kryger | C77: Lila | D77: o pracę | E77: 5213 | F77: 5213 | G77: 5213
A78: 62 | B78: Płóciennik | C78: Alfred | D78: o pracę | E78: 3845 | F78: 3845 | G78: 3845
A79: 63 | B79: Rosiak | C79: Berta | D79: o pracę | E79: 4342 | F79: 4342 | G79: 4342
A80: 64 | B80: Janaszek | C80: Adnan | D80: o pracę | E80: 5933 | F80: 5933 | G80: 5933
A81: 65 | B81: Brzoski | C81: Lew | D81: o pracę | E81: 2749 | F81: 2749 | G81: 2749
A82: 66 | B82: Szala | C82: Dżamila | D82: o pracę | E82: 8570 | F82: 8570 | G82: 8570
A83: 67 | B83: Nogaj | C83: Radogost | D83: o pracę | E83: 7938 | F83: 7938 | G83: 7938
A84: 68 | B84: Cwalina | C84: Rozalia | D84: o pracę | E84: 8924 | F84: 8924 | G84: 8924
A85: 69 | B85: Depa | C85: Augustyna | D85: o pracę | E85: 4084 | F85: 4084 | G85: 4084
A86: 70 | B86: Bondyra | C86: Feliks | D86: o pracę | E86: 3586 | F86: 3586 | G86: 3586
A87: 71 | B87: Gorzkowski | C87: Dorota | D87: o pracę | E87: 3432 | F87: 3432 | G87: 3432
A88: 72 | B88: Radwański | C88: Ludomir | D88: o dzieło | E88: 4031 | F88: 4031 | G88: 4031
A89: 73 | B89: Matysik | C89: Celina | D89: o dzieło | E89: 7507 | F89: 7507 | G89: 7507
A90: 74 | B90: Zdeb | C90: Ireneusz | D90: o pracę | E90: 5188 | F90: 5188 | G90: 5188
A91: 75 | B91: Piszczek | C91: Wiktor | D91: o pracę | E91: 3478 | F91: 3478 | G91: 3478
A92: 76 | B92: Krawczyński | C92: Wilhelmina | D92: o pracę | E92: 7233 | F92: 7233 | G92: 7233
A93: 77 | B93: Grygiel | C93: Albina | D93: o pracę | E93: 6201 | F93: 6201 | G93: 6201
A94: 78 | B94: Bączek | C94: Maksymin | D94: o pracę | E94: 7522 | F94: 7522 | G94: 7522
A95: 79 | B95: Budna | C95: Teodora | D95: o pracę | E95: 3242 | F95: 3242 | G95: 3242
A96: 80 | B96: Włodarczak | C96: Ksawery | D96: o pracę | E96: 5068 | F96: 5068 | G96: 5068
A97: 81 | B97: Błachowicz | C97: Dymitr | D97: o pracę | E97: 5496 | F97: 5496 | G97: 5496
A98: 82 | B98: Kozielski | C98: Mojra | D98: o pracę | E98: 4875 | F98: 4875 | G98: 4875
A99: 83 | B99: Kusyk | C99: Sędzisława | D99: o pracę | E99: 5818 | F99: 5818 | G99: 5818
A100: 84 | B100: Siek | C100: Aldona | D100: o pracę | E100: 6284 | F100: 6284 | G100: 6284
A101: 85 | B101: Czapiewski | C101: Jokasta | D101: o pracę | E101: 4344 | F101: 4344 | G101: 4344
A102: 86 | B102: Goch | C102: Agrypin | D102: o pracę | E102: 7961 | F102: 7961 | G102: 7961
A103: 87 | B103: Kuć | C103: Hilaria | D103: o pracę | E103: 4499 | F103: 4499 | G103: 4499
A104: 88 | B104: Kaniowski | C104: Aleksander | D104: o pracę | E104: 8235 | F104: 8235 | G104: 8235
A105: 89 | B105: Bednarek | C105: Sabrina | D105: o pracę | E105: 6543 | F105: 6543 | G105: 6543
A106: 90 | B106: Drzazga | C106: Tatiana | D106: o pracę | E106: 3842 | F106: 3842 | G106: 3842
A107: 91 | B107: Kotynia | C107: Skałosz | D107: o pracę | E107: 7342 | F107: 7342 | G107: 7342
A108: 92 | B108: Franek | C108: Maja | D108: o pracę | E108: 8911 | F108: 8911 | G108: 8911
A109: 93 | B109: Masztalerz | C109: Mirosz | D109: o pracę | E109: 3508 | F109: 3508 | G109: 3508
A110: 94 | B110: Golis | C110: Wiktor | D110: o pracę | E110: 3213 | F110: 3213 | G110: 3213
A111: 95 | B111: Bonisławski | C111: Antonius | D111: o pracę | E111: 5867 | F111: 5867 | G111: 5867
A112: 96 | B112: Kalicki | C112: Kaja | D112: o pracę | E112: 3936 | F112: 3936 | G112: 3936
A113: 97 | B113: Zarzecki | C113: Mirołada | D113: o pracę | E113: 3416 | F113: 3416 | G113: 3416
A114: 98 | B114: Kalita | C114: Laurencjusz | D114: o pracę | E114: 4601 | F114: 4601 | G114: 4601
A115: 99 | B115: Kopacki | C115: Ginter | D115: o pracę | E115: 4079 | F115: 4079 | G115: 4079
A116: 100 | B116: Grobelny | C116: Domasław | D116: o pracę | E116: 8874 | F116: 8874 | G116: 8874

Sheet 4
A1: Nazwisko | B1: Stanowisko | C1: Wynagrodzenie podstawowe | D1: Premia | E1: Wypłata
A2: Lizut | B2: Młodszy specjalista | C2: 3815 | D2: =10%*C2 -> 381.5 | E2: =C2+D2 -> 4196.5
A3: Kanclerz | B3: Manager | C3: 5800 | D3: =10%*C3 -> 580 | E3: =C3+D3 -> 6380
A4: Śmiłowska | B4: Manager | C4: 6235 | D4: 623.5 | E4: 6858.5
A5: Kubański | B5: Manager | C5: 5960 | D5: 596 | E5: 6556
A6: Rokiciński | B6: Senior Manager | C6: 8052 | D6: 805.2 | E6: 8857.2
A7: Wojtach | B7: Specjalista | C7: 3780 | D7: 378 | E7: 4158
A8: Lewy | B8: Młodszy specjalista | C8: 3100 | D8: 310 | E8: 3410
A9: Myrda | B9: Specjalista | C9: 4100 | D9: 410 | E9: 4510
A10: Bernad | B10: Senior Manager | C10: 4980 | D10: 498 | E10: 5478
A11: Krala | B11: Senior Assistant | C11: 3800 | D11: 380 | E11: 4180
A12: Głomb | B12: Specjalista | C12: 4200 | D12: 420 | E12: 4620
A13: Kajfasz | B13: Starszy specjalista | C13: 5000 | D13: 500 | E13: 5500
A14: Szałecka | B14: Starszy specjalista | C14: 5100 | D14: 510 | E14: 5610
A15: Pomarański | B15: Starszy specjalista | C15: 5000 | D15: 500 | E15: 5500
A16: Rafa | B16: Starszy specjalista | C16: 4900 | D16: 490 | E16: 5390
A20: Nazwisko | B20: Stanowisko | C20: Wynagrodzenie podstawowe | D20: Premia | E20: Wypłata
A21: Wojtach | B21: Specjalista | C21: 3780 | D21: 378 | E21: 4158
A22: Głomb | B22: Specjalista | C22: 4200 | D22: 420 | E22: 4620

Sheet 5
B1: Województwo
B2: dolnośląskie | G2: LUBELSKIE | H2: 10
B3: lubelskie
B4: kujawsko-pomorskie
B5: mazowieckie
B6: lubelskie
B7: dolnośląskie
B8: kujawsko-pomorskie
B9: mazowieckie
B10: podkarpackie
B11: podkarpackie
B12: kujawsko-pomorskie
B13: lubelskie
B14: mazowieckie
B15: mazowieckie
B16: dolnośląskie
B17: kujawsko-pomorskie
B18: kujawsko-pomorskie
B19: mazowieckie
B20: podkarpackie
B21: dolnośląskie
B22: kujawsko-pomorskie
B23: mazowieckie
B24: podkarpackie
B25: podkarpackie
B26: kujawsko-pomorskie
B27: dolnośląskie
B28: mazowieckie
B29: lubelskie
B30: lubelskie
B31: kujawsko-pomorskie
B32: kujawsko-pomorskie
B33: mazowieckie
B34: podkarpackie
B35: lubelskie
B36: kujawsko-pomorskie
B37: mazowieckie
B38: podkarpackie
B39: podkarpackie
B40: kujawsko-pomorskie
B41: lubelskie
B42: mazowieckie
B43: mazowieckie
B44: lubelskie
B45: kujawsko-pomorskie
B46: kujawsko-pomorskie
B47: mazowieckie
B48: podkarpackie
B49: dolnośląskie
B50: kujawsko-pomorskie
B51: mazowieckie
B52: podkarpackie
B53: podkarpackie
B54: kujawsko-pomorskie
B55: dolnośląskie
B56: mazowieckie
B57: mazowieckie
B58: dolnośląskie
B59: kujawsko-pomorskie
B60: kujawsko-pomorskie
B61: mazowieckie
B62: podkarpackie
B63: dolnośląskie
B64: kujawsko-pomorskie
B65: mazowieckie
B66: podkarpackie
B67: podkarpackie
B68: kujawsko-pomorskie
B69: dolnośląskie
B70: mazowieckie
B71: mazowieckie
B72: dolnośląskie
B73: kujawsko-pomorskie
B74: kujawsko-pomorskie
B75: mazowieckie
B76: podkarpackie
B77: lubelskie
B78: kujawsko-pomorskie
B79: mazowieckie
B80: podkarpackie
B81: podkarpackie
B82: kujawsko-pomorskie
B83: dolnośląskie
B84: mazowieckie
B85: mazowieckie
B86: dolnośląskie
B87: kujawsko-pomorskie
B88: kujawsko-pomorskie
B89: mazowieckie
B90: podkarpackie
B91: dolnośląskie
B92: kujawsko-pomorskie
B93: mazowieckie
B94: podkarpackie
B95: podkarpackie
B96: lubelskie
B97: dolnośląskie
B98: mazowieckie
B99: mazowieckie
B100: dolnośląskie

Sheet 6
C9: Nazwisko | D9: Oddział | E9: Kwota | H9: Nazwisko | I9: Oddział | J9: Kwota
C10: Bartosik | D10: Niemcy | E10: 899 | H10: Formela | I10: Australia | J10: 939
C11: Bis | D11: Niemcy | E11: 533 | H11: Wilczewski | I11: Polska | J11: 901
C12: Dąbek | D12: Niemcy | E12: 750 | H12: Bartosik | I12: Niemcy | J12: 899
C13: Filipczak | D13: Polska | E13: 563 | H13: Wilczewski | I13: Niemcy | J13: 885
C14: Filipczak | D14: Australia | E14: 843 | H14: Filipczak | I14: Australia | J14: 843
C15: Formela | D15: Australia | E15: 939 | H15: Konarski | I15: Polska | J15: 830
C16: Konarski | D16: Polska | E16: 830 | H16: Rudowski | I16: Polska | J16: 824
C17: Konarski | D17: Polska | E17: 553 | H17: Siemiński | I17: Polska | J17: 821
C18: Kowalski | D18: Polska | E18: 619 | H18: Nowak | I18: Australia | J18: 802
C19: Mazurek | D19: Niemcy | E19: 606 | H19: Wardak | I19: Austria | J19: 751
C20: Mentel | D20: Polska | E20: 517 | H20: Dąbek | I20: Niemcy | J20: 750
C21: Nowak | D21: Australia | E21: 802 | H21: Wąsik | I21: Austria | J21: 669
C22: Rucki | D22: Polska | E22: 512 | H22: Siemiński | I22: Niemcy | J22: 645
C23: Rudowski | D23: Austria | E23: 565 | H23: Kowalski | I23: Polska | J23: 619
C24: Rudowski | D24: Polska | E24: 824 | H24: Mazurek | I24: Niemcy | J24: 606
C25: Siemiński | D25: Niemcy | E25: 645 | H25: Rudowski | I25: Austria | J25: 565
C26: Siemiński | D26: Polska | E26: 821 | H26: Filipczak | I26: Polska | J26: 563
C27: Sławek | D27: Austria | E27: 519 | H27: Konarski | I27: Polska | J27: 553
C28: Wardak | D28: Austria | E28: 751 | H28: Bis | I28: Niemcy | J28: 533
C29: Wąsik | D29: Austria | E29: 669 | H29: Sławek | I29: Austria | J29: 519
C30: Wilczewski | D30: Polska | E30: 901 | H30: Mentel | I30: Polska | J30: 517
C31: Wilczewski | D31: Niemcy | E31: 885 | H31: Rucki | I31: Polska | J31: 512

Sheet 7
J8: Liczba rekordów | K8: 13
B13: LP | C13: Imię | D13: Nazwisko | E13: Płeć | F13: Podejście do egzaminu | G13: Kierunek | H13: Liczba punktów z ostatniego egzaminu
B14: 1 | C14: Ariel | D14: Malinowski | E14: M | F14: 2 | G14: Zarządzanie i Marketing | H14: 17
B15: 18 | C15: Jadwiga | D15: Kowalczyk | E15: K | F15: 3 | G15: Administracja | H15: 56
B16: 3 | C16: Amadeusz | D16: Tomaszewski | E16: M | F16: 3 | G16: Administracja | H16: 20
B17: 23 | C17: Regina | D17: Tomaszewska | E17: K | F17: 3 | G17: Administracja | H17: 66
B18: 5 | C18: Juliusz | D18: Witkowski | E18: M | F18: 1 | G18: Językoznastwo | H18: 53
B19: 6 | C19: Miłosz | D19: Górecki | E19: M | F19: 1 | G19: Zarządzanie i Marketing | H19: 70
B20: 7 | C20: Ewa | D20: Jakubowska | E20: K | F20: 1 | G20: Prawo | H20: 12
B21: 8 | C21: Olgierd | D21: Jasiński | E21: M | F21: 1 | G21: Administracja | H21: 70
B22: 9 | C22: Lucjan | D22: Kozłowski | E22: M | F22: 1 | G22: Chemia | H22: 98
B23: 10 | C23: Dawid | D23: Pawlak | E23: M | F23: 1 | G23: Językoznastwo | H23: 99
B24: 39 | C24: Alina | D24: Zakrzewska | E24: K | F24: 2 | G24: Administracja | H24: 87
B25: 12 | C25: Jowita | D25: Szewczyk | E25: K | F25: 1 | G25: Prawo | H25: 82
B26: 13 | C26: Sylwia | D26: Chmielewska | E26: K | F26: 1 | G26: Administracja | H26: 88
B27: 14 | C27: Joanna | D27: Cieślak | E27: K | F27: 1 | G27: Chemia | H27: 35
B28: 15 | C28: Amanda | D28: Jakubowska | E28: K | F28: 1 | G28: Językoznastwo | H28: 67
B29: 4 | C29: Otylia | D29: Walczak | E29: K | F29: 2 | G29: Chemia | H29: 98
B30: 17 | C30: Danuta | D30: Kowalczyk | E30: K | F30: 1 | G30: Prawo | H30: 59
B31: 19 | C31: Ada | D31: Krajewska | E31: K | F31: 2 | G31: Chemia | H31: 100
B32: 30 | C32: Milan | D32: Kaźmierczak | E32: M | F32: 2 | G32: Językoznastwo | H32: 81
B33: 20 | C33: Weronika | D33: Kucharska | E33: K | F33: 1 | G33: Językoznastwo | H33: 69
B34: 21 | C34: Filip | D34: Mazur | E34: M | F34: 1 | G34: Zarządzanie i Marketing | H34: 83
B35: 22 | C35: Alfred | D35: Sawicki | E35: M | F35: 1 | G35: Prawo | H35: 69
B36: 32 | C36: Hortensja | D36: Ostrowska | E36: K | F36: 2 | G36: Językoznastwo | H36: 88
B37: 24 | C37: Mariusz | D37: Zakrzewska | E37: M | F37: 3 | G37: Chemia | H37: 21
B38: 25 | C38: Malwina | D38: Baranowska | E38: K | F38: 1 | G38: Językoznastwo | H38: 60
B39: 33 | C39: Nina | D39: Pawlak | E39: K | F39: 3 | G39: Językoznastwo | H39: 95
B40: 27 | C40: Alice | D40: Brzezińska | E40: K | F40: 1 | G40: Zarządzanie i Marketing | H40: 35
B41: 2 | C41: Ewelina | D41: Michalak | E41: K | F41: 3 | G41: Prawo | H41: 77
B42: 29 | C42: Olaf | D42: Kamiński | E42: M | F42: 1 | G42: Zarządzanie i Marketing | H42: 17
B43: 11 | C43: Jarosław | D43: Sobczak | E43: M | F43: 3 | G43: Zarządzanie i Marketing | H43: 72
B44: 31 | C44: Natan | D44: Malinowski | E44: M | F44: 1 | G44: Językoznastwo | H44: 31
B45: 16 | C45: Korneliusz | D45: Jakubowski | E45: M | F45: 2 | G45: Zarządzanie i Marketing | H45: 70
B46: 26 | C46: Joachim | D46: Błaszczyk | E46: M | F46: 3 | G46: Zarządzanie i Marketing | H46: 83
B47: 34 | C47: Gustaw | D47: Przybylski | E47: M | F47: 2 | G47: Językoznastwo | H47: 40
B48: 35 | C48: Mariusz | D48: Wiśniewski | E48: M | F48: 1 | G48: Chemia | H48: 63
B49: 36 | C49: Amalia | D49: Włodarczyk | E49: K | F49: 2 | G49: Administracja | H49: 30
B50: 37 | C50: Alek | D50: Wojciechowski | E50: M | F50: 2 | G50: Administracja | H50: 21
B51: 38 | C51: Marcela | D51: Woźniak | E51: K | F51: 1 | G51: Administracja | H51: 87
B52: 28 | C52: Jagoda | D52: Jasińska | E52: K | F52: 2 | G52: Zarządzanie i Marketing | H52: 53
B53: 40 | C53: Bolesław | D53: Zawadzki | E53: M | F53: 1 | G53: Zarządzanie i Marketing | H53: 76

Sheet 8
D3: 2019 | E3: 2020 | F3: 2021 | G3: 2022 | H3: SUMA | K3: Max | L3: =MAX(D4:G10) -> 44400
B4: WYDATKI | C4: czynsz | D4: 42000 | E4: 38400 | F4: 42000 | G4: 44400 | H4: =SUM(D4:G4) -> 166800 | K4: Min | L4: =MIN(D4:G10) -> 1200
C5: prąd | D5: 4800 | E5: 5400 | F5: 5580 | G5: 5496 | H5: 21276
C6: woda | D6: 2400 | E6: 3000 | F6: 2760 | G6: 2640 | H6: 10800
C7: gaz | D7: 6000 | E7: 6600 | F7: 6840 | G7: 7020 | H7: 26460
C8: telefony | D8: 2400 | E8: 3000 | F8: 3000 | G8: 3600 | H8: 12000
C9: sprzątanie | D9: 18000 | E9: 20400 | F9: 20400 | G9: 20400 | H9: 79200
C10: śmieci | D10: 1200 | E10: 1440 | F10: 1800 | G10: 1440 | H10: 5880
C11: SUMA | D11: =SUM(D4:D10) -> 76800 | E11: =SUM(E4:E10) -> 78240 | F11: =SUM(F4:F10) -> 82380 | G11: =SUM(G4:G10) -> 84996 | H11: 322416
C12: ŚREDNIA | D12: =AVERAGE(D4:D10) -> 10971.42857 | E12: =AVERAGE(E4:E10) -> 11177.14286 | F12: =AVERAGE(F4:F10) -> 11768.57143 | G12: =AVERAGE(G4:G10) -> 12142.28571 | H12: =AVERAGE(H4:H10) -> 46059.42857

Sheet 9
B8: Tytuł | C8: Udział % osób, które obejrzały poniższe filmy
B9: Jurassic Park | C9: 0.34
B10: Szklana pułapka | C10: 0.2
B11: Barbarella | C11: 0.17
B12: Speed | C12: 0.17
B13: Titanic | C13: 0.08
B14: Przeminęło z wiatrem | C14: 0.04

Sheet 10
B7: Miesiąc | C7: Średnie opady w milimetrach | D7: Średnia temperatura w stopniach
B8: styczeń | C8: 33 | D8: 3
B9: luty | C9: 28 | D9: 5
B10: marzec | C10: 32 | D10: 12
B11: kwiecień | C11: 39 | D11: 15
B12: maj | C12: 53 | D12: 18
B13: czerwiec | C13: 51 | D13: 23
B14: lipiec | C14: 60 | D14: 21
B15: sierpień | C15: 55 | D15: 22
B16: wrzesień | C16: 47 | D16: 19
B17: październik | C17: 35 | D17: 10
B18: listopad | C18: 32 | D18: 11
B19: grudzień | C19: 37 | D19: 2

Sheet PODSUMOWANIE PODSTAWY

Sheet ŚREDNIO ZAAWANSOWANY
B1: Instrukcja do testu Excel - Poziom Średnio Zaawansowany
B3: Test składa się z 10 arkuszy oznaczonych kolorem czerwonym i obejmuje zagadnienia, które omawiane są na szkoleniu z Excela średnio zaawansowanego.
B5: Oto kilka ważnych wskazówek:
B6: Czas | C6: Staraj się wykonywać zadania sprawnie maksymalnie w przeciągu 30-35 min.
C7: Jeśli potrzebujesz więcej czasu na rozwiązanie, oznaczać to może, że jeszcze niektóre czynności wymagają przećwiczenia, aby stały się bardziej intuicyjne.
B9: Samodzielność | C9: Rozwiązuj zadania samodzielnie, bez korzystania z pomocy kolegów, koleżanek lub innych zasobów wiedzy, w tym stron internetowych.
B11: Intuicja | C11: Wykonuj zadania intuicyjnie, tak jak na co dzień korzystasz z programu Excel.
C12: Warto, abyś wykonywał zadania w sposób mechaniczny, aby ocenić swoje faktyczne umiejętności z zakresu średniego Excela.
B14: Samodzielna ocena | C14: Po zakończeniu testu, spróbuj samodzielnie ocenić, które zadania wykonujesz poprawnie.
C15: Ewentualnie, możesz skorzystać z pliku "Rozwiązany test poziomujący z Excela" dla samokontroli. Natomiast pamiętaj, że do poprawnego wyniku
C16: może prowadzić kilka dróg, więc jeśli uzyskasz te same wyniki, ale innymi metodami to nie oznacza, że rozwiązałeś zadanie źle.
B18: Zakończenie | C18: Gdy już rozwiążesz swój test, przejdź do arkusza "PODSUMOWANIE ŚREDNI"
B20: Gotowy? Świetnie! Rozpocznij test!
B22: Pamiętaj, że praktyka czyni mistrza, więc niezależnie od wyników, każde podejście do nauki Excela przyniesie Ci cenne doświadczenie.

Sheet 11
A1: Kurs_EUR | B1: 4.4492
A3: Kod | B3: Cena_PLN | C3: Ilość | D3: Wartość_PLN | E3: Wartość_EUR | F3: Kwota_Zaokr EUR
A4: PA.ZM07002 | B4: 768 | C4: 30 | D4: =B4*C4 -> 23040 | E4: =D4/$B$1 -> 5178.459049 | F4: =ROUND(E4,2) -> 5178.46
A5: RĘ.EKG1058 | B5: 0.57 | C5: 7700 | D5: =B5*C5 -> 4389 | E5: =D5/$B$1 -> 986.4694777 | F5: =ROUND(E5,2) -> 986.47
A6: AK.DEFICU1 | B6: 46.53333333 | C6: 330 | D6: 15356 | E6: 3451.406995 | F6: 3451.41
A7: OB.DEFIQC3 | B7: 275 | C7: 15 | D7: 4125 | E7: 927.1329677 | F7: 927.13
A8: OP.EKG1070 | B8: 6.6 | C8: 3200 | D8: 21120 | E8: 4746.920795 | F8: 4746.92
A9: PA.M00Z002 | B9: 121.3963636 | C9: 571980 | D9: 69436292.07 | E9: 15606466.8 | F9: 15606466.8
A10: PA.EKG1063 | B10: 8.73 | C10: 1800 | D10: 15714 | E10: 3531.870898 | F10: 3531.87
A11: PA.EEG0001 | B11: 157.3 | C11: 4 | D11: 629.2 | E11: 141.418682 | F11: 141.42
A12: OB.S000002 | B12: 31.02666667 | C12: 110880 | D12: 3440236.8 | E12: 773225.9283 | F12: 773225.93
A13: OB.EKG0008 | B13: 912.775 | C13: 7480 | D13: 6827557 | E13: 1534558.348 | F13: 1534558.35
A14: OB.EKG1060 | B14: 304.048 | C14: 4550 | D14: 1383418.4 | E14: 310936.438 | F14: 310936.44
A15: AK.DEFIZO2 | B15: 25 | C15: 240 | D15: 6000 | E15: 1348.557044 | F15: 1348.56
A16: OB.ENS*001 | B16: 11.19 | C16: 4860 | D16: 54383.4 | E16: 12223.18619 | F16: 12223.19
A17: OP.DEFIPH1 | B17: 88 | C17: 480 | D17: 42240 | E17: 9493.841589 | F17: 9493.84
A18: PA.EKG1067 | B18: 8.7 | C18: 1980 | D18: 17226 | E18: 3871.707273 | F18: 3871.71
A19: PA.M000003 | B19: 24.87333333 | C19: 108357 | D19: 2695199.78 | E19: 605771.7747 | F19: 605771.77
A20: RĘ.M000001 | B20: 14.7 | C20: 567804 | D20: 8346718.8 | E20: 1876004.405 | F20: 1876004.41
A21: AK.EKG0003 | B21: 494.3583333 | C21: 5670 | D21: 2803011.75 | E21: 630003.54 | F21: 630003.54
A22: OB.DEF1003 | B22: 1.66 | C22: 48600 | D22: 80676 | E22: 18132.69801 | F22: 18132.7
A23: OP.S300S01 | B23: 15.34 | C23: 896 | D23: 13744.64 | E23: 3089.238515 | F23: 3089.24
A24: PA.A160001 | B24: 3.832653061 | C24: 818367.6 | D24: 3136519.087 | E24: 704962.4848 | F24: 704962.48
A25: PA.DEFICO1 | B25: 14.9 | C25: 88 | D25: 1311.2 | E25: 294.704666 | F25: 294.7
A26: PA.S400B01 | B26: 9 | C26: -10 | D26: -90 | E26: -20.22835566 | F26: -20.23
A27: RĘ.DEFIDE1 | B27: 232.7 | C27: 72 | D27: 16754.4 | E27: 3765.71069 | F27: 3765.71
A28: OB.DEFIQC1 | B28: 33.28125 | C28: 21100 | D28: 702234.375 | E28: 157833.8522 | F28: 157833.85
A29: OB.EKG0002 | B29: 750.93 | C29: 5000 | D29: 3754650 | E29: 843893.2842 | F29: 843893.28
A30: AK.DEFINK1 | B30: 63 | C30: 960 | D30: 60480 | E30: 13593.455 | F30: 13593.46
A31: OB.EKG1064 | B31: 98.32565217 | C31: 88200 | D31: 8672322.522 | E31: 1949186.937 | F31: 1949186.94
A32: OP.EEG0001 | B32: 15 | C32: 14 | D32: 210 | E32: 47.19949654 | F32: 47.2
A33: PA.DEFIAG1 | B33: 94.5 | C33: 14 | D33: 1323 | E33: 297.3568282 | F33: 297.36
A34: PA.EEGG001 | B34: 102.15 | C34: 125 | D34: 12768.75 | E34: 2869.897959 | F34: 2869.9
A35: RĘ.EKG0005 | B35: 680.322 | C35: 23100 | D35: 15715438.2 | E35: 3532194.147 | F35: 3532194.15
A36: AK.EKG1072 | B36: 7.05 | C36: 5600 | D36: 39480 | E36: 8873.505349 | F36: 8873.51
A37: OB.0000001 | B37: 13.37727273 | C37: 155137.68 | D37: 2075319.056 | E37: 466447.6885 | F37: 466447.69
A38: OP.DEFIQC2 | B38: 12.5 | C38: 1200 | D38: 15000 | E38: 3371.39261 | F38: 3371.39
A39: PA.S500B01 | B39: 18 | C39: 0 | D39: 0 | E39: 0 | F39: 0
A40: PA.PASG001 | B40: 27.8635 | C40: 2960 | D40: 82475.96 | E40: 18537.25614 | F40: 18537.26
A41: RĘ.EKG1062 | B41: 2.295 | C41: 11900 | D41: 27310.5 | E41: 6138.294525 | F41: 6138.29
A42: OB.DEFIPC1 | B42: 89.4 | C42: 2 | D42: 178.8 | E42: 40.18699991 | F42: 40.19
A43: OB.DEFIZO1 | B43: 114.0857143 | C43: 24480 | D43: 2792818.286 | E43: 627712.462 | F43: 627712.46
A44: OB.EKG1052 | B44: 3.9 | C44: 10 | D44: 39 | E44: 8.765620786 | F44: 8.77
A45: AK.EKG1051 | B45: 121.628 | C45: 1680 | D45: 204335.04 | E45: 45926.24292 | F45: 45926.24
A46: OB.EKG1059 | B46: 1121.89 | C46: 910 | D46: 1020919.9 | E46: 229461.4537 | F46: 229461.45
A47: OP.EKG1057 | B47: 5.1 | C47: 60 | D47: 306 | E47: 68.77640924 | F47: 68.78
A48: PA.L000001 | B48: 160.72 | C48: 837.76 | D48: 134644.7872 | E48: 30262.69604 | F48: 30262.7
A49: OB.L000004 | B49: 22.3 | C49: 10368 | D49: 231206.4 | E49: 51965.83655 | F49: 51965.84
A50: OP.L000003 | B50: 15.876 | C50: 10321.68 | D50: 163866.9917 | E50: 36830.66432 | F50: 36830.66
A51: PA.DEFICU2 | B51: 35.5 | C51: 30 | D51: 1065 | E51: 239.3688753 | F51: 239.37
A52: PA.WKR0001 | B52: 2.96 | C52: 49120 | D52: 145395.2 | E52: 32678.95352 | F52: 32678.95
A53: RĘ.EKG1068 | B53: 627.2 | C53: 3600 | D53: 2257920 | E53: 507488.9868 | F53: 507488.99
A54: PA.DEFIAE1 | B54: 310.1 | C54: 0 | D54: 0 | E54: 0 | F54: 0
A55: OB.ENS*003 | B55: 6.3 | C55: 676 | D55: 4258.8 | E55: 957.2057898 | F55: 957.21
A56: PA.WKR0002 | B56: 5.33 | C56: 3900 | D56: 20787 | E56: 4672.075879 | F56: 4672.08

Sheet 12
B2: ID Pracownika | C2: Handlowiec | D2: Dział | E2: Nr | F2: Odwrócone ID
B3: ADM/852 | C3: Gracjan Stępień | D3: ADM | E3: 852 | F3: =E3&"-"&D3 -> 852-ADM
B4: KSI/225 | C4: Julianna Krajewska | D4: KSI | E4: 225 | F4: =E4&"-"&D4 -> 225-KSI
B5: LOGIS/102 | C5: Aleksander Pawlak | D5: LOGIS | E5: 102 | F5: 102-LOGIS
B6: ZAK/365 | C6: Ewelina Gładysz | D6: ZAK | E6: 365 | F6: 365-ZAK
B7: HAN/452 | C7: Gracjan Stępień | D7: HAN | E7: 452 | F7: 452-HAN
B8: ADM/842 | C8: Julianna Krajewska | D8: ADM | E8: 842 | F8: 842-ADM
B9: ADM/652 | C9: Aleksander Pawlak | D9: ADM | E9: 652 | F9: 652-ADM
B10: ZAK/398 | C10: Ewelina Gładysz | D10: ZAK | E10: 398 | F10: 398-ZAK
B11: Polska | C11: Gracjan Stępień | D11: Polska | F11: -Polska
B12: Polska | C12: Julianna Krajewska | D12: Polska | F12: -Polska
B13: Polska | C13: Aleksander Pawlak | D13: Polska | F13: -Polska
B14: Polska | C14: Ewelina Gładysz | D14: Polska | F14: -Polska
B15: LOGIS/145 | C15: Gracjan Stępień | D15: LOGIS | E15: 145 | F15: 145-LOGIS
B16: ADM/865 | C16: Julianna Krajewska | D16: ADM | E16: 865 | F16: 865-ADM
B17: HAN/432 | C17: Aleksander Pawlak | D17: HAN | E17: 432 | F17: 432-HAN
B18: HAN/471 | C18: Tomasz Małecki | D18: HAN | E18: 471 | F18: 471-HAN
B19: KSI/215 | C19: Ewelina Gładysz | D19: KSI | E19: 215 | F19: 215-KSI
B20: MAG/777 | C20: Ewelina Gładysz | D20: MAG | E20: 777 | F20: 777-MAG
B21: PROD/698 | C21: Ewelina Gładysz | D21: PROD | E21: 698 | F21: 698-PROD
B22: MAG/714 | C22: Gracjan Stępień | D22: MAG | E22: 714 | F22: 714-MAG
B23: MAG/785 | C23: Julianna Krajewska | D23: MAG | E23: 785 | F23: 785-MAG
B24: PROD/645 | C24: Gracjan Stępień | D24: PROD | E24: 645 | F24: 645-PROD
B25: ADM/874 | C25: Julianna Krajewska | D25: ADM | E25: 874 | F25: 874-ADM
B26: ZAK/350 | C26: Gracjan Stępień | D26: ZAK | E26: 350 | F26: 350-ZAK

Sheet 13
A2: Kod | B2: Grupa towarowa | C2: Cena | D2: Ilość | E2: Wartość | G2: Grupa Towarowa | H2: Średnia wartość
A3: PA.ZM07002 | B3: papier | C3: 768 | D3: 30 | E3: =C3*D3 -> 23040 | G3: akcesoria | H3: =AVERAGEIF(B3:B55,G3,E3:E55) -> 521443.7983
A4: RĘ.EKG1058 | B4: rękawice | C4: 0.57 | D4: 7700 | E4: =C4*D4 -> 4389
A5: AK.DEFICU1 | B5: akcesoria | C5: 46.53333333 | D5: 330 | E5: 15356
A6: OB.DEFIQC3 | B6: obuwie | C6: 275 | D6: 15 | E6: 4125
A7: OP.EKG1070 | B7: opakowanie | C7: 6.6 | D7: 3200 | E7: 21120
A8: PA.M00Z002 | B8: papier | C8: 121.3963636 | D8: 571980 | E8: 69436292.07
A9: PA.EKG1063 | B9: papier | C9: 8.73 | D9: 1800 | E9: 15714
A10: PA.EEG0001 | B10: papier | C10: 157.3 | D10: 4 | E10: 629.2
A11: OB.S000002 | B11: obuwie | C11: 31.02666667 | D11: 110880 | E11: 3440236.8
A12: OB.EKG0008 | B12: obuwie | C12: 912.775 | D12: 7480 | E12: 6827557
A13: OB.EKG1060 | B13: obuwie | C13: 304.048 | D13: 4550 | E13: 1383418.4
A14: AK.DEFIZO2 | B14: akcesoria | C14: 25 | D14: 240 | E14: 6000
A15: OB.ENS*001 | B15: obuwie | C15: 11.19 | D15: 4860 | E15: 54383.4
A16: OP.DEFIPH1 | B16: opakowanie | C16: 88 | D16: 480 | E16: 42240
A17: PA.EKG1067 | B17: papier | C17: 8.7 | D17: 1980 | E17: 17226
A18: PA.M000003 | B18: papier | C18: 24.87333333 | D18: 108357 | E18: 2695199.78
A19: RĘ.M000001 | B19: rękawice | C19: 14.7 | D19: 567804 | E19: 8346718.8
A20: AK.EKG0003 | B20: akcesoria | C20: 494.3583333 | D20: 5670 | E20: 2803011.75
A21: OB.DEF1003 | B21: obuwie | C21: 1.66 | D21: 48600 | E21: 80676
A22: OP.S300S01 | B22: opakowanie | C22: 15.34 | D22: 896 | E22: 13744.64
A23: PA.A160001 | B23: papier | C23: 3.832653061 | D23: 818367.6 | E23: 3136519.087
A24: PA.DEFICO1 | B24: papier | C24: 14.9 | D24: 88 | E24: 1311.2
A25: PA.S400B01 | B25: papier | C25: 9 | D25: -10 | E25: -90
A26: RĘ.DEFIDE1 | B26: rękawice | C26: 232.7 | D26: 72 | E26: 16754.4
A27: OB.DEFIQC1 | B27: obuwie | C27: 33.28125 | D27: 21100 | E27: 702234.375
A28: OB.EKG0002 | B28: obuwie | C28: 750.93 | D28: 5000 | E28: 3754650
A29: AK.DEFINK1 | B29: akcesoria | C29: 63 | D29: 960 | E29: 60480
A30: OB.EKG1064 | B30: obuwie | C30: 98.32565217 | D30: 88200 | E30: 8672322.522
A31: OP.EEG0001 | B31: opakowanie | C31: 15 | D31: 14 | E31: 210
A32: PA.DEFIAG1 | B32: papier | C32: 94.5 | D32: 14 | E32: 1323
A33: PA.EEGG001 | B33: papier | C33: 102.15 | D33: 125 | E33: 12768.75
A34: RĘ.EKG0005 | B34: rękawice | C34: 680.322 | D34: 23100 | E34: 15715438.2
A35: AK.EKG1072 | B35: akcesoria | C35: 7.05 | D35: 5600 | E35: 39480
A36: OB.0000001 | B36: obuwie | C36: 13.37727273 | D36: 155137.68 | E36: 2075319.056
A37: OP.DEFIQC2 | B37: opakowanie | C37: 12.5 | D37: 1200 | E37: 15000
A38: PA.S500B01 | B38: papier | C38: 18 | D38: 0 | E38: 0
A39: PA.PASG001 | B39: papier | C39: 27.8635 | D39: 2960 | E39: 82475.96
A40: RĘ.EKG1062 | B40: rękawice | C40: 2.295 | D40: 11900 | E40: 27310.5
A41: OB.DEFIPC1 | B41: obuwie | C41: 89.4 | D41: 2 | E41: 178.8
A42: OB.DEFIZO1 | B42: obuwie | C42: 114.0857143 | D42: 24480 | E42: 2792818.286
A43: OB.EKG1052 | B43: obuwie | C43: 3.9 | D43: 10 | E43: 39
A44: AK.EKG1051 | B44: akcesoria | C44: 121.628 | D44: 1680 | E44: 204335.04
A45: OB.EKG1059 | B45: obuwie | C45: 1121.89 | D45: 910 | E45: 1020919.9
A46: OP.EKG1057 | B46: opakowanie | C46: 5.1 | D46: 60 | E46: 306
A47: PA.L000001 | B47: papier | C47: 160.72 | D47: 837.76 | E47: 134644.7872
A48: OB.L000004 | B48: obuwie | C48: 22.3 | D48: 10368 | E48: 231206.4
A49: OP.L000003 | B49: opakowanie | C49: 15.876 | D49: 10321.68 | E49: 163866.9917
A50: PA.DEFICU2 | B50: papier | C50: 35.5 | D50: 30 | E50: 1065
A51: PA.WKR0001 | B51: papier | C51: 2.96 | D51: 49120 | E51: 145395.2
A52: RĘ.EKG1068 | B52: rękawice | C52: 627.2 | D52: 3600 | E52: 2257920
A53: PA.DEFIAE1 | B53: papier | C53: 310.1 | D53: 0 | E53: 0
A54: OB.ENS*003 | B54: obuwie | C54: 6.3 | D54: 676 | E54: 4258.8
A55: PA.WKR0002 | B55: papier | C55: 5.33 | D55: 3900 | E55: 20787

Sheet 14
A2: LP | B2: Pracownik główny | C2: Płeć | D2: Dział | F2: liczba kobiet z działu ADMINISTRACJA | G2: =COUNTIFS(C3:C102,"k",D3:D102,"administracja") -> 4
A3: 1 | B3: Anna Parol | C3: k | D3: Logistyka | F3: liczba osób z nieprzypisanym działem | G3: =COUNTIF(D3:D102,"") -> 12
A4: 2 | B4: Dorota Kryk | C4: k | D4: Zakupy
A5: 3 | B5: Aneta Sajnóg | C5: k | D5: Produkcja
A6: 4 | B6: Agata Żywicka | C6: k | D6: Administracja
A7: 5 | B7: Anna Romanowska | C7: k | D7: Zakupy
A8: 6 | B8: Agnieszka Wachowska | C8: k | D8: Magazyn
A9: 7 | B9: Jarosław Durka | C9: m | D9: Produkcja
A10: 8 | B10: Arkadiusz Ostrowska | C10: m
A11: 9 | B11: Bartłomiej Nitek | C11: m | D11: Produkcja
A12: 10 | B12: Kamil Bryńska | C12: m | D12: Administracja
A13: 11 | B13: Aleksandra Świderska | C13: k | D13: Zakupy
A14: 12 | B14: Anna Pandel | C14: k | D14: Logistyka
A15: 13 | B15: Kamil Buczek | C15: m | D15: Produkcja
A16: 14 | B16: Jarosław Dudzińska | C16: m | D16: Magazyn
A17: 15 | B17: Ewa Kalińska | C17: k
A18: 16 | B18: Jarosław Dragan | C18: m | D18: Zakupy
A19: 17 | B19: Dominika Kuśmirek | C19: k | D19: Logistyka
A20: 18 | B20: Anna Pruska | C20: k | D20: Produkcja
A21: 19 | B21: Agnieszka Zielińska | C21: k
A22: 20 | B22: Andrzej Szymańska | C22: m | D22: Księgowość
A23: 21 | B23: Jakub Fabisiak | C23: m | D23: Kadry
A24: 22 | B24: Dominika Kujawa | C24: k | D24: Magazyn
A25: 23 | B25: Katarzyna Bartoszewska | C25: k | D25: Produkcja
A26: 24 | B26: Ewelina Kacperska | C26: k | D26: Księgowość
A27: 25 | B27: Jacek Głuchowska | C27: m | D27: Magazyn
A28: 26 | B28: Elżbieta Karaś | C28: k | D28: Kadry
A29: 27 | B29: Agnieszka Tomaszewska | C29: k | D29: Logistyka
A30: 28 | B30: Beata Marchewka | C30: k | D30: Zakupy
A31: 29 | B31: Jolanta Dąbrowska | C31: k | D31: Produkcja
A32: 30 | B32: Agnieszka Wośko | C32: k | D32: Administracja
A33: 31 | B33: Anna Racka | C33: k | D33: Zakupy
A34: 32 | B34: Beata Michalak | C34: k | D34: Magazyn
A35: 33 | B35: Anna Rosiak | C35: k | D35: Produkcja
A36: 34 | B36: Danuta Łukasik | C36: k
A37: 35 | B37: Bogdan Malinowska | C37: m | D37: Produkcja
A38: 36 | B38: Andrzej Stępniak | C38: m | D38: Administracja
A39: 37 | B39: Jacek Godzina | C39: m | D39: Zakupy
A40: 38 | B40: Kamil Brzezińska | C40: m | D40: Logistyka
A41: 39 | B41: Dorota Kruczyk | C41: k | D41: Produkcja
A42: 40 | B42: Bożena Madej | C42: k | D42: Magazyn
A43: 41 | B43: Hanna Janicka | C43: k
A44: 42 | B44: Aneta Samsel | C44: k | D44: Zakupy
A45: 43 | B45: Darlena Leśniewska | C45: k | D45: Logistyka
A46: 44 | B46: Dawid Lelonkiewicz | C46: m | D46: Produkcja
A47: 45 | B47: Jolanta Deka | C47: k
A48: 46 | B48: Katarzyna Bliszczak | C48: k | D48: Księgowość
A49: 47 | B49: Hanna Jagiełło | C49: k | D49: Kadry
A50: 48 | B50: Bożena Makarewicz | C50: k | D50: Magazyn
A51: 49 | B51: Agnieszka Woźniak | C51: k | D51: Produkcja
A52: 50 | B52: Kamila Błaszczyk | C52: k | D52: Księgowość
A53: 51 | B53: Iwona Ignasiak | C53: k | D53: Magazyn
A54: 52 | B54: Katarzyna Bladowski | C54: k | D54: Kadry
A55: 53 | B55: Grzegorz Jęcek | C55: m | D55: Logistyka
A56: 54 | B56: Agnieszka Zakrzewski | C56: k | D56: Zakupy
A57: 55 | B57: Jolanta Dalicka | C57: k | D57: Produkcja
A58: 56 | B58: Jakub Fryt | C58: m | D58: Administracja
A59: 57 | B59: Kamila Błaszczak | C59: k | D59: Zakupy
A60: 58 | B60: Artur Orliński | C60: m | D60: Magazyn
A61: 59 | B61: Anna Pomirska | C61: k | D61: Produkcja
A62: 60 | B62: Dorota Kucharska | C62: k
A63: 61 | B63: Agata Żakowski | C63: k | D63: Produkcja
A64: 62 | B64: Andrzej Szalens | C64: m | D64: Administracja
A65: 63 | B65: Agnieszka Wróbel | C65: k | D65: Zakupy
A66: 64 | B66: Aleksandra Todorowska | C66: k | D66: Logistyka
A67: 65 | B67: Anna Piotrowska | C67: k | D67: Produkcja
A68: 66 | B68: Anna Pałuba | C68: k | D68: Magazyn
A69: 67 | B69: Barbara Okulus | C69: k
A70: 68 | B70: Justyna Czuba | C70: k | D70: Zakupy
A71: 69 | B71: Ewa Kalota | C71: k | D71: Logistyka
A72: 70 | B72: Iwona Jabłoński | C72: k | D72: Produkcja
A73: 71 | B73: Aneta Socha | C73: k
A74: 72 | B74: Iwona Ignatowska | C74: k | D74: Księgowość
A75: 73 | B75: Katarzyna Baj | C75: k | D75: Kadry
A76: 74 | B76: Ewelina Kacprzak | C76: k | D76: Magazyn
A77: 75 | B77: Agnieszka Tymorek | C77: k | D77: Produkcja
A78: 76 | B78: Barbara Nurzyńska | C78: k | D78: Księgowość
A79: 77 | B79: Aneta Sokołowska | C79: k | D79: Magazyn
A80: 78 | B80: Beata Metelska | C80: k | D80: Kadry
A81: 79 | B81: Agnieszka Urbańska | C81: k | D81: Logistyka
A82: 80 | B82: Beata Mierzejewski | C82: k | D82: Zakupy
A83: 81 | B83: Beata Maliszewska | C83: k | D83: Produkcja
A84: 82 | B84: Aleksandra Śliwińska | C84: k | D84: Administracja
A85: 83 | B85: Justyna Chaber | C85: k | D85: Zakupy
A86: 84 | B86: Justyna Chaber | C86: k | D86: Magazyn
A87: 85 | B87: Anna Panek | C87: k | D87: Produkcja
A88: 86 | B88: Aneta Sikora | C88: k
A89: 87 | B89: Agnieszka Wasilewski | C89: k | D89: Produkcja
A90: 88 | B90: Dorota Kujawa | C90: k | D90: Administracja
A91: 89 | B91: Bartosz Nagłowski | C91: m | D91: Zakupy
A92: 90 | B92: Beata Mońka | C92: k | D92: Logistyka
A93: 91 | B93: Beata Mikołajczyk | C93: k | D93: Produkcja
A94: 92 | B94: Jan Fabijańczyk | C94: m | D94: Magazyn
A95: 93 | B95: Agnieszka Trusiński | C95: k
A96: 94 | B96: Justyna Buczek | C96: k | D96: Zakupy
A97: 95 | B97: Jolanta Dmoch | C97: k | D97: Logistyka
A98: 96 | B98: Edyta Komorowska | C98: k | D98: Produkcja
A99: 97 | B99: Jolanta Domańska | C99: k
A100: 98 | B100: Katarzyna Babiuch | C100: k | D100: Księgowość
A101: 99 | B101: Edyta Kozłowska | C101: k | D101: Kadry
A102: 100 | B102: Aneta Stępień | C102: k | D102: Magazyn

Sheet 15
B3: Odbiorca | C3: Waga paczki [kg] | D3: Paleta czy paczka? | K3: Odbiorca | L3: Waga paczki [kg]
B4: OD.1065 | C4: =VLOOKUP(B4,$K$3:$L$112,2,0) -> 84 | D4: =IF(C4>100,"PALETA","PACZKA") -> PACZKA | K4: OD.5388 | L4: 84
B5: OD.1320 | C5: =VLOOKUP(B5,$K$3:$L$112,2,0) -> 76 | D5: =IF(C5>100,"PALETA","PACZKA") -> PACZKA | K5: OD.3911 | L5: 35
B6: OD.1629 | C6: 142 | D6: PALETA | K6: OD.4372 | L6: 60
B7: OD.2111 | C7: 174 | D7: PALETA | K7: OD.2815 | L7: 17
B8: OD.2131 | C8: 79 | D8: PACZKA | K8: OD.5256 | L8: 100
B9: OD.2154 | C9: 37 | D9: PACZKA | K9: OD.1949 | L9: 59
B10: OD.2247 | C10: 86 | D10: PACZKA | K10: OD.2895 | L10: 90
B11: OD.2456 | C11: 197 | D11: PALETA | K11: OD.2199 | L11: 113
B12: OD.2459 | C12: 91 | D12: PACZKA | K12: OD.5197 | L12: 82
B13: OD.2476 | C13: 229 | D13: PALETA | K13: OD.2005 | L13: 95
B14: OD.2779 | C14: 83 | D14: PACZKA | K14: OD.4314 | L14: 57
B15: OD.2873 | C15: 17 | D15: PACZKA | K15: OD.3193 | L15: 172
B16: OD.2969 | C16: 32 | D16: PACZKA | K16: OD.4410 | L16: 98
B17: OD.3052 | C17: 62 | D17: PACZKA | K17: OD.2327 | L17: 98
B18: OD.3183 | C18: 170 | D18: PALETA | K18: OD.4250 | L18: 112
B19: OD.3193 | C19: 172 | D19: PALETA | K19: OD.2793 | L19: 72
B20: OD.3516 | C20: 143 | D20: PALETA | K20: OD.1283 | L20: 75
B21: OD.3911 | C21: 35 | D21: PACZKA | K21: OD.3947 | L21: 67
B22: OD.3947 | C22: 67 | D22: PACZKA | K22: OD.5180 | L22: 123
B23: OD.4072 | C23: 115 | D23: PALETA | K23: OD.2873 | L23: 17
B24: OD.4413 | C24: 206 | D24: PALETA | K24: OD.4182 | L24: 48
B25: OD.4506 | C25: 119 | D25: PALETA | K25: OD.2318 | L25: 110
B26: OD.4574 | C26: 158 | D26: PALETA | K26: OD.1594 | L26: 12
B27: OD.4648 | C27: 38 | D27: PACZKA | K27: OD.1550 | L27: 14
B28: OD.4655 | C28: 142 | D28: PALETA | K28: OD.3176 | L28: 75
B29: OD.4919 | C29: 230 | D29: PALETA | K29: OD.4052 | L29: 119
B30: OD.4926 | C30: 137 | D30: PALETA | K30: OD.5235 | L30: 117
B31: OD.4997 | C31: 187 | D31: PALETA | K31: OD.1592 | L31: 27
B32: OD.5006 | C32: 66 | D32: PACZKA | K32: OD.3021 | L32: 126
B33: OD.5256 | C33: 100 | D33: PACZKA | K33: OD.4997 | L33: 187
B34: OD.5465 | C34: 90 | D34: PACZKA | K34: OD.4709 | L34: 100
K35: OD.4175 | L35: 85
K36: OD.3516 | L36: 143
K37: OD.2247 | L37: 86
K38: OD.4224 | L38: 11
K39: OD.2779 | L39: 83
K40: OD.5465 | L40: 90
K41: OD.5025 | L41: 15
K42: OD.1279 | L42: 66
K43: OD.5455 | L43: 89
K44: OD.1284 | L44: 82
K45: OD.4574 | L45: 158
K46: OD.2584 | L46: 121
K47: OD.5006 | L47: 66
K48: OD.3183 | L48: 170
K49: OD.1156 | L49: 42
K50: OD.5050 | L50: 113
K51: OD.1542 | L51: 107
K52: OD.3139 | L52: 69
K53: OD.4112 | L53: 62
K54: OD.2969 | L54: 32
K55: OD.4436 | L55: 93
K56: OD.1624 | L56: 89
K57: OD.2456 | L57: 197
K58: OD.4072 | L58: 115
K59: OD.3052 | L59: 62
K60: OD.4498 | L60: 65
K61: OD.4655 | L61: 142
K62: OD.2573 | L62: 39
K63: OD.1706 | L63: 68
K64: OD.1141 | L64: 43
K65: OD.4956 | L65: 75
K66: OD.2251 | L66: 28
K67: OD.2501 | L67: 72
K68: OD.4012 | L68: 44
K69: OD.2007 | L69: 74
K70: OD.4531 | L70: 71
K71: OD.4136 | L71: 93
K72: OD.2230 | L72: 108
K73: OD.1969 | L73: 21
K74: OD.4413 | L74: 206
K75: OD.3743 | L75: 29
K76: OD.2817 | L76: 26
K77: OD.1460 | L77: 10
K78: OD.1065 | L78: 84
K79: OD.4991 | L79: 98
K80: OD.4659 | L80: 74
K81: OD.4370 | L81: 127
K82: OD.2476 | L82: 229
K83: OD.5102 | L83: 91
K84: OD.1849 | L84: 45
K85: OD.2464 | L85: 114
K86: OD.1556 | L86: 68
K87: OD.1454 | L87: 39
K88: OD.4506 | L88: 119
K89: OD.1197 | L89: 107
K90: OD.4696 | L90: 31
K91: OD.2177 | L91: 79
K92: OD.1939 | L92: 89
K93: OD.4482 | L93: 78
K94: OD.2950 | L94: 117
K95: OD.1430 | L95: 25
K96: OD.4653 | L96: 117
K97: OD.4700 | L97: 78
K98: OD.2154 | L98: 37
K99: OD.4174 | L99: 66
K100: OD.4919 | L100: 230
K101: OD.2131 | L101: 79
K102: OD.1629 | L102: 142
K103: OD.2459 | L103: 91
K104: OD.2898 | L104: 116
K105: OD.1072 | L105: 29
K106: OD.4551 | L106: 118
K107: OD.2128 | L107: 78
K108: OD.2111 | L108: 174
K109: OD.4648 | L109: 38
K110: OD.5058 | L110: 60
K111: OD.4926 | L111: 137
K112: OD.1320 | L112: 76

Sheet 16
B1: Dzisiejsza data | C1: =TODAY() -> 2024-09-13
B3: Nr FV | C3: Data wystawienia FV | D3: Termin płatności | E3: Ile dni po terminie ?
B4: 2023/ODD1/148 | C4: =TODAY()+Z4 -> 2024-05-07 | D4: =C4+30 -> 2024-06-06 | E4: =$C$1-D4 -> 99 | Z4: -129
B5: 2023/ODD2/342 | C5: =TODAY()+Z5 -> 2024-08-15 | D5: =C5+30 -> 2024-09-14 | E5: =$C$1-D5 -> -1 | Z5: -29
B6: 2023/ODD3/361 | C6: 2024-08-12 | D6: 2024-09-11 | E6: 2 | Z6: -32
B7: 2023/ODD4/487 | C7: 2024-09-22 | D7: 2024-10-22 | E7: -39 | Z7: 9
B8: 2023/ODD5/235 | C8: 2024-07-08 | D8: 2024-08-07 | E8: 37 | Z8: -67
B9: 2023/ODD1/492 | C9: 2024-05-16 | D9: 2024-06-15 | E9: 90 | Z9: -120
B10: 2023/ODD2/319 | C10: 2024-08-15 | D10: 2024-09-14 | E10: -1 | Z10: -29
B11: 2023/ODD3/411 | C11: 2024-09-28 | D11: 2024-10-28 | E11: -45 | Z11: 15
B12: 2023/ODD4/132 | C12: 2024-09-27 | D12: 2024-10-27 | E12: -44 | Z12: 14
B13: 2022/ODD5/100 | C13: 2024-04-23 | D13: 2024-05-23 | E13: 113 | Z13: -143
B14: 2023/ODD1/251 | C14: 2024-06-07 | D14: 2024-07-07 | E14: 68 | Z14: -98
B15: 2023/ODD2/249 | C15: 2024-09-11 | D15: 2024-10-11 | E15: -28 | Z15: -2
B16: 2023/ODD3/110 | C16: 2024-07-13 | D16: 2024-08-12 | E16: 32 | Z16: -62
B17: 2023/ODD4/271 | C17: 2024-09-19 | D17: 2024-10-19 | E17: -36 | Z17: 6
B18: 2023/ODD5/296 | C18: 2024-06-10 | D18: 2024-07-10 | E18: 65 | Z18: -95
B19: 2023/ODD1/100 | C19: 2024-08-17 | D19: 2024-09-16 | E19: -3 | Z19: -27
B20: 2023/ODD2/126 | C20: 2024-05-12 | D20: 2024-06-11 | E20: 94 | Z20: -124
B21: 2023/ODD3/348 | C21: 2024-07-04 | D21: 2024-08-03 | E21: 41 | Z21: -71
B22: 2023/ODD4/207 | C22: 2024-08-23 | D22: 2024-09-22 | E22: -9 | Z22: -21
B23: 2022/ODD5/213 | C23: 2024-08-10 | D23: 2024-09-09 | E23: 4 | Z23: -34
B24: 2023/ODD1/232 | C24: =TODAY()+Z24 -> 2024-09-25 | D24: 2024-10-25 | E24: -42 | Z24: 12

Sheet 17
A11: Próg | B11: 7000
A13: Kraj odbiorcy | B13: Data sprzedaży | C13: Handlowiec | D13: Cena netto | E13: Ilość sztuk | F13: Wartość netto
A14: Polska | B14: 2023-04-28 | C14: Aleksander Pawlak | D14: 631 | E14: 6 | F14: =D14*E14 -> 3786
A15: Polska | B15: 2023-03-15 | C15: Aleksander Pawlak | D15: 337 | E15: 15 | F15: 5055
A16: Polska | B16: 2023-03-20 | C16: Aleksander Pawlak | D16: 799 | E16: 7 | F16: 5593
A17: Polska | B17: 2023-05-21 | C17: Aleksander Pawlak | D17: 244 | E17: 3 | F17: 732
A18: Polska | B18: 2023-09-04 | C18: Aleksander Pawlak | D18: 631 | E18: 6 | F18: 3786
A19: Polska | B19: 2023-09-14 | C19: Aleksander Pawlak | D19: 337 | E19: 15 | F19: 5055
A20: Polska | B20: 2023-08-26 | C20: Aleksander Pawlak | D20: 799 | E20: 7 | F20: 5593
A21: Polska | B21: 2023-09-01 | C21: Aleksander Pawlak | D21: 244 | E21: 3 | F21: 732
A22: Niemcy | B22: 2023-04-23 | C22: Ewelina Gładysz | D22: 382 | E22: 2 | F22: 764
A23: Polska | B23: 2023-02-06 | C23: Ewelina Gładysz | D23: 355 | E23: 40 | F23: 14200
A24: Polska | B24: 2023-05-04 | C24: Ewelina Gładysz | D24: 412 | E24: 1 | F24: 412
A25: Niemcy | B25: 2023-05-29 | C25: Ewelina Gładysz | D25: 303 | E25: 4 | F25: 1212
A26: Polska | B26: 2023-06-29 | C26: Ewelina Gładysz | D26: 215 | E26: 41 | F26: 8815
A27: Polska | B27: 2023-07-29 | C27: Ewelina Gładysz | D27: 640 | E27: 25 | F27: 16000
A28: Niemcy | B28: 2023-09-17 | C28: Ewelina Gładysz | D28: 382 | E28: 2 | F28: 764
A29: Polska | B29: 2023-08-17 | C29: Ewelina Gładysz | D29: 412 | E29: 1 | F29: 412
A30: Niemcy | B30: 2023-07-31 | C30: Ewelina Gładysz | D30: 303 | E30: 4 | F30: 1212
A31: Polska | B31: 2023-07-28 | C31: Ewelina Gładysz | D31: 215 | E31: 41 | F31: 8815
A32: Polska | B32: 2023-07-14 | C32: Ewelina Gładysz | D32: 640 | E32: 25 | F32: 16000
A33: Niemcy | B33: 2023-08-07 | C33: Gracjan Stępień | D33: 577 | E33: 15 | F33: 8655
A34: Niemcy | B34: 2023-07-15 | C34: Gracjan Stępień | D34: 577 | E34: 15 | F34: 8655
A35: Austria | B35: 2023-05-26 | C35: Gracjan Stępień | D35: 668 | E35: 58 | F35: 38744
A36: Polska | B36: 2023-02-25 | C36: Gracjan Stępień | D36: 588 | E36: 4 | F36: 2352
A37: Polska | B37: 2023-03-18 | C37: Gracjan Stępień | D37: 391 | E37: 3 | F37: 1173
A38: Niemcy | B38: 2023-07-16 | C38: Gracjan Stępień | D38: 491 | E38: 18 | F38: 8838
A39: Austria | B39: 2023-07-18 | C39: Gracjan Stępień | D39: 296 | E39: 25 | F39: 7400
A40: Polska | B40: 2023-07-19 | C40: Gracjan Stępień | D40: 737 | E40: 10 | F40: 7370
A41: Polska | B41: 2023-08-07 | C41: Gracjan Stępień | D41: 737 | E41: 10 | F41: 7370
A42: Austria | B42: 2023-09-23 | C42: Gracjan Stępień | D42: 668 | E42: 58 | F42: 38744
A43: Niemcy | B43: 2023-08-07 | C43: Julianna Krajewska | D43: 684 | E43: 6 | F43: 4104
A44: Polska | B44: 2023-09-11 | C44: Gracjan Stępień | D44: 588 | E44: 4 | F44: 2352
A45: Polska | B45: 2023-08-22 | C45: Gracjan Stępień | D45: 391 | E45: 3 | F45: 1173
A46: Niemcy | B46: 2023-07-27 | C46: Gracjan Stępień | D46: 491 | E46: 18 | F46: 8838
A47: Austria | B47: 2023-08-03 | C47: Gracjan Stępień | D47: 296 | E47: 25 | F47: 7400
A48: Polska | B48: 2023-06-10 | C48: Julianna Krajewska | D48: 293 | E48: 7 | F48: 2051
A49: Polska | B49: 2023-04-25 | C49: Julianna Krajewska | D49: 574 | E49: 23 | F49: 13202
A50: Polska | B50: 2023-03-09 | C50: Julianna Krajewska | D50: 581 | E50: 6 | F50: 3486
A51: Niemcy | B51: 2023-04-04 | C51: Julianna Krajewska | D51: 684 | E51: 6 | F51: 4104
A52: Polska | B52: 2023-06-28 | C52: Julianna Krajewska | D52: 218 | E52: 96 | F52: 20928
A53: Polska | B53: 2023-08-13 | C53: Julianna Krajewska | D53: 640 | E53: 36 | F53: 23040
A54: Polska | B54: 2023-08-18 | C54: Julianna Krajewska | D54: 293 | E54: 7 | F54: 2051
A55: Polska | B55: 2023-09-27 | C55: Ewelina Gładysz | D55: 355 | E55: 40 | F55: 14200
A56: Polska | B56: 2023-09-13 | C56: Julianna Krajewska | D56: 581 | E56: 6 | F56: 3486
A57: Polska | B57: 2023-09-27 | C57: Julianna Krajewska | D57: 574 | E57: 23 | F57: 13202
A58: Polska | B58: 2023-08-04 | C58: Julianna Krajewska | D58: 218 | E58: 96 | F58: 20928
A59: Polska | B59: 2023-08-09 | C59: Julianna Krajewska | D59: 640 | E59: 36 | F59: 23040
A60: Austria | B60: 2023-05-18 | C60: Tomasz Małecki | D60: 583 | E60: 4 | F60: 2332
A61: Austria | B61: 2023-07-21 | C61: Tomasz Małecki | D61: 583 | E61: 4 | F61: 2332

Sheet 18
B10: Miesiąc | C10: Średnie opady [mm] | D10: Średnia temperatura [℃]
B11: styczeń | C11: 33 | D11: 3
B12: luty | C12: 28 | D12: 5
B13: marzec | C13: 32 | D13: 12
B14: kwiecień | C14: 39 | D14: 15
B15: maj | C15: 53 | D15: 18
B16: czerwiec | C16: 51 | D16: 23
B17: lipiec | C17: 60 | D17: 21
B18: sierpień | C18: 55 | D18: 22
B19: wrzesień | C19: 47 | D19: 19
B20: październik | C20: 35 | D20: 10
B21: listopad | C21: 32 | D21: 11
B22: grudzień | C22: 37 | D22: 2

Sheet 19
B2: Data wypożyczenia | C2: Dzień wypożyczenia | D2: Nr rej samochodu | E2: Wartość wypożyczenia | F2: Płeć kierowcy | G2: Ubezpieczenie dodatkowe | J2: Łączna wartość wypożyczeń | K2: Łączna liczba wypożyczeń
B3: 2023-07-20 | C3: czwartek | D3: BIA2456 | E3: 776 | F3: kobieta | G3: nie | J3: =SUM(DANE[Wartość wypożyczenia]) -> 20057 | K3: =COUNTA(DANE[Data wypożyczenia]) -> 19
B4: 2023-07-20 | C4: czwartek | D4: EBE9320 | E4: 1149 | F4: mężczyzna | G4: tak
B5: 2023-07-20 | C5: czwartek | D5: PLE1142 | E5: 1384 | F5: mężczyzna | G5: tak
B6: 2023-07-21 | C6: piątek | D6: BIA2456 | E6: 701 | F6: brak danych | G6: nie
B7: 2023-07-22 | C7: sobota | D7: BKL0249 | E7: 1368 | F7: mężczyzna | G7: nie
B8: 2023-07-23 | C8: niedziela | D8: WML1442 | E8: 1414 | F8: brak danych | G8: nie
B9: 2023-07-24 | C9: poniedziałek | D9: BIA2456 | E9: 903 | F9: kobieta | G9: nie
B10: 2023-07-24 | C10: poniedziałek | D10: WML1442 | E10: 760 | F10: kobieta | G10: nie
B11: 2023-07-24 | C11: poniedziałek | D11: PLE1142 | E11: 1442 | F11: brak danych | G11: nie
B12: 2023-07-24 | C12: poniedziałek | D12: TSZ5683 | E12: 563 | F12: mężczyzna | G12: nie
B13: 2023-07-25 | C13: wtorek | D13: BKL0249 | E13: 542 | F13: mężczyzna | G13: tak
B14: 2023-07-26 | C14: środa | D14: BIA2456 | E14: 1453 | F14: kobieta | G14: nie
B15: 2023-07-27 | C15: czwartek | D15: BIA2456 | E15: 1132 | F15: brak danych | G15: nie
B16: 2023-07-28 | C16: piątek | D16: EBE9320 | E16: 649 | F16: mężczyzna | G16: nie
B17: 2023-07-28 | C17: piątek | D17: PLE1142 | E17: 1475 | F17: kobieta | G17: nie
B18: 2023-07-28 | C18: piątek | D18: TSZ5683 | E18: 785 | F18: kobieta | G18: nie
B19: 2023-07-28 | C19: piątek | D19: BKL0249 | E19: 1024 | F19: mężczyzna | G19: nie
B20: 2023-07-29 | C20: sobota | D20: WML1442 | E20: 1065 | F20: mężczyzna | G20: nie
B21: 2023-07-30 | C21: niedziela | D21: WML1443 | E21: 1472 | F21: mężczyzna | G21: nie
B22: Suma | E22: =SUBTOTAL(101,DANE[Wartość wypożyczenia]) -> 1024

Sheet 20
B3: Data wypożyczenia | C3: Dzień wypożyczenia | D3: Nr rej samochodu | E3: Wartość wypożyczenia | F3: Płeć kierowcy | G3: Ubezpieczenie dodatkowe
B4: 2023-07-20 | C4: czwartek | D4: BIA2456 | E4: 776 | F4: kobieta | G4: nie
B5: 2023-07-20 | C5: czwartek | D5: EBE9320 | E5: 1149 | F5: mężczyzna | G5: tak
B6: 2023-07-20 | C6: czwartek | D6: PLE1142 | E6: 1384 | F6: mężczyzna | G6: tak
B7: 2023-07-21 | C7: piątek | D7: BIA2456 | E7: 701 | F7: brak danych | G7: nie
B8: 2023-07-22 | C8: sobota | D8: BKL0249 | E8: 1368 | F8: mężczyzna | G8: nie
B9: 2023-07-23 | C9: niedziela | D9: WML1442 | E9: 1414 | F9: brak danych | G9: nie
B10: 2023-07-24 | C10: poniedziałek | D10: BIA2456 | E10: 903 | F10: kobieta | G10: nie
B11: 2023-07-24 | C11: poniedziałek | D11: WML1442 | E11: 760 | F11: kobieta | G11: nie
B12: 2023-07-24 | C12: poniedziałek | D12: PLE1142 | E12: 1442 | F12: brak danych | G12: nie
B13: 2023-07-24 | C13: poniedziałek | D13: TSZ5683 | E13: 563 | F13: mężczyzna | G13: nie
B14: 2023-07-25 | C14: wtorek | D14: BKL0249 | E14: 542 | F14: mężczyzna | G14: tak
B15: 2023-07-26 | C15: środa | D15: BIA2456 | E15: 1453 | F15: kobieta | G15: nie
B16: 2023-07-27 | C16: czwartek | D16: BIA2456 | E16: 1132 | F16: brak danych | G16: nie
B17: 2023-07-28 | C17: piątek | D17: EBE9320 | E17: 649 | F17: mężczyzna | G17: nie
B18: 2023-07-28 | C18: piątek | D18: PLE1142 | E18: 1475 | F18: kobieta | G18: nie
B19: 2023-07-28 | C19: piątek | D19: TSZ5683 | E19: 785 | F19: kobieta | G19: nie
B20: 2023-07-28 | C20: piątek | D20: BKL0249 | E20: 1024 | F20: mężczyzna | G20: nie
B21: 2023-07-29 | C21: sobota | D21: WML1442 | E21: 1065 | F21: mężczyzna | G21: nie
B22: 2023-07-30 | C22: niedziela | D22: WML1443 | E22: 1472 | F22: mężczyzna | G22: nie
B23: 2023-08-01 | C23: wtorek | D23: BIA2456 | E23: 954 | F23: kobieta | G23: nie
B24: 2023-08-02 | C24: środa | D24: EBE9320 | E24: 1306 | F24: kobieta | G24: tak
B25: 2023-08-02 | C25: środa | D25: PLE1142 | E25: 806 | F25: brak danych | G25: nie
B26: 2023-08-02 | C26: środa | D26: BIA2456 | E26: 883 | F26: mężczyzna | G26: nie
B27: 2023-08-03 | C27: czwartek | D27: BKL0249 | E27: 1443 | F27: mężczyzna | G27: nie
B28: 2023-08-04 | C28: piątek | D28: WML1442 | E28: 1492 | F28: kobieta | G28: nie
B29: 2023-08-05 | C29: sobota | D29: BIA2456 | E29: 696 | F29: brak danych | G29: nie
B30: 2023-08-06 | C30: niedziela | D30: WML1442 | E30: 770 | F30: mężczyzna | G30: tak
B31: 2023-08-07 | C31: poniedziałek | D31: PLE1142 | E31: 1084 | F31: kobieta | G31: nie
B32: 2023-08-07 | C32: poniedziałek | D32: BIA2456 | E32: 690 | F32: kobieta | G32: nie
B33: 2023-08-07 | C33: poniedziałek | D33: EBE9320 | E33: 794 | F33: brak danych | G33: nie
B34: 2023-08-07 | C34: poniedziałek | D34: WML1442 | E34: 622 | F34: mężczyzna | G34: nie
B35: 2023-08-08 | C35: wtorek | D35: BIA2456 | E35: 1144 | F35: mężczyzna | G35: tak

Sheet Raport
B3: Dane | D3: Płeć kierowcy
B4: Ubezpieczenie dodatkowe | C4: Nr rej samochodu | D4: kobieta | E4: mężczyzna | F4: brak danych
B5: tak | C5: BIA2456 | E5: 1144
C6: BKL0249 | E6: 542
C7: EBE9320 | D7: 1306 | E7: 1149
C8: PLE1142 | E8: 1384
C9: WML1442 | E9: 770
B10: tak Suma | D10: 1306 | E10: 4989
B11: nie | C11: BIA2456 | D11: 4776 | E11: 883 | F11: 2529
C12: BKL0249 | E12: 3835
C13: EBE9320 | E13: 649 | F13: 794
C14: PLE1142 | D14: 2559 | F14: 2248
C15: TSZ5683 | D15: 785 | E15: 563
C16: WML1442 | D16: 2252 | E16: 1687 | F16: 1414
C17: WML1443 | E17: 1472
B18: nie Suma | D18: 10372 | E18: 9089 | F18: 6985
B19: Suma końcowa | D19: 11678 | E19: 14078 | F19: 6985

Sheet PODSUMOWANIE ŚREDNI

Sheet ZAAWANSOWANY
B1: Instrukcja do testu Excel - Poziom Zaawansowany
B3: Test składa się z 10 arkuszy oznaczonych kolorem szarym i obejmuje zagadnienia, które omawiane są na szkoleniu z Excela zaawansowanego.
B5: Oto kilka ważnych wskazówek:
B6: Czas | C6: Staraj się wykonywać zadania sprawnie maksymalnie w przeciągu 35-40 min.
C7: Jeśli potrzebujesz więcej czasu na rozwiązanie, oznaczać to może, że jeszcze niektóre czynności wymagają przećwiczenia, aby stały się bardziej intuicyjne.
B9: Samodzielność | C9: Rozwiązuj zadania samodzielnie, bez korzystania z pomocy kolegów, koleżanek lub innych zasobów wiedzy, w tym stron internetowych.
B11: Intuicja | C11: Wykonuj zadania intuicyjnie, tak jak na co dzień korzystasz z programu Excel.
C12: Warto, abyś wykonywał zadania w sposób mechaniczny, aby ocenić swoje faktyczne umiejętności z zakresu zaawansowanego Excela.
B14: Samodzielna ocena | C14: Po zakończeniu testu, spróbuj samodzielnie ocenić, które zadania wykonujesz poprawnie.
C15: Ewentualnie, możesz skorzystać z pliku "Rozwiązany test poziomujący z Excela" dla samokontroli. Natomiast pamiętaj, że do poprawnego wyniku
C16: może prowadzić kilka dróg, więc jeśli uzyskasz te same wyniki, ale innymi metodami to nie oznacza, że rozwiązałeś zadanie źle.
B18: Zakończenie | C18: Gdy już rozwiążesz swój test, przejdź do arkusza "PODSUMOWANIE ZAAWANSOWANY"
B20: Gotowy? Świetnie! Rozpocznij test!
B22: Pamiętaj, że praktyka czyni mistrza, więc niezależnie od wyników, każde podejście do nauki Excela przyniesie Ci cenne doświadczenie.

Sheet 21
B2: Miejscowość | C2: Typ | D2: Powierzchnia m2 | E2: Liczba pomieszczeń | F2: Cena za m2 | G2: Etap
B3: Słupsk | C3: Dom | D3: 132 | E3: 5 | F3: 6664 | G3: SPRZEDANE
B4: =B3 -> Słupsk | C4: Mieszkanie | D4: 88.38995228 | E4: 4 | F4: 12764 | G4: W TOKU
B5: =B4 -> Słupsk | C5: =C4 -> Mieszkanie | D5: 65.07630519 | E5: 6 | F5: 7636 | G5: =G4 -> W TOKU
B6: Gdańsk | C6: Dom | D6: 116.7315549 | E6: 4 | F6: 12127 | G6: =G5 -> W TOKU
B7: =B6 -> Gdańsk | C7: =C6 -> Dom | D7: 93.18567918 | E7: 3 | F7: 13259 | G7: SPRZEDANE
B8: Gdańsk | C8: =C7 -> Dom | D8: 111.0063283 | E8: 4 | F8: 9740 | G8: =G7 -> SPRZEDANE
B9: Gdańsk | C9: =C8 -> Dom | D9: 280 | E9: 6 | F9: 13283 | G9: =G8 -> SPRZEDANE
B10: Gdańsk | C10: =C9 -> Dom | D10: 128.3398795 | E10: 5 | F10: 12650 | G10: =G9 -> SPRZEDANE
B11: Gdańsk | C11: Mieszkanie | D11: 28.29824306 | E11: 4 | F11: 8463 | G11: W TOKU
B12: Gdańsk | C12: =C11 -> Mieszkanie | D12: 50.65799161 | E12: 2 | F12: 10272 | G12: =G11 -> W TOKU
B13: Gdańsk | C13: Mieszkanie | D13: 26.79411234 | E13: 4 | F13: 9068 | G13: W TOKU
B14: Gdańsk | C14: Mieszkanie | D14: 22.12343865 | E14: 6 | F14: 9298 | G14: W TOKU
B15: Gdańsk | C15: Mieszkanie | D15: 46.52015131 | E15: 3 | F15: 7924 | G15: W TOKU
B16: Gdańsk | C16: Mieszkanie | D16: 35.08362899 | E16: 2 | F16: 10850 | G16: W TOKU
B17: Gdańsk | C17: Mieszkanie | D17: 28.21642645 | E17: 3 | F17: 9514 | G17: W TOKU
B18: Gdańsk | C18: Mieszkanie | D18: 47.64577585 | E18: 2 | F18: 11642 | G18: W TOKU
B19: Gdańsk | C19: Mieszkanie | D19: 39.16272287 | E19: 2 | F19: 7538 | G19: W TOKU
B20: Gdańsk | C20: Mieszkanie | D20: 53.29759671 | E20: 5 | F20: 14420 | G20: W TOKU
B21: Gdańsk | C21: Mieszkanie | D21: 80.05103947 | E21: 3 | F21: 10441 | G21: SPRZEDANE
B22: Gdańsk | C22: Garaż | D22: 34.41684605 | E22: 1 | F22: 6699 | G22: =G21 -> SPRZEDANE
B23: =B22 -> Gdańsk | C23: Garaż | D23: 19.60512465 | E23: 1 | F23: 13991 | G23: =G22 -> SPRZEDANE
B24: Gdańsk | C24: Garaż | D24: 64.86640719 | E24: 2 | F24: 6289 | G24: =G23 -> SPRZEDANE
B25: Gdańsk | C25: Garaż | D25: 36.12718985 | E25: 1 | F25: 10718 | G25: =G24 -> SPRZEDANE
B26: Gdańsk | C26: Garaż | D26: 59.49749583 | E26: 1 | F26: 9228 | G26: =G25 -> SPRZEDANE
B27: Łódź | C27: Dom | D27: 138.0758091 | E27: 6 | F27: 9047 | G27: W TOKU
B28: =B27 -> Łódź | C28: Dom | D28: 126 | E28: 4 | F28: 14451 | G28: =G27 -> W TOKU
B29: Łódź | C29: Dom | D29: 131.9468888 | E29: 5 | F29: 11386 | G29: W TOKU
B30: Łódź | C30: Dom | D30: 94.25161061 | E30: 3 | F30: 14927 | G30: W TOKU
B31: =B30 -> Łódź | C31: Mieszkanie | D31: 41.19363587 | E31: 5 | F31: 9200 | G31: W TOKU
B32: =B31 -> Łódź | C32: Mieszkanie | D32: 87.36545551 | E32: 3 | F32: 8014 | G32: W TOKU
B33: Łódź | C33: Mieszkanie | D33: 61.15104875 | E33: 5 | F33: 14611 | G33: W TOKU
B34: Łódź | C34: Mieszkanie | D34: 32.3048537 | E34: 2 | F34: 6493 | G34: W TOKU
B35: Łódź | C35: Mieszkanie | D35: 22.52214228 | E35: 1 | F35: 12170 | G35: W TOKU
B36: Łódź | C36: Mieszkanie | D36: 18.69888532 | E36: 1 | F36: 14007 | G36: SPRZEDANE
B37: Łódź | C37: Mieszkanie | D37: 34.86112402 | E37: 0 | F37: 13953 | G37: =G36 -> SPRZEDANE
B38: Łódź | C38: Mieszkanie | D38: 60.50653157 | E38: 3 | F38: 13669 | G38: =G37 -> SPRZEDANE
B39: Kraków | C39: Dom | D39: 250 | E39: 7 | F39: 10504 | G39: W TOKU
B40: =B39 -> Kraków | C40: Mieszkanie | D40: 80.41071782 | E40: 3 | F40: 11204 | G40: =G39 -> W TOKU
B41: Kraków | C41: =C40 -> Mieszkanie | D41: 72.54759515 | E41: 6 | F41: 14098 | G41: W TOKU
B42: Kraków | C42: Mieszkanie | D42: 69.71019676 | E42: 6 | F42: 14687 | G42: W TOKU
B43: Kraków | C43: Mieszkanie | D43: 26.20826607 | E43: 4 | F43: 14942 | G43: W TOKU
B44: Kraków | C44: Mieszkanie | D44: 43.59738949 | E44: 1 | F44: 14052 | G44: W TOKU
B45: Kraków | C45: Mieszkanie | D45: 35.98076593 | E45: 4 | F45: 14566 | G45: W TOKU
B46: Kraków | C46: Mieszkanie | D46: 27.62595314 | E46: 1 | F46: 7757 | G46: SPRZEDANE
B47: Kraków | C47: Mieszkanie | D47: 72.24518067 | E47: 3 | F47: 10728 | G47: =G46 -> SPRZEDANE
B48: Kraków | C48: Garaż | D48: 62.91963295 | E48: 1 | F48: 10570 | G48: =G47 -> SPRZEDANE
B49: =B48 -> Kraków | C49: =C48 -> Garaż | D49: 67.1821716 | E49: 2 | F49: 10674 | G49: =G48 -> SPRZEDANE
B50: =B49 -> Kraków | C50: =C49 -> Garaż | D50: 34.37792991 | E50: 1 | F50: 14718 | G50: =G49 -> SPRZEDANE
B51: Poznań | C51: Dom | D51: 91.49224699 | E51: 4 | F51: 8408 | G51: SPRZEDANE
B52: =B51 -> Poznań | C52: Mieszkanie | D52: 30.60375224 | E52: 3 | F52: 11960 | G52: W TOKU
B53: =B52 -> Poznań | C53: =C52 -> Mieszkanie | D53: 26.91863604 | E53: 1 | F53: 8838 | G53: =G52 -> W TOKU
B54: Poznań | C54: Mieszkanie | D54: 23.86647573 | E54: 4 | F54: 7381 | G54: W TOKU
B55: Poznań | C55: Mieszkanie | D55: 53.90557045 | E55: 6 | F55: 14234 | G55: W TOKU
B56: Poznań | C56: Mieszkanie | D56: 81.87624638 | E56: 4 | F56: 8161 | G56: W TOKU
B57: Poznań | C57: Mieszkanie | D57: 25.83025703 | E57: 1 | F57: 6376 | G57: W TOKU
B58: Poznań | C58: Mieszkanie | D58: 61.33062302 | E58: 5 | F58: 14651 | G58: W TOKU
B59: Poznań | C59: Mieszkanie | D59: 68.6097665 | E59: 3 | F59: 13206 | G59: W TOKU
B60: Poznań | C60: Mieszkanie | D60: 21.69882473 | E60: 1 | F60: 7412 | G60: W TOKU
B61: Poznań | C61: Mieszkanie | D61: 25.67216273 | E61: 3 | F61: 9508 | G61: SPRZEDANE
B62: Poznań | C62: Mieszkanie | D62: 29.86817652 | E62: 1 | F62: 7598 | G62: =G61 -> SPRZEDANE
B63: Lublin | C63: Mieszkanie | D63: 21.67068609 | E63: 4 | F63: 9447 | G63: W TOKU
B64: =B63 -> Lublin | C64: =C63 -> Mieszkanie | D64: 78.13707992 | E64: 3 | F64: 12411 | G64: =G63 -> W TOKU
B65: =B64 -> Lublin | C65: =C64 -> Mieszkanie | D65: 38.95808316 | E65: 1 | F65: 11649 | G65: SPRZEDANE
B66: Zielona Góra | C66: Dom | D66: 160.54 | E66: 5 | F66: 7723 | G66: W TOKU
B67: =B66 -> Zielona Góra | C67: =C66 -> Dom | D67: 93.74803458 | E67: 4 | F67: 12087 | G67: =G66 -> W TOKU
B68: =B67 -> Zielona Góra | C68: Mieszkanie | D68: 47.99856364 | E68: 5 | F68: 10957 | G68: =G67 -> W TOKU
B69: =B68 -> Zielona Góra | C69: Mieszkanie | D69: 42.45685446 | E69: 3 | F69: 12510 | G69: =G68 -> W TOKU
B70: Zielona Góra | C70: Mieszkanie | D70: 43.91701645 | E70: 2 | F70: 14929 | G70: =G69 -> W TOKU
B71: Zielona Góra | C71: Mieszkanie | D71: 71.88734456 | E71: 5 | F71: 8446 | G71: SPRZEDANE
B72: Koszalin | C72: Dom | D72: 98.17903282 | E72: 5 | F72: 14132 | G72: W TOKU
B73: =B72 -> Koszalin | C73: Dom | D73: 94.69654183 | E73: 4 | F73: 8194 | G73: SPRZEDANE
B74: Koszalin | C74: Dom | D74: 170.9252927 | E74: 6 | F74: 10110 | G74: =G73 -> SPRZEDANE
B75: Koszalin | C75: Dom | D75: 90.45801813 | E75: 4 | F75: 6932 | G75: =G74 -> SPRZEDANE
B76: =B75 -> Koszalin | C76: Mieszkanie | D76: 42.00807522 | E76: 1 | F76: 12268 | G76: W TOKU
B77: =B76 -> Koszalin | C77: Mieszkanie | D77: 19.84964044 | E77: 2 | F77: 13709 | G77: =G76 -> W TOKU
B78: Koszalin | C78: Mieszkanie | D78: 37.66785437 | E78: 4 | F78: 6112 | G78: =G77 -> W TOKU
B79: Koszalin | C79: Mieszkanie | D79: 88.83789618 | E79: 3 | F79: 14699 | G79: =G78 -> W TOKU
B80: Koszalin | C80: Mieszkanie | D80: 30.40984855 | E80: 2 | F80: 8562 | G80: =G79 -> W TOKU
B81: Koszalin | C81: Mieszkanie | D81: 29.47183244 | E81: 1 | F81: 12514 | G81: =G80 -> W TOKU
B82: Koszalin | C82: Mieszkanie | D82: 34.10395666 | E82: 3 | F82: 11181 | G82: SPRZEDANE
B83: Koszalin | C83: Mieszkanie | D83: 64.07879619 | E83: 2 | F83: 8346 | G83: =G82 -> SPRZEDANE

Sheet 22
A1: Nazwa | B1: Nazwa | C1: Nazwa | D1: Nazwa
A2: *czarn* | B2: *gniazdo* | C2: *Rj12* | D2: *gwarancja 7 lat*
A6: Indeks | B6: Nazwa | C6: J.m. | D6: Wartość księgowa
A7: C-2XPWCHS | B7: Łącznik zwierny podwójny 6A 250V, 86 x 86 mm (stal nierdzewna), montaż podtynkowy - kolor stal szlifowana, Linia Metal Modern Loft - Gwarancja 7 lat | C7: szt | D7: 78.11
A8: C-3XPWCHS | B8: Łącznik zwierny potrójny 6A 250V, 86 x 148 mm (stal nierdzewna), montaż podtynkowy - kolor stal szlifowana, Linia Metal Modern Loft - Gwarancja 7 lat | C8: szt | D8: 141.88
A9: C-4XPWCHS | B9: Łącznik zwierny poczwórny 6A 250V, 86 x 148 mm (stal nierdzewna), montaż podtynkowy - kolor stal szlifowana, Linia Metal Modern Loft - Gwarancja 7 lat | C9: szt | D9: 106.82
A10: C-COVER-S | B10: Zaślepka metalowa pojedyncza 86 x 86 mm - kolor stal szlifowana, Linia Metal Modern Loft | C10: szt | D10: 0
A11: C-E1CHS | B11: Łącznik zwierny 10A 250V klawiszowy 86 x 86 mm (stal nierdzewna), montaż podtynkowy - kolor stal szlifowana, Linia Metal Modern Loft - Gwarancja 7 lat | C11: szt | D11: 0
A12: C-E1KSS | B12: Łącznik krzyżowy 10A 230V klawiszowy 86 x 86 mm (stal nierdzewna), montaż podtynkowy - kolor stal szlifowana, Linia Metal Modern Loft - Gwarancja 7 lat | C12: szt | D12: 21.38
A13: C-E1SS | B13: Łącznik uniwersalny schodowy 10A 230V klawiszowy 86 x 86 mm (stal nierdzewna), montaż podtynkowy - kolor stal szlifowana, Linia Metal Modern Loft - Gwarancja 7 lat | C13: szt | D13: 74
A14: C-E1SS+E1KSS | B14: Łącznik krzyżowy 10A 230V + łącznik uniwersalny schodowy 10A 230V klawiszowy 86 x 86 mm (stal nierdzewna), montaż podtynkowy - kolor stal szlifowana, Linia Metal Modern Loft - Gwarancja 7 lat | C14: szt | D14: 145.31
A15: C-E1SS-2POLE | B15: Łącznik dwubiegunowy 20A 250V klawiszowy 86 x 86 mm (stal nierdzewna), montaż podtynkowy - kolor stal szlifowana, Linia Metal Modern Loft - Gwarancja 7 lat | C15: szt | D15: 60.29
A16: C-E1SS-R | B16: Łącznik uniwersalny schodowy 6A 230V, 86 x 86 mm (stal nierdzewna), montaż podtynkowy - kolor stal szlifowana, Linia Metal Modern Loft - Gwarancja 7 lat | C16: szt | D16: 82.42
A17: C-E1SS-SLIM | B17: Łącznik uniwersalny schodowy 10A 230V klawiszowy SLIM 87 x 32 mm (stal nierdzewna), montaż podtynkowy - kolor stal szlifowana, Linia Metal Modern Loft - Gwarancja 7 lat | C17: szt | D17: 54.33
A18: C-E2CHS | B18: Łącznik zwierny podwójny 10A 250V klawiszowy 86 x 86 mm (stal nierdzewna), montaż podtynkowy - kolor stal szlifowana, Linia Metal Modern Loft - Gwarancja 7 lat | C18: szt | D18: 0
A19: C-E2SS | B19: Łącznik uniwersalny schodowy podwójny 10A 230V klawiszowy 86 x 86 mm (stal nierdzewna), montaż podtynkowy - kolor stal szlifowana, Linia Metal Modern Loft - Gwarancja 7 lat | C19: szt | D19: 71.68
A20: C-E2SS-R | B20: Łącznik uniwersalny schodowy podwójny 6A 230V, 86 x 86 mm (stal nierdzewna), montaż podtynkowy - kolor stal szlifowana, Linia Metal Modern Loft - Gwarancja 7 lat | C20: szt | D20: 105.93
A21: C-E3.1S | B21: Łącznik uniwersalny schodowy potrójny 10A 250V klawiszowy 86 x 148 mm (stal nierdzewna), montaż podtynkowy - kolor stal szlifowana, Linia Metal Modern Loft - Gwarancja 7 lat | C21: szt | D21: 171.27
A22: C-E3.1S-R | B22: Łącznik schodowy potrójny 6A 230V, 86 x 148 mm (stal nierdzewna), montaż podtynkowy - kolor stal szlifowana, Linia Metal Modern Loft - Gwarancja 7 lat | C22: szt | D22: 111.67
A23: C-E3.2S | B23: Łącznik uniwersalny schodowy sześciokrotny 10A 230V klawiszowy 86 x 148 mm (stal nierdzewna), montaż podtynkowy - kolor stal szlifowana, Linia Metal Modern Loft - Gwarancja 7 lat | C23: szt | D23: 205.13
A24: C-E3CHS | B24: Łącznik zwierny potrójny 10A 250V klawiszowy 86 x 148 mm (stal nierdzewna), montaż podtynkowy - kolor stal szlifowana, Linia Metal Modern Loft - Gwarancja 7 lat | C24: szt | D24: 0
A25: C-E3SS | B25: Łącznik uniwersalny schodowy potrójny 10A 230V klawiszowy 86 x 86 mm (stal nierdzewna), montaż podtynkowy - kolor stal szlifowana, Linia Metal Modern Loft - Gwarancja 7 lat | C25: szt | D25: 69.94
A26: C-E4.1S | B26: Łącznik uniwersalny schodowy poczwórny 10A 230V klawiszowy 86 x 148 mm (stal nierdzewna), montaż podtynkowy - kolor stal szlifowana, Linia Metal Modern Loft - Gwarancja 7 lat | C26: szt | D26: 70.88
A27: C-E4.1S-R | B27: Łącznik uniwersalny schodowy poczwórny 6A 230V, 86 x 148 mm (stal nierdzewna), montaż podtynkowy - kolor stal szlifowana, Linia Metal Modern Loft - Gwarancja 7 lat | C27: szt | D27: 124.52
A28: C-E4CHS | B28: Łącznik zwierny poczwórny 10A 250V klawiszowy 86 x 148 mm (stal nierdzewna), montaż podtynkowy - kolor stal szlifowana, Linia Metal Modern Loft - Gwarancja 7 lat | C28: szt | D28: 0
A29: C-ET1KSS | B29: Łącznik krzyżowy 10A 230V dźwigniowy 86 x 86 mm (stal nierdzewna), montaż podtynkowy - kolor stal szlifowana, Linia Metal Modern Loft - Gwarancja 7 lat | C29: szt | D29: 46.63
A30: C-ET1SS | B30: Łącznik uniwersalny schodowy 10A 230V dźwigniowy 86 x 86 mm (stal nierdzewna), montaż podtynkowy - kolor stal szlifowana, Linia Metal Modern Loft - Gwarancja 7 lat | C30: szt | D30: 214.39
A31: C-ET1SS-SLIM | B31: Łącznik uniwersalny schodowy 10A 230V dźwigniowy SLIM 87 x 32 mm (stal nierdzewna), montaż podtynkowy - kolor stal szlifowana, Linia Metal Modern Loft - Gwarancja 7 lat | C31: szt | D31: 126.75
A32: C-ET2SS | B32: Łącznik uniwersalny schodowy podwójny 10A 230V dźwigniowy 86 x 86 mm (stal nierdzewna), montaż podtynkowy - kolor stal szlifowana, Linia Metal Modern Loft - Gwarancja 7 lat | C32: szt | D32: 19.35
A33: C-ET3SS | B33: Łącznik uniwersalny schodowy potrójny 10A 230V dźwigniowy 86 x 86 mm (stal nierdzewna), montaż podtynkowy - kolor stal szlifowana, Linia Metal Modern Loft - Gwarancja 7 lat | C33: szt | D33: 68.46
A34: C-ET4.1S | B34: Łącznik uniwersalny schodowy poczwórny 10A 230V dźwigniowy 86 x 148 mm (stal nierdzewna), montaż podtynkowy - kolor stal szlifowana, Linia Metal Modern Loft - Gwarancja 7 lat | C34: szt | D34: 78.11
A35: C-F1-S | B35: Ramka metalowa pojedyncza 86 x 86 mm (stal nierdzewna lakierowana) - kolor stal szlifowana, Linia Metal Modern Loft - Gwarancja 7 lat | C35: szt | D35: 28.31
A36: C-F1-SLIM-S | B36: Ramka metalowa pojedyncza SLIM 86 x 86 mm (stal nierdzewna) - kolor stal szlifowana, Linia Metal Modern Loft - Gwarancja 7 lat | C36: szt | D36: 70.79
A37: C-F2-S | B37: Ramka metalowa podwójna 88 x 148 mm (stal nierdzewna) - kolor stal szlifowana, Linia Metal Modern Loft - Gwarancja 7 lat | C37: szt | D37: 92.81
A38: C-G1P.2S-B-DD | B38: Gniazdo wtyczkowe podwójne z uziemieniem z przesłonami torów prądowych 16A 250V, 88 x 148 mm - kolor stal szlifowana + kołnierz wewnętrzny czarny, Linia Metal Modern Loft | C38: szt | D38: 0
A39: C-G1PS-B-DD | B39: Gniazdo wtyczkowe pojedyncze z uziemieniem z przesłonami torów prądowych 16A 250V, 86 x 86 mm - kolor stal szlifowana + kołnierz wewnętrzny czarny, Linia Metal Modern Loft | C39: szt | D39: 0
A40: C-G1S.2S-B-DD | B40: Gniazdo wtyczkowe podwójne z uziemieniem typu Schuko z przesłonami torów prądowych 16A 250V, 88 x 148 mm - kolor stal szlifowana + kołnierz wewnętrzny czarny, Linia Metal Modern Loft | C40: szt | D40: 0
A41: C-PRO-120-LED-LT-S | B41: Ściemniacz przyciskowo-obrotowy do LED 120W (leading / trailing edge) 86 x 86 mm (stal nierdzewna), montaż podtynkowy - kolor stal szlifowana, Linia Metal Modern Loft - Gwarancja 7 lat | C41: szt | D41: 0
A42: C-PRO-2X120-LED-LT-S | B42: Ściemniacz podwójny przyciskowo-obrotowy do LED 2 x 120W (leading / trailing edge) 86 x 86 mm (stal nierdzewna), montaż podtynkowy - kolor stal szlifowana, Linia Metal Modern Loft - Gwarancja 7 lat | C42: szt | D42: 0
A43: C-PWCHS | B43: Łącznik zwierny 6A 250V, 86 x 86 mm (stal nierdzewna), montaż podtynkowy - kolor stal szlifowana, Linia Metal Modern Loft - Gwarancja 7 lat | C43: szt | D43: 91.08
A44: C-RTV-S | B44: Gniazdo antenowe RTV, 86 x 86 mm (stal nierdzewna), montaż podtynkowy - kolor stal szlifowana, Linia Metal Modern Loft - Gwarancja 7 lat | C44: szt | D44: 229.93
A45: C-TV-S | B45: Gniazdo antenowe TV, 86 x 86 mm (stal nierdzewna), montaż podtynkowy - kolor stal szlifowana, Linia Metal Modern Loft - Gwarancja 7 lat | C45: szt | D45: 73.51
A46: C-TVSAT-S | B46: Gniazdo antenowe TV+SAT, 86 x 86 mm (stal nierdzewna), montaż podtynkowy - kolor stal szlifowana, Linia Metal Modern Loft - Gwarancja 7 lat | C46: szt | D46: 0
A47: E-ETYKIETA-VARMANT-LINIA-METAL-V1 | B47: E-ETYKIETA-VARMANT-LINIA METAL-V1 | C47: szt | D47: 824.4
A48: E-ETYKIETA-VARMANT-LINIA-METAL-V1-X2 | B48: ETYKIETA VARMANT LINIA METAL Podwójna | C48: szt | D48: 757
A49: F-XDIG1S-D&T | B49: Front pojedynczy Data Grid (z blachą i śrubkami), 86x86mm, czarne irydium, Linia Metal | C49: szt | D49: 0
A50: F-XDIG2S-D&T | B50: Front podwójny Data Grid (z blachą i śrubkami), 86x86mm, czarne irydium, Linia Metal | C50: szt | D50: 0
A51: F-XDSG1S-D&T | B51: Front pojedynczy Data Grid (z blachą i śrubkami), 86x86mm, stal szlifowana, Linia Metal | C51: szt | D51: 0
A52: F-XDSG2S-D&T | B52: Front podwójny Data Grid (z blachą i śrubkami), 86x86mm, stal szlifowana, Linia Metal | C52: szt | D52: 0
A53: F-XEID2S-D&T | B53: Front podwójny gniazd RJ12/ RJ45, czarne irydium (z blachą i pazurami), Linia Metal | C53: szt | D53: 77.61
A54: F-XEVD1S-D&T | B54: Front pojedynczy gniazd RJ12/ RJ45, mosiądz polerowany (z blachą i pazurami), Linia Metal | C54: szt | D54: 0
A55: F-XEVD2S-D&T | B55: Front podwójny gniazd RJ12/ RJ45, mosiądz polerowany (z blachą i pazurami), Linia Metal | C55: szt | D55: 0
A56: F-XEYD2S.MB-D&T | B56: Front podwójny gniazd RJ12/ RJ45, czarny mat (z blachą i pazurami), Linia Metal | C56: szt | D56: 0
A57: G0001-D&T | B57: Ściemniacz dotykowy/na pilota IR podwójny, 86 x 86 mm (stal nierdzewna), montaż podtynkowy - kolor mosiądz szlifowany, Linia Metal - Gwarancja 5 lat | C57: szt | D57: 0
A58: G0002-D&T | B58: Łącznik uniwersalny schodowy 10A 230V dźwigniowy 86 x 86 mm , montaż podtynkowy - kolor czarny mat + mosiądz, Linia Metal - Gwarancja 7 lat | C58: szt | D58: 0
A59: G0003-D&T | B59: Łącznik krzyżowy 10A 230V klawiszowy 86 x 86 mm (stal nierdzewna), montaż podtynkowy - kolor czarny mat + mosiądz szlifowany, Linia Metal - Gwarancja 7 lat | C59: szt | D59: 0
A60: G0004-D&T | B60: Łącznik uniwersalny schodowy 10A 230V klawiszowy 86 x 86 mm (stal nierdzewna), kolor czarny mat + klawisz mosiądz, Linia Metal | C60: szt | D60: 0
A61: G0005-D&T | B61: Łącznik uniwersalny schodowy potrójny 10A 230V klawiszowy 86 x 147 mm (stal nierdzewna), montaż podtynkowy - kolor czarny mat + mosiądz, Linia Metal - Gwarancja 7 lat | C61: szt | D61: 0
A62: G0006-D&T | B62: Gniazdo HDMI podwójne 86 x 86 mm, kolor czarne irydium (stal nierdzewna) + moduł biały, Linia Metal | C62: szt | D62: 0
A63: G0007-D&T | B63: Gniazdo HDMI podwójne 86 x 86 mm, kolor stal szlifowana (stal nierdzewna) + moduł biały, Linia Metal | C63: szt | D63: 0
A64: G0008-D&T | B64: Gniazdo wtyczkowe podwójne z uziemieniem z przesłonami torów prądowych 16A 250V (stal nierdzewna), 91 x 150 mm - kolor miedź szlifowana + kołnierz wewnętrzny czarny. Linia Metal Modern | C64: szt | D64: 0
A65: G0010-D&T | B65: Łącznik uniwersalny schodowy 10A 230V dźwigniowy 86 x 86 mm (stal nierdzewna), montaż podtynkowy - kolor czarny mat + chrom polerowany, Linia Metal - Gwarancja 7 lat | C65: szt | D65: 0
A66: G0012-D&T | B66: Łącznik zwierny potrójny 10A 250V klawiszowy 86 x 147 mm (stal nierdzewna), montaż podtynkowy - kolor stal szlifowana, Linia Metal - Gwarancja 7 lat | C66: szt | D66: 0
A67: IDSI402MS-D&T | B67: Ściemniacz dotykowy/na pilota IR podwójny, 86 x 86 mm (stal nierdzewna), montaż podtynkowy - kolor stal szlifowana, Linia Metal - Gwarancja 5 lat | C67: szt | D67: 0
A68: KAT-LINIA_METAL-PL | B68: Katalog Linia Metal wersja polska | C68: szt | D68: 0
A69: M-1107-SP-D&T | B69: Gniazdo wtyczkowe pojedyncze z uziemieniem typu Schuko z przesłonami torów prądowych 16A 250V (stal nierdzewna), 86 x 86 mm, montaż podtynkowy - kolor stal szlifowana + kołnierz zewnętrzny szary, Linia Metal - Gwarancja 7 lat | C69: szt | D69: 0
A70: M-ET1SZ | B70: Łącznik uniwersalny schodowy 10A 230V dźwigniowy 91 x 91 mm, montaż podtynkowy - kolor złoto szlifowane, Linia Metal - Gwarancja 7 lat | C70: szt | D70: 57.52
A71: MET2XGLOSFB-B | B71: Gniazdo głośnikowe pojedyncze typu banan (do podłączenia 1 kolumny głośnikowej) 86 x 86 mm, montaż podtynkowy - kolor mosiądz szlifowany (stal nierdzewna lakierowana) + moduł czarny, Linia Metal - Gwarancja 7 lat | C71: szt | D71: 0
A72: MET2XGLOSFBM-B | B72: Gniazdo głośnikowe pojedyncze typu banan (do podłączenia 1 kolumny głośnikowej) 86 x 86 mm, montaż podtynkowy - kolor czarny mat (stal nierdzewna lakierowana) + moduł czarny, Linia Metal - Gwarancja 7 lat | C72: szt | D72: 0
A73: MET2XGLOSFI-B | B73: Gniazdo głośnikowe pojedyncze typu banan (do podłączenia 1 kolumny głośnikowej) 86 x 86 mm, kolor czarne irydium (stal nierdzewna) + moduł czarny, Linia Metal | C73: szt | D73: 0
A74: MET2XGLOSFN-B | B74: Gniazdo głośnikowe pojedyncze typu banan (do podłączenia 1 kolumny głośnikowej) 86 x 86 mm, montaż podtynkowy - kolor satyna (stal nierdzewna lakierowana) + moduł czarny, Linia Metal - Gwarancja 7 lat | C74: szt | D74: 0
A75: MET2XGLOSFS-B | B75: Gniazdo głośnikowe pojedyncze typu banan (do podłączenia 1 kolumny głośnikowej) 86 x 86 mm, montaż podtynkowy - kolor stal szlifowana (stal nierdzewna) + moduł czarny, Linia Metal - Gwarancja 7 lat | C75: szt | D75: 0
A76: MET2XGLOSFS-W | B76: Gniazdo głośnikowe pojedyncze typu banan (do podłączenia 1 kolumny głośnikowej) 86 x 86 mm, montaż podtynkowy - kolor stal szlifowana (stal nierdzewna) + moduł biały, Linia Metal - Gwarancja 7 lat | C76: szt | D76: 0
A77: MET2XHDMIB-B | B77: Gniazdo HDMI podwójne 86 x 86 mm, montaż podtynkowy - kolor mosiądz szlifowany (stal nierdzewna) + moduł czarny, Linia Metal - Gwarancja 7 lat | C77: szt | D77: 0
A78: MET2XHDMIBM-B | B78: Gniazdo HDMI podwójne 86 x 86 mm, montaż podtynkowy - kolor czarny mat (stal nierdzewna) + moduł czarny, Linia Metal - Gwarancja 7 lat | C78: szt | D78: 0
A79: MET2XHDMII-B | B79: Gniazdo HDMI podwójne 86 x 86 mm, kolor czarne irydium (stal nierdzewna) + moduł czarny, Linia Metal | C79: szt | D79: 0
A80: MET2XHDMII-W | B80: Gniazdo HDMI podwójne 86 x 86 mm, kolor czarne irydium (stal nierdzewna) + moduł biały, Linia Metal | C80: szt | D80: 971.35
A81: MET2XHDMIS-W | B81: Gniazdo HDMI podwójne 86 x 86 mm, montaż podtynkowy - kolor stal szlifowana (stal nierdzewna) + moduł biały, Linia Metal | C81: szt | D81: 809.45
A82: MET2XPHORCAFBM-B | B82: Gniazdo głośnikowe podwójne RCA/CINCH (do podłączenia 2 kolumn głośnikowych) 86 x 86 mm, montaż podtynkowy - kolor czarny mat (stal nierdzewna) + moduł czarny, Linia Metal - Gwarancja 7 lat | C82: szt | D82: 0
A83: MET2XPHORCAFI-B | B83: Gniazdo głośnikowe podwójne RCA/CINCH (do podłączenia 2 kolumn głośnikowych) 86 x 86 mm, kolor czarne irydium (stal nierdzewna) + moduł czarny, Linia Metal | C83: szt | D83: 0
A84: MET2XPHORCAFN-W | B84: Gniazdo głośnikowe podwójne RCA/CINCH (do podłączenia 2 kolumn głośnikowych) 86 x 86 mm, montaż podtynkowy - kolor satyna (stal nierdzewna) + moduł biały, Linia Metal - Gwarancja 7 lat | C84: szt | D84: 62.78
A85: MET2XPHORCAFS-B | B85: Gniazdo głośnikowe podwójne RCA/CINCH (do podłączenia 2 kolumn głośnikowych) 86 x 86 mm, montaż podtynkowy - kolor stal szlifowana (stal nierdzewna) + moduł czarny, Linia Metal - Gwarancja 7 lat | C85: szt | D85: 0
A86: MET2XPHORCAFS-W | B86: Gniazdo głośnikowe podwójne RCA/CINCH (do podłączenia 2 kolumn głośnikowych) 86 x 86 mm, kolor stal szlifowana (stal nierdzewna) + moduł biały, Linia Metal - Gwarancja 7 lat | C86: szt | D86: 0
A87: MET2XPROI4B-D | B87: Ściemniacz dotykowy/na pilota IR podwójny, 86 x 86 mm (stal nierdzewna), montaż podtynkowy - kolor mosiądz szlifowany, Linia Metal - Gwarancja 5 lat | C87: szt | D87: 1784.06
A88: MET2XPROI4N-D | B88: Ściemniacz dotykowy/na pilota IR podwójny, 86 x 86 mm (stal nierdzewna), montaż podtynkowy - kolor satyna, Linia Metal - Gwarancja 5 lat | C88: szt | D88: 0
A89: MET2XPROI4S-D | B89: Ściemniacz dotykowy/na pilota IR podwójny, 86 x 86 mm (stal nierdzewna), montaż podtynkowy - kolor stal szlifowana, Linia Metal - Gwarancja 5 lat | C89: szt | D89: 218.79
A90: MET2XPWCHB-6A-D | B90: Łącznik zwierny podwójny 6A 250V, 86 x 86 mm (stal nierdzewna), montaż podtynkowy - kolor mosiądz szlifowany, Linia Metal - Gwarancja 7 lat | C90: szt | D90: 103.96
A91: MET2XPWCHBM+I-6A-D | B91: Łącznik zwierny podwójny 6A 250V, 86 x 86 mm (stal nierdzewna), montaż podtynkowy - kolor czarny mat + czarne irydium, Linia Metal - Gwarancja 7 | C91: szt | D91: 0
A92: MET2XPWCHI-6A-D | B92: Łącznik zwierny podwójny 6A 250V, 86 x 86 mm (stal nierdzewna), montaż podtynkowy - kolor czarne irydium, Linia Metal - Gwarancja 7 lat | C92: szt | D92: 0
A93: MET2XPWCHN-6A-D | B93: Łącznik zwierny podwójny 6A 250V, 86 x 86 mm przyciskowy (stal nierdzewna), montaż podtynkowy - kolor satyna, Linia Metal - Gwarancja 7 lat | C93: szt | D93: 96.55
A94: MET2XPWCHS-6A-D | B94: Łącznik zwierny podwójny 6A 250V, 86 x 86 mm (stal nierdzewna), montaż podtynkowy - kolor stal szlifowana, Linia Metal - Gwarancja 7 lat | C94: szt | D94: 315.72
A95: MET2XPWCHV-6A-D | B95: Łącznik zwierny podwójny 6A 250V, 86 x 86 mm przyciskowy (stal nierdzewna), montaż podtynkowy - kolor mosiądz polerowany, Linia Metal - Gwarancja 7 lat | C95: szt | D95: 0
A96: MET2XRJ12B-D | B96: Gniazdo telefoniczne RJ12 podwójne, 86 x 86 mm (stal nierdzewna), montaż podtynkowy - kolor mosiądz szlifowany, Linia Metal - Gwarancja 7 lat | C96: szt | D96: 64.52
A97: MET2XRJ12N-D | B97: Gniazdo telefoniczne RJ12 podwójne, 86 x 86 mm (stal nierdzewna), montaż podtynkowy - kolor satyna, Linia Metal - Gwarancja 5 lat | C97: szt | D97: 0
A98: MET2XRJ12S-D | B98: Gniazdo telefoniczne RJ12 podwójne, 86 x 86 mm (stal nierdzewna), montaż podtynkowy - kolor stal szlifowana, Linia Metal - Gwarancja 7 lat | C98: szt | D98: 63.37
A99: MET2XRJ45C5STPB-D | B99: Gniazdo internetowe RJ45 kategorii 5 ekranowane podwójne, 86 x 86 mm (stal nierdzewna), montaż podtynkowy - kolor mosiądz szlifowany, Linia Metal | C99: szt | D99: 0
A100: MET2XRJ45C5STPBM-D | B100: Gniazdo internetowe RJ45 kategorii 5 ekranowane podwójne, 86 x 86 mm - kolor czarny mat, Linia Metal | C100: szt | D100: 0
A101: MET2XRJ45C5STPI-D | B101: Gniazdo internetowe RJ45 kategorii 5 ekranowane podwójne, 86 x 86 mm - kolor czarne irydium, Linia Metal | C101: szt | D101: 0
A102: MET2XRJ45C5STPN-D | B102: Gniazdo internetowe RJ45 kategorii 5 ekranowane podwójne, 86 x 86 mm (stal nierdzewna), montaż podtynkowy - kolor satyna, Linia Metal | C102: szt | D102: 8.09
A103: MET2XRJ45C5UTPB-D | B103: Gniazdo internetowe RJ45 kategorii 5 nieekranowane podwójne, 86 x 86 mm - kolor mosiądz szlifowany, Linia Metal | C103: szt | D103: 328.92
A104: MET2XRJ45C5UTPI-D | B104: Gniazdo internetowe RJ45 kategorii 5 nieekranowane podwójne, 86 x 86 mm (stal nierdzewna), montaż podtynkowy - kolor czarne irydium, Linia Metal - Gwarancja 7 lat | C104: szt | D104: 0
A105: MET2XRJ45C5UTPN-D | B105: Gniazdo internetowe RJ45 kategorii 5 nieekranowane podwójne, 86 x 86 mm (stal nierdzewna), montaż podtynkowy - kolor satyna, Linia Metal - Gwarancja 7 lat | C105: szt | D105: 0
A106: MET2XRJ45C5UTPS-D | B106: Gniazdo internetowe RJ45 kategorii 5 nieekranowane podwójne, 86 x 86 mm (stal nierdzewna), montaż podtynkowy - kolor stal szlifowana, Linia Metal - Gwarancja 7 lat | C106: szt | D106: 0
A107: MET2XRJ45C6STPI-D | B107: Gniazdo internetowe RJ45 kategorii 6 ekranowane podwójne, 86 x 86 mm - kolor czarne irydium, Linia Metal | C107: szt | D107: 27.13
A108: MET2XRJ45C6UTPBM-D | B108: Gniazdo internetowe RJ45 kategorii 6 nieekranowane podwójne, 86 x 86 mm - kolor czarny mat, wymagana puszka PLM-60-41, Linia Metal | C108: szt | D108: 0
A109: MET2XRJ45C6UTPS-D | B109: Gniazdo internetowe RJ45 kategorii 6 nieekranowane podwójne, 86 x 86 mm - kolor stal szlifowana, Linia Metal | C109: szt | D109: 0
A110: MET2XRJ45C6UTPV-D | B110: Gniazdo internetowe RJ45 kategorii 6 nieekranowane podwójne, 86 x 86 mm - kolor mosiądz polerowany, wymagana puszka PLM-60-41, Linia Metal | C110: szt | D110: 0
A111: MET2XUSBCHARGB-B | B111: Ładowarka USB podwójna 5V 2A, 86 x 86 mm, montaż podtynkowy - kolor mosiądz szlifowany (stal nierdzewna) + moduł czarny, Linia Metal - Gwarancja 7 lat | C111: szt | D111: 0
A112: MET2XUSBCHARGBM-B | B112: Ładowarka USB podwójna 5V 2A, 86 x 86 mm, montaż podtynkowy - kolor czarny mat (stal nierdzewna) + moduł czarny, Linia Metal - Gwarancja 7 lat | C112: szt | D112: 0
A113: MET2XUSBCHARGI-B | B113: Ładowarka USB podwójna 5V 2A, 86 x 86 mm, montaż podtynkowy - kolor czarne irydium (stal nierdzewna) + moduł czarny, Linia Metal - Gwarancja 7 lat | C113: szt | D113: 0
A114: MET2XUSBCHARGN-B | B114: Ładowarka USB podwójna 5V 2A, 86 x 86 mm, montaż podtynkowy - kolor satyna (stal nierdzewna) + moduł czarny, Linia Metal - Gwarancja 7 lat | C114: szt | D114: 37.17
A115: MET2XUSBCHARGN-W | B115: Ładowarka USB podwójna 5V 2A, 86 x 86 mm, montaż podtynkowy - kolor satyna (stal nierdzewna) + moduł biały, Linia Metal - Gwarancja 7 lat | C115: szt | D115: 0
A116: MET2XUSBCHARGS-B | B116: Ładowarka USB podwójna 5V 2A, 86 x 86 mm, montaż podtynkowy - kolor stal szlifowana (stal nierdzewna) + moduł czarny, Linia Metal - Gwarancja 7 lat | C116: szt | D116: 644.7
A117: MET2XUSBCHARGS-W | B117: Ładowarka USB podwójna 5V 2A, 86 x 86 mm, montaż podtynkowy - kolor stal szlifowana (stal nierdzewna) + moduł biały, Linia Metal - Gwarancja 7 lat | C117: szt | D117: 97.74
A118: MET2XUSBCHARGV-B | B118: Ładowarka USB podwójna 5V 2A, 86 x 86 mm, montaż podtynkowy - kolor mosiądz polerowany (stal nierdzewna ) + moduł czarny, Linia Metal - Gwarancja 7 lat | C118: szt | D118: 0
A119: M-ET3SZ | B119: Łącznik uniwersalny schodowy potrójny 10A 230V dźwigniowy 91 x 91 mm, montaż podtynkowy - kolor złoto szlifowane, Linia Metal - Gwarancja 7 lat | C119: szt | D119: 94.55
A120: MET3XPWCHB-6A-D | B120: Łącznik zwierny potrójny 6A 250V, 86 x 147 mm (stal nierdzewna), montaż podtynkowy - kolor mosiądz szlifowany, Linia Metal - Gwarancja 7 lat | C120: szt | D120: 0
A121: MET3XPWCHS-6A-D | B121: Łącznik zwierny potrójny 6A 250V, 86 x 147 mm (stal nierdzewna), montaż podtynkowy - kolor stal szlifowana, Linia Metal - Gwarancja 7 lat | C121: szt | D121: 0
A122: M-ET4.1Z | B122: Łącznik uniwersalny schodowy poczwórny 10A 230V dźwigniowy 91 x 150 mm, montaż podtynkowy - kolor złoto szlifowane, Linia Metal - Gwarancja 7 lat | C122: szt | D122: 143.95
A123: MET4XGLOSFB-B | B123: Gniazdo głośnikowe podwójne typu banan (do podłączenia 2 kolumn głośnikowych) 86 x 86 mm - kolor mosiądz szlifowany (stal nierdzewna) + moduł czarny, Linia Metal | C123: szt | D123: 0
A124: MET4XGLOSFBM-B | B124: Gniazdo głośnikowe podwójne typu banan (do podłączenia 2 kolumn głośnikowych) 86 x 86 mm, montaż podtynkowy - kolor czarny mat (stal nierdzewna) + moduł czarny, Linia Metal - Gwarancja 7 lat | C124: szt | D124: 0
A125: MET4XGLOSFI-B | B125: Gniazdo głośnikowe podwójne typu banan (do podłączenia 2 kolumn głośnikowych) 86 x 86 mm - kolor czarne irydium (stal nierdzewna) + moduł czarny, Linia Metal | C125: szt | D125: 0
A126: MET4XGLOSFS-B | B126: Gniazdo głośnikowe podwójne typu banan (do podłączenia 2 kolumn głośnikowych) 86 x 86 mm, montaż podtynkowy - kolor stal szlifowana (stal nierdzewna) + moduł czarny, Linia Metal - Gwarancja 7 lat | C126: szt | D126: 0
A127: MET4XGLOSFS-W | B127: Gniazdo głośnikowe podwójne typu banan (do podłączenia 2 kolumn głośnikowych) 86 x 86 mm, montaż podtynkowy - kolor stal szlifowana (stal nierdzewna) + moduł biały, Linia Metal - Gwarancja 7 lat | C127: szt | D127: 0
A128: MET4XPHORCAFS-W | B128: Gniazdo głośnikowe poczwórne RCA/CINCH (do podłączenia 4 kolumn głośnikowych) 86 x 86 mm, montaż podtynkowy - kolor stal szlifowana (stal nierdzewna) + moduł biały, Linia Metal - Gwarancja 7 lat | C128: szt | D128: 0
A129: MET4XPWCHBM+I-6A-D | B129: Łącznik zwierny poczwórny 6A 250V, 86 x 147 mm (stal nierdzewna), montaż podtynkowy - kolor czarny mat + czarne irydium, Linia Metal - Gwarancja 7 lat | C129: szt | D129: 0
A130: MET4XPWCHN-6A-D | B130: Łącznik zwierny poczwórny 6A 250V, 86 x 147 mm przyciskowy (stal nierdzewna), montaż podtynkowy - kolor satyna, Linia Metal - Gwarancja 7 lat | C130: szt | D130: 72.08
A131: MET4XPWCHS-6A-D | B131: Łącznik zwierny poczwórny 6A 250V, 86 x 147 mm (stal nierdzewna), montaż podtynkowy - kolor stal szlifowana, Linia Metal - Gwarancja 7 lat | C131: szt | D131: 0
A132: MET4XPWCHV-6A-D | B132: Łącznik zwierny poczwórny 6A 250V, 86 x 147 mm - kolor mosiądz polerowany, Linia Metal | C132: szt | D132: 0
A133: MET4XUSBCHARGB-B | B133: Ładowarka USB poczwórna 5V 4,8A, 86 x 86 mm, montaż podtynkowy - kolor mosiądz szlifowany (stal nierdzewna) + moduł czarny, Linia Metal - Gwarancja 7 lat | C133: szt | D133: 1323.51
A134: MET4XUSBCHARGBM-B | B134: Ładowarka USB poczwórna 5V 4,8A, 86 x 86 mm, montaż podtynkowy - kolor czarny mat (stal nierdzewna) + moduł czarny, Linia Metal - Gwarancja 7 lat | C134: szt | D134: 0
A135: MET4XUSBCHARGI-B | B135: Ładowarka USB poczwórna 5V 4,8A, 86 x 86 mm, montaż podtynkowy - kolor czarne irydium (stal nierdzewna) + moduł czarny, Linia Metal - Gwarancja 7 lat | C135: szt | D135: 1100.56
A136: MET4XUSBCHARGN-W | B136: Ładowarka USB poczwórna 5V 4,8A, 86 x 86 mm - kolor satyna (stal nierdzewna) + moduł biały, Linia Metal | C136: szt | D136: 1245.27
A137: MET4XUSBCHARGS-B | B137: Ładowarka USB poczwórna 5V 4,8A, 86 x 86 mm, montaż podtynkowy - kolor stal szlifowana (stal nierdzewna) + moduł czarny, Linia Metal - Gwarancja 7 lat | C137: szt | D137: 1422.48
A138: MET4XUSBCHARGS-W | B138: Ładowarka USB poczwórna 5V 4,8A, 86 x 86 mm, montaż podtynkowy - kolor stal szlifowana (stal nierdzewna) + moduł biały, Linia Metal - Gwarancja 7 lat | C138: szt | D138: 0
A139: METCOVERB-D | B139: Zaślepka puszki instalacyjnej 86 x 86 mm, montaż podtynkowy - kolor mosiądz szlifowany (stal nierdzewna) Linia Metal - Gwarancja 7 lat | C139: szt | D139: 0
A140: METCOVERI-D | B140: Zaślepka puszki instalacyjnej 86 x 86 mm, montaż podtynkowy - kolor czarne irydium (stal nierdzewna) Linia Metal - Gwarancja 7 lat | C140: szt | D140: 0
A141: METCOVERS-D | B141: Zaślepka puszki instalacyjnej 86 x 86 mm, montaż podtynkowy - kolor stal szlifowana (stal nierdzewna) Linia Metal - Gwarancja 7 lat | C141: szt | D141: 0
A142: METG1P.2B-B-DD | B142: Gniazdo wtyczkowe podwójne z uziemieniem z przesłonami torów prądowych 16A 250V (stal nierdzewna), szybkozłącze, 86 x 158 mm - kolor mosiądz szlifowany + kołnierz wewnętrzny czarny, Linia Metal - Gwarancja 7 lat | C142: szt | D142: 486.42
A143: METG1P.2B-D | B143: Gniazdo wtyczkowe podwójne z uziemieniem z przesłonami torów prądowych 16A 250V (stal nierdzewna), 86 x 158 mm, montaż podtynkowy - kolor mosiądz szlifowany + kołnierz zewnętrzny szary, Linia Metal - Gwarancja 7 lat | C143: szt | D143: 1544.17
A144: METG1P.2B-G-DD | B144: Gniazdo wtyczkowe podwójne z uziemieniem z przesłonami torów prądowych 16A 250V (stal nierdzewna), szybkozłącze, 86 x 158 mm, montaż podtynkowy - kolor mosiądz szlifowany + kołnierz wewnętrzny szary, Linia Metal - Gwarancja 7 lat. | C144: szt | D144: 30.62
A145: METG1P.2BM-B-DD | B145: Gniazdo wtyczkowe podwójne z uziemieniem z przesłonami torów prądowych 16A 250V (stal nierdzewna), szybkozłącze, 86 x 158 mm, montaż podtynkowy - kolor czarny mat + kołnierz wewnętrzny czarny, Linia Metal - Gwarancja 7 lat | C145: szt | D145: 779.58
A146: METG1P.2BM-W-DD | B146: Gniazdo wtyczkowe podwójne z uziemieniem z przesłonami torów prądowych 16A 250V, szybkozłącze, 86 x 158 mm - kolor czarny mat + kołnierz wewnętrzny biały, Linia Metal | C146: szt | D146: 0
A147: METG1P.2B-W-DD | B147: Gniazdo wtyczkowe podwójne z uziemieniem z przesłonami torów prądowych 16A 250V (stal nierdzewna), szybkozłącze, 86 x 158 mm, montaż podtynkowy - kolor mosiądz szlifowany + kołnierz wewnętrzny biały, Linia Metal - Gwarancja 7 lat | C147: szt | D147: 0
A148: METG1P.2C-G-DD | B148: Gniazdo wtyczkowe podwójne z uziemieniem z przesłonami torów prądowych 16A 250V (stal nierdzewna), szybkozłącze, 86 x 158 mm, montaż podtynkowy - kolor chrom polerowany + kołnierz wewnętrzny szary, Linia Metal - Gwarancja 7 lat | C148: szt | D148: 0
A149: METG1P.2I-B-DD | B149: Gniazdo wtyczkowe podwójne z uziemieniem z przesłonami torów prądowych 16A 250V (stal nierdzewna), szybkozłącze, 86 x 158 mm, montaż podtynkowy - kolor czarne irydium + kołnierz wewnętrzny czarny, Linia Metal - Gwarancja 7 lat | C149: szt | D149: 0
A150: METG1P.2I-G-DD | B150: Gniazdo wtyczkowe podwójne z uziemieniem z przesłonami torów prądowych 16A 250V (stal nierdzewna), szybkozłącze, 86 x 158 mm, montaż podtynkowy - kolor czarne irydium + kołnierz wewnętrzny szary, Linia Metal - Gwarancja 7 lat | C150: szt | D150: 0
A151: METG1P.2I-W-DD | B151: Gniazdo wtyczkowe podwójne z uziemieniem z przesłonami torów prądowych 16A 250V (stal nierdzewna), szybkozłącze, 86 x 158 mm, montaż podtynkowy - kolor czarne irydium + kołnierz wewnętrzny biały, Linia Metal - Gwarancja 7 lat | C151: szt | D151: 0
A152: METG1P.2N-B-DD | B152: Gniazdo wtyczkowe podwójne z uziemieniem z przesłonami torów prądowych 16A 250V (stal nierdzewna), szybkozłącze, 86 x 158 mm, montaż podtynkowy - kolor satyna + kołnierz wewnętrzny czarny, Linia Metal - Gwarancja 7 lat | C152: szt | D152: 0
A153: METG1P.2N-D | B153: Gniazdo wtyczkowe podwójne z uziemieniem z przesłonami torów prądowych 16A 250V, 86 x 158 mm, montaż podtynkowy - kolor satyna + kołnierz zewnętrzny szary, Linia Metal - Gwarancja 7 lat | C153: szt | D153: 46.17
A154: METG1P.2N-G-DD | B154: Gniazdo wtyczkowe podwójne z uziemieniem z przesłonami torów prądowych 16A 250V (stal nierdzewna), szybkozłącze, 86 x 158 mm, montaż podtynkowy - kolor satyna + kołnierz wewnętrzny szary, Linia Metal - Gwarancja 7 lat | C154: szt | D154: 241.83
A155: METG1P.2N-W-DD | B155: Gniazdo wtyczkowe podwójne z uziemieniem z przesłonami torów prądowych 16A 250V (stal nierdzewna), szybkozłącze, 86 x 158 mm, montaż podtynkowy - kolor satyna + kołnierz wewnętrzny biały, Linia Metal - Gwarancja 7 lat | C155: szt | D155: 0
A156: METG1P.2S-B-DD | B156: Gniazdo wtyczkowe podwójne z uziemieniem z przesłonami torów prądowych 16A 250V (stal nierdzewna), szybkozłącze, 86 x 158 mm, montaż podtynkowy - kolor stal szlifowana + kołnierz wewnętrzny czarny, Linia Metal - Gwarancja 7 lat | C156: szt | D156: 2826.84
A157: METG1P.2S-D | B157: Gniazdo wtyczkowe podwójne z uziemieniem z przesłonami torów prądowych 16A 250V (stal nierdzewna), 86 x 158 mm, montaż podtynkowy - kolor stal szlifowana + kołnierz zewnętrzny szary, Linia Metal - Gwanarncja 7 lat | C157: szt | D157: 43.54
A158: METG1P.2S-G-DD | B158: Gniazdo wtyczkowe podwójne z uziemieniem z przesłonami torów prądowych 16A 250V (stal nierdzewna), szybkozłącze, 86 x 158 mm, montaż podtynkowy - kolor stal szlifowana + kołnierz wewnętrzny szary, Linia Metal - Gwarancja 7 lat | C158: szt | D158: 0
A159: METG1P.2S-W-DD | B159: Gniazdo wtyczkowe podwójne z uziemieniem z przesłonami torów prądowych 16A 250V (stal nierdzewna), szybkozłącze, 86 x 158 mm, montaż podtynkowy - kolor stal szlifowana + kołnierz wewnętrzny biały, Linia Metal - Gwarancja 7 lat | C159: szt | D159: 0
A160: METG1P.2V-B-DD | B160: Gniazdo wtyczkowe podwójne z uziemieniem z przesłonami torów prądowych 16A 250V (stal nierdzewna), szybkozłącze, 86 x 158 mm, montaż podtynkowy - kolor mosiądz polerowany + kołnierz wewnętrzny czarny, Linia Metal - Gwarancja 7 lat | C160: szt | D160: 0
A161: METG1P.2V-G-DD | B161: Gniazdo wtyczkowe podwójne z uziemieniem z przesłonami torów prądowych 16A 250V (stal nierdzewna), szybkozłącze, 86 x 158 mm, montaż podtynkowy - kolor mosiądz polerowany + kołnierz wewnętrzny szary, Linia Metal - Gwarancja 7 lat | C161: szt | D161: 0
A162: METG1P.2V-W-DD | B162: Gniazdo wtyczkowe podwójne z uziemieniem z przesłonami torów prądowych 16A 250V (stal nierdzewna), szybkozłącze, 86 x 158 mm, montaż podtynkowy - kolor mosiądz polerowany + kołnierz wewnętrzny biały, Linia Metal - Gwarancja 7 lat | C162: szt | D162: 0
A163: METG1P.3B-B-DD | B163: Gniazdo wtyczkowe potrójne z uziemieniem z przesłonami torów prądowych 16A 250V (stal nierdzewna), szybkozłącze, 86 x 230 mm, montaż podtynkowy - kolor mosiądz szlifowany + kołnierz wewnętrzny czarny, Linia Metal - Gwarancja 7 lat | C163: szt | D163: 58.04
A164: METG1P.3B-D | B164: Gniazdo wtyczkowe potrójne z uziemieniem z przesłonami torów prądowych 16A 250V (stal nierdzewna), 86 x 230 mm, montaż podtynkowy - kolor mosiądz szlifowany + kołnierz zewnętrzny brązowy, Linia Metal - Gwarancja 7 lat | C164: szt | D164: 108.66
A165: METG1P.3B-G-DD | B165: Gniazdo wtyczkowe potrójne z uziemieniem z przesłonami torów prądowych 16A 250V (stal nierdzewna), szybkozłącze, 86 x 230 mm, montaż podtynkowy - kolor mosiądz szlifowany + kołnierz wewnętrzny szary, Linia Metal - Gwarancja 7 lat | C165: szt | D165: 0
A166: METG1P.3BM-B-DD | B166: Gniazdo wtyczkowe potrójne z uziemieniem z przesłonami torów prądowych 16A 250V (stal nierdzewna), szybkozłącze, 86 x 230 mm, montaż podtynkowy - kolor czarny mat + kołnierz wewnętrzny czarny, Linia Metal - Gwarancja 7 lat | C166: szt | D166: 121.51
A167: METG1P.3B-W-DD | B167: Gniazdo wtyczkowe potrójne z uziemieniem z przesłonami torów prądowych 16A 250V (stal nierdzewna), szybkozłącze, 86 x 230 mm, montaż podtynkowy - kolor mosiądz szlifowany + kołnierz wewnętrzny biały, Linia Metal - Gwarancja 7 lat | C167: szt | D167: 0
A168: METG1P.3I-B-DD | B168: Gniazdo wtyczkowe potrójne z uziemieniem z przesłonami torów prądowych 16A 250V (stal nierdzewna), szybkozłącze, 86 x 230 mm, montaż podtynkowy - kolor czarne irydium + kołnierz wewnętrzny czarny, Linia Metal - Gwarancja 7 lat | C168: szt | D168: 203.53
A169: METG1P.3I-G-DD | B169: Gniazdo wtyczkowe potrójne z uziemieniem z przesłonami torów prądowych 16A 250V (stal nierdzewna), szybkozłącze, 86 x 230 mm, montaż podtynkowy - kolor czarne irydium + kołnierz wewnętrzny szary, Linia Metal - Gwarancja 7 lat | C169: szt | D169: 0
A170: METG1P.3I-W-DD | B170: Gniazdo wtyczkowe potrójne z uziemieniem z przesłonami torów prądowych 16A 250V (stal nierdzewna), szybkozłącze, 86 x 230 mm, montaż podtynkowy - kolor czarne irydium + kołnierz wewnętrzny biały, Linia Metal - Gwarancja 7 lat | C170: szt | D170: 0
A171: METG1P.3N-B-DD | B171: Gniazdo wtyczkowe potrójne z uziemieniem z przesłonami torów prądowych 16A 250V (stal nierdzewna), szybkozłącze, 86 x 230 mm, montaż podtynkowy - kolor satyna + kołnierz wewnętrzny czarny, Linia Metal - Gwarancja 7 lat | C171: szt | D171: 84.32
A172: METG1P.3N-D | B172: Gniazdo wtyczkowe potrójne z uziemieniem z przesłonami torów prądowych 16A 250V (stal nierdzewna), 86 x 230 mm, montaż podtynkowy - kolor satyna + kołnierz zewnętrzny szary, Linia Metal - Gwarancja 7 lat | C172: szt | D172: 0
A173: METG1P.3N-G-DD | B173: Gniazdo wtyczkowe potrójne z uziemieniem z przesłonami torów prądowych 16A 250V (stal nierdzewna), szybkozłącze, 86 x 230 mm, montaż podtynkowy - kolor satyna + kołnierz wewnętrzny szary, Linia Metal - Gwarancja 7 lat | C173: szt | D173: 122.31
A174: METG1P.3N-W-DD | B174: Gniazdo wtyczkowe potrójne z uziemieniem z przesłonami torów prądowych 16A 250V (stal nierdzewna), szybkozłącze, 86 x 230 mm, montaż podtynkowy - kolor satyna + kołnierz wewnętrzny biały, Linia Metal - Gwarancja 7 lat | C174: szt | D174: 0
A175: METG1P.3S-B-DD | B175: Gniazdo wtyczkowe potrójne z uziemieniem z przesłonami torów prądowych 16A 250V (stal nierdzewna), szybkozłącze, 86 x 230 mm, montaż podtynkowy - kolor stal szlifowana + kołnierz wewnętrzny czarny, Linia Metal - Gwarancja 7 lat | C175: szt | D175: 426.92
A176: METG1P.3S-D | B176: Gniazdo wtyczkowe potrójne z uziemieniem z przesłonami torów prądowych 16A 250V (stal nierdzewna) 86 x 230 mm, montaż podtynkowy - kolor stal szlifowana + kołnierz zewnętrzny szary, Linia Metal - Gwarancja 7 lat | C176: szt | D176: 0
A177: METG1P.3S-G-DD | B177: Gniazdo wtyczkowe potrójne z uziemieniem z przesłonami torów prądowych 16A 250V (stal nierdzewna), szybkozłącze, 86 x 230 mm, montaż podtynkowy - kolor stal szlifowana + kołnierz wewnętrzny szary, Linia Metal - Gwarancja 7 lat | C177: szt | D177: 0
A178: METG1P.3S-W-DD | B178: Gniazdo wtyczkowe potrójne z uziemieniem z przesłonami torów prądowych 16A 250V (stal nierdzewna), szybkozłącze, 86 x 230 mm, montaż podtynkowy - kolor stal szlifowana + kołnierz wewnętrzny biały, Linia Metal - Gwarancja 7 lat | C178: szt | D178: 0
A179: METG1P.3V-B-DD | B179: Gniazdo wtyczkowe potrójne z uziemieniem z przesłonami torów prądowych 16A 250V (stal nierdzewna), szybkozłącze, 86 x 230 mm, montaż podtynkowy - kolor mosiądz polerowany + kołnierz wewnętrzny czarny, Linia Metal - Gwarancja 7 lat | C179: szt | D179: 0
A180: METG1PB-B-DD | B180: Gniazdo wtyczkowe pojedyncze z uziemieniem z przesłonami torów prądowych 16A 250V (stal nierdzewna), szybkozłącze, 86 x 86 mm, montaż podtynkowy - kolor mosiądz szlifowany + kołnierz wewnętrzny czarny, Linia Metal - Gwarancja 7 lat | C180: szt | D180: 33.56
A181: METG1PB-D | B181: Gniazdo wtyczkowe pojedyncze z uziemieniem z przesłonami torów prądowych 16A 250V (stal nierdzewna), 86 x 86 mm, montaż podtynkowy - kolor mosiądz szlifowany + kołnierz zewnętrzny brązowy, Linia Metal - Gwarancja 7 lat | C181: szt | D181: 215.75
A182: METG1PB-G-DD | B182: Gniazdo wtyczkowe pojedyncze z uziemieniem z przesłonami torów prądowych 16A 250V (stal nierdzewna), szybkozłącze, 86 x 86 mm, montaż podtynkowy - kolor mosiądz szlifowany + kołnierz wewnętrzny szary, Linia Metal - Gwarancja 7 lat | C182: szt | D182: 136.52
A183: METG1PBM-B-DD | B183: Gniazdo wtyczkowe pojedyncze z uziemieniem z przesłonami torów prądowych 16A 250V (stal nierdzewna), szybkozłącze, 86 x 86 mm, montaż podtynkowy - kolor czarny mat + kołnierz wewnętrzny czarny, Linia Metal - Gwarancja 7 lat | C183: szt | D183: 0
A184: METG1PBM-G-DD | B184: Gniazdo wtyczkowe pojedyncze z uziemieniem z przesłonami torów prądowych 16A 250V (stal nierdzewna), szybkozłącze, 86 x 86 mm, montaż podtynkowy - kolor czarny mat + kołnierz wewnętrzny szary, Linia Metal - Gwarancja 7 lat | C184: szt | D184: 0
A185: METG1PBM-W-DD | B185: Gniazdo wtyczkowe pojedyncze z uziemieniem z przesłonami torów prądowych 16A 250V, szybkozłącze, 86 x 86 mm - kolor czarny mat + kołnierz wewnętrzny biały, Linia Metal | C185: szt | D185: 0
A186: METG1PB-W-DD | B186: Gniazdo wtyczkowe pojedyncze z uziemieniem z przesłonami torów prądowych 16A 250V (stal nierdzewna), szybkozłącze, 86 x 86 mm, montaż podtynkowy - kolor mosiądz szlifowany + kołnierz wewnętrzny biały, Linia Metal - Gwarancja 7 lat | C186: szt | D186: 0
A187: METG1PC-G-DD | B187: Gniazdo wtyczkowe pojedyncze z uziemieniem z przesłonami torów prądowych 16A 250V (stal nierdzewna), szybkozłącze, 86 x 86 mm, montaż podtynkowy - kolor chrom polerowany + kołnierz wewnętrzny szary, Linia Metal - Gwarancja 7 lat | C187: szt | D187: 220.23
A188: METG1PI-B-DD | B188: Gniazdo wtyczkowe pojedyncze z uziemieniem z przesłonami torów prądowych 16A 250V (stal nierdzewna), szybkozłącze, 86 x 86 mm, montaż podtynkowy - kolor czarne irydium + kołnierz wewnętrzny czarny, Linia Metal - Gwarancja 7 lat | C188: szt | D188: 86.91
A189: METG1PI-G-DD | B189: Gniazdo wtyczkowe pojedyncze z uziemieniem z przesłonami torów prądowych 16A 250V (stal nierdzewna), szybkozłącze, 86 x 86 mm, montaż podtynkowy - kolor czarne irydium + kołnierz wewnętrzny szary, Linia Metal - Gwarancja 7 lat | C189: szt | D189: 0
A190: METG1PI-W-DD | B190: Gniazdo wtyczkowe pojedyncze z uziemieniem z przesłonami torów prądowych 16A 250V (stal nierdzewna), szybkozłącze, 86 x 86 mm, montaż podtynkowy - kolor czarne irydium + kołnierz wewnętrzny biały, Linia Metal - Gwarancja 7 lat | C190: szt | D190: 0
A191: METG1PN-B-DD | B191: Gniazdo wtyczkowe pojedyncze z uziemieniem z przesłonami torów prądowych 16A 250V (stal nierdzewna), szybkozłącze, 86 x 86 mm, montaż podtynkowy - kolor satyna + kołnierz wewnętrzny czarny, Linia Metal - Gwarancja 7 lat | C191: szt | D191: 36.46
A192: METG1PN-D | B192: Gniazdo wtyczkowe pojedyncze z uziemieniem z przesłonami torów prądowych 16A 250V (stal nierdzewna), 86 x 86 mm, montaż podtynkowy - kolor satyna + kołnierz zewnętrzny szary, Linia Metal - Gwarancja 7 lat | C192: szt | D192: 211.62
A193: METG1PN-G-DD | B193: Gniazdo wtyczkowe pojedyncze z uziemieniem z przesłonami torów prądowych 16A 250V (stal nierdzewna), szybkozłącze, 86 x 86 mm, montaż podtynkowy - kolor satyna + kołnierz wewnętrzny szary, Linia Metal - Gwarancja 7 lat | C193: szt | D193: 289.55
A194: METG1PN-W-DD | B194: Gniazdo wtyczkowe pojedyncze z uziemieniem z przesłonami torów prądowych 16A 250V (stal nierdzewna), szybkozłącze, 86 x 86 mm, montaż podtynkowy - kolor satyna + kołnierz wewnętrzny biały, Linia Metal - Gwarancja 7 lat | C194: szt | D194: 0
A195: METG1PS-B-DD | B195: Gniazdo wtyczkowe pojedyncze z uziemieniem z przesłonami torów prądowych 16A 250V (stal nierdzewna), szybkozłącze, 86 x 86 mm, montaż podtynkowy - kolor stal szlifowana + kołnierz wewnętrzny czarny, Linia Metal - Gwarancja 7 lat | C195: szt | D195: 378.03
A196: METG1PS-D | B196: Gniazdo wtyczkowe pojedyncze z uziemieniem z przesłonami torów prądowych 16A 250V (stal nierdzewna), 86 x 86 mm, montaż podtynkowy - kolor stal szlifowana + kołnierz zewnętrzny szary, Linia Metal - Gwarancja 7 lat | C196: szt | D196: 0
A197: METG1PS-G-DD | B197: Gniazdo wtyczkowe pojedyncze z uziemieniem z przesłonami torów prądowych 16A 250V (stal nierdzewna), szybkozłącze, 86 x 86 mm, montaż podtynkowy - kolor stal szlifowana + kołnierz wewnętrzny szary, Linia Metal - Gwarancja 7 lat | C197: szt | D197: 644.62
A198: METG1PS-W-DD | B198: Gniazdo wtyczkowe pojedyncze z uziemieniem z przesłonami torów prądowych 16A 250V (stal nierdzewna), szybkozłącze, 86 x 86 mm, montaż podtynkowy - kolor stal szlifowana + kołnierz wewnętrzny biały, Linia Metal - Gwarancja 7 lat | C198: szt | D198: 0
A199: METG1PV-B-DD | B199: Gniazdo wtyczkowe pojedyncze z uziemieniem z przesłonami torów prądowych 16A 250V (stal nierdzewna), szybkozłącze, 86 x 86 mm, montaż podtynkowy - kolor mosiądz polerowany + kołnierz wewnętrzny czarny, Linia Metal - Gwarancja 7 lat | C199: szt | D199: 9.29
A200: METG1PV-G-DD | B200: Gniazdo wtyczkowe pojedyncze z uziemieniem z przesłonami torów prądowych 16A 250V (stal nierdzewna), szybkozłącze, 86 x 86 mm, montaż podtynkowy - kolor mosiądz polerowany + kołnierz wewnętrzny szary, Linia Metal - Gwarancja 7 lat | C200: szt | D200: 0
A201: METG1PV-W-DD | B201: Gniazdo wtyczkowe pojedyncze z uziemieniem z przesłonami torów prądowych 16A 250V (stal nierdzewna), szybkozłącze, 86 x 86 mm, montaż podtynkowy - kolor mosiądz polerowany + kołnierz wewnętrzny biały, Linia Metal - Gwarancja 7 lat | C201: szt | D201: 0
A202: METG1S.2B-B-DD | B202: Gniazdo wtyczkowe podwójne z uziemieniem typu Schuko z przesłonami torów prądowych 16A 250V (stal nierdzewna), szybkozłącze, 86 x 158 mm, montaż podtynkowty - kolor mosiądz szlifowany + kołnierz wewnętrzny czarny, Linia Metal - Gwarancja 7 lat | C202: szt | D202: 216.54
A203: METG1S.2B-D | B203: Gniazdo wtyczkowe podwójne z uziemieniem typu Schuko z przesłonami torów prądowych 16A 250V (stal nierdzewna), 86 x 158 mm, montaż podtynkowy - kolor mosiądz szlifowany + kołnierz zewnętrzny brązowy, Linia Metal - Gwarancja 7 lat | C203: szt | D203: 24.12
... 397 more rows

Sheet 23
A1: PREMIA | B1: 0.1
A3: imię i nazwisko | B3: dział | C3: staż pracy w latach | D3: zmiana nocna | E3: płaca zasadnicza | F3: premia
A4: Alan Urbańska | B4: Produkcja | C4: 12 | E4: 3621 | F4: =IF(B4="produkcja",E4*$B$1,IF(AND(D4="tak",C4>5),E4*$B$1,"")) -> 362.1
A5: Aleksander Laskowska | B5: Magazyn | C5: 6 | D5: TAK | E5: 7342 | F5: =IF(B5="produkcja",E5*$B$1,IF(AND(D5="tak",C5>5),E5*$B$1,"")) -> 734.2
A6: Allan Szymczak | B6: Logistyka | C6: 11 | E6: 6309
A7: Anastazja Kozłowska | B7: Księgowość | C7: 0 | E7: 3324
A8: Anatolia Baranowska | B8: Produkcja | C8: 10 | D8: TAK | E8: 4336 | F8: 433.6
A9: Artur Urbańska | B9: Produkcja | C9: 9 | E9: 4831 | F9: 483.1
A10: Bartosz Błaszczyk | B10: Magazyn | C10: 3 | E10: 5980
A11: Bogda Lis | B11: Logistyka | C11: 5 | E11: 6689
A12: Dagmara Jakubowska | B12: Logistyka | C12: 7 | D12: TAK | E12: 6437 | F12: 643.7
A13: Daniela Kozłowska | B13: Kadry | C13: 6 | E13: 4682
A14: Daria Wójcik | B14: Konstrukcja | C14: 7 | E14: 4986
A15: Dominik Marciniak | B15: Konstrukcja | C15: 9 | D15: TAK | E15: 7317 | F15: 731.7
A16: Dorian Sikorska | B16: Produkcja | C16: 8 | E16: 6157 | F16: 615.7
A17: Eustachy Laskowska | B17: Magazyn | C17: 1 | E17: 4444
A18: Gabriel Szczepański | B18: Handlowy | C18: 11 | E18: 4566
A19: Henryk Kaźmierczak | B19: Handlowy | C19: 13 | E19: 4031
A20: Jacek Urbańska | B20: BHP | C20: 9 | D20: TAK | E20: 4283 | F20: 428.3
A21: Jagoda Sobczak | B21: Produkcja | C21: 10 | E21: 3799 | F21: 379.9
A22: Joachim Brzeziński | B22: Magazyn | C22: 2 | E22: 4691
A23: Jola Marciniak | B23: Księgowość | C23: 11 | E23: 6555
A24: Jolanta Czarnecka | B24: Produkcja | C24: 12 | E24: 5571 | F24: 557.1
A25: Kaja Czerwińska | B25: Produkcja | C25: 9 | D25: TAK | E25: 7269 | F25: 726.9
A26: Karol Sadowska | B26: Produkcja | C26: 1 | E26: 7385 | F26: 738.5
A27: Kazimierz Kaźmierczak | B27: Kadry | C27: 7 | E27: 4478
A28: Korneliusz Włodarczyk | B28: Handlowy | C28: 12 | E28: 5977
A29: Łucja Baran | B29: Logistyka | C29: 12 | D29: TAK | E29: 5783 | F29: 578.3
A30: Magda Kaczmarczyk | B30: Produkcja | C30: 15 | D30: TAK | E30: 5731 | F30: 573.1
A31: Magda Woźniak | B31: Magazyn | C31: 0 | E31: 5954
A32: Małgorzata Sadowska | B32: Produkcja | C32: 10 | E32: 5309 | F32: 530.9
A33: Marcin Jasiński | B33: Produkcja | C33: 13 | E33: 4524 | F33: 452.4
A34: Maria Jaworska | B34: BHP | C34: 15 | E34: 6425
A35: Marlena Witkowska | B35: Konstrukcja | C35: 7 | D35: TAK | E35: 3965 | F35: 396.5
A36: Marysia Mazur | B36: Konstrukcja | C36: 11 | E36: 7977
A37: Oktawian Górecki | B37: Produkcja | C37: 6 | D37: TAK | E37: 6496 | F37: 649.6
A38: Olgierd Sobczak | B38: Magazyn | C38: 0 | E38: 5174
A39: Otylia Krupa | B39: Handlowy | C39: 12 | E39: 3220
A40: Patryk Szulc | B40: BHP | C40: 4 | E40: 3703
A41: Paulina Wojciechowska | B41: Handlowy | C41: 9 | E41: 4387
A42: Przemysław Sadowska | B42: Produkcja | C42: 13 | E42: 3161 | F42: 316.1
A43: Stefania Walczak | B43: Magazyn | C43: 5 | D43: TAK | E43: 5583

Sheet 24
B2: Nr dokumentu | C2: Data wystawienia | H2: Nr dokumentu | I2: Nazwa kontrahenta | J2: NIP kontarhenta | K2: Adres kontrahenta | L2: Data wystawienia
B3: FV/2022/633085 | C3: =_xlfn.IFNA(VLOOKUP(B3,Dane1[],5,0),VLOOKUP(B3,Dane2[],2,0)) -> 2022-06-10 | H3: FV/2022/613811 | I3: Kontrahent 95 | J3: 8728544619 | K3: 63. Pułku Piechoty 10 Grudziądz | L3: 2022-08-22
B4: FV/2022/732043 | C4: =_xlfn.IFNA(VLOOKUP(B4,Dane1[],5,0),VLOOKUP(B4,Dane2[],2,0)) -> 2022-03-22 | H4: FV/2022/624731 | I4: Kontrahent 71 | J4: 5691636825 | K4: Adama Asnyka 21 Toruń | L4: 2022-02-18
B5: FV/2022/839524 | C5: =_xlfn.IFNA(VLOOKUP(B5,Dane1[],5,0),VLOOKUP(B5,Dane2[],2,0)) -> 2022-09-13 | H5: FV/2022/630247 | I5: Kontrahent 61 | J5: 8199168871 | K5: Adama Freytaga 34 Poznań | L5: 2022-04-23
B6: FV/2022/795805 | C6: =_xlfn.IFNA(VLOOKUP(B6,Dane1[],5,0),VLOOKUP(B6,Dane2[],2,0)) -> 2022-05-08 | H6: FV/2022/633085 | I6: Kontrahent 53 | J6: 1337965388 | K6: Adama Mickiewicza 22 Trzebiatów | L6: 2022-06-10
B7: FV/2022/823379 | C7: =_xlfn.IFNA(VLOOKUP(B7,Dane1[],5,0),VLOOKUP(B7,Dane2[],2,0)) -> 2022-12-12 | H7: FV/2022/633490 | I7: Kontrahent 43 | J7: 7263853583 | K7: Agatowa 43 Koszalin | L7: 2022-09-24
B8: FV/2022/755561 | C8: =_xlfn.IFNA(VLOOKUP(B8,Dane1[],5,0),VLOOKUP(B8,Dane2[],2,0)) -> 2022-12-17 | H8: FV/2022/638283 | I8: Kontrahent 99 | J8: 2961895795 | K8: Agrestowa 39 Ustrzyki Dolne | L8: 2022-07-25
B9: FV/2022/895871 | C9: =_xlfn.IFNA(VLOOKUP(B9,Dane1[],5,0),VLOOKUP(B9,Dane2[],2,0)) -> 2022-12-22 | H9: FV/2022/640514 | I9: Kontrahent 68 | J9: 6569333546 | K9: Akacjowa 7 Lębork | L9: 2022-02-20
B10: FV/2022/816500 | C10: =_xlfn.IFNA(VLOOKUP(B10,Dane1[],5,0),VLOOKUP(B10,Dane2[],2,0)) -> 2022-12-27 | H10: FV/2022/642185 | I10: Kontrahent 36 | J10: 4198358685 | K10: Aleja 500-lecia Torunia 48 Gdańsk | L10: 2022-01-09
B11: FV/2022/846176 | C11: =_xlfn.IFNA(VLOOKUP(B11,Dane1[],5,0),VLOOKUP(B11,Dane2[],2,0)) -> 2022-03-15 | H11: FV/2022/644978 | I11: Kontrahent 29 | J11: 7381754394 | K11: Aleja 700-lecia Torunia 31 Łódź | L11: 2022-02-27
B12: FV/2022/745783 | C12: =_xlfn.IFNA(VLOOKUP(B12,Dane1[],5,0),VLOOKUP(B12,Dane2[],2,0)) -> 2022-10-25 | H12: FV/2022/651453 | I12: Kontrahent 32 | J12: 7125571311 | K12: Aleja Bogusława Magiery 17 Niepołomice | L12: 2022-02-16
B13: FV/2022/908437 | C13: =_xlfn.IFNA(VLOOKUP(B13,Dane1[],5,0),VLOOKUP(B13,Dane2[],2,0)) -> 2022-06-29 | H13: FV/2022/652819 | I13: Kontrahent 27 | J13: 3613123424 | K13: Aleja Solidarności 47 Aleksandrów Kuj. | L13: 2022-04-15
B14: FV/2022/636900 | C14: =_xlfn.IFNA(VLOOKUP(B14,Dane1[],5,0),VLOOKUP(B14,Dane2[],2,0)) -> 2022-01-01 | H14: FV/2022/663628 | I14: Kontrahent 34 | J14: 1833198914 | K14: Aleksandra Birkenmajera 6 Chełmno | L14: 2022-01-20
B15: FV/2022/939362 | C15: =_xlfn.IFNA(VLOOKUP(B15,Dane1[],5,0),VLOOKUP(B15,Dane2[],2,0)) -> 2022-01-06 | H15: FV/2022/664644 | I15: Kontrahent 31 | J15: 5459964216 | K15: Aleksandra Fredry 48 Grudziądz | L15: 2022-02-18
B16: FV/2022/640277 | C16: =_xlfn.IFNA(VLOOKUP(B16,Dane1[],5,0),VLOOKUP(B16,Dane2[],2,0)) -> 2022-01-11 | H16: FV/2022/666078 | I16: Kontrahent 85 | J16: 8859932724 | K16: Aleksandra Jabłońskiego 28 Toruń | L16: 2022-11-09
B17: FV/2022/972839 | C17: =_xlfn.IFNA(VLOOKUP(B17,Dane1[],5,0),VLOOKUP(B17,Dane2[],2,0)) -> 2022-06-28 | H17: FV/2022/670902 | I17: Kontrahent 37 | J17: 8383914299 | K17: Aleksandrowska 29 Poznań | L17: 2022-01-19
H18: FV/2022/674994 | I18: Kontrahent 100 | J18: 7877371661 | K18: Alladyna 39 Trzebiatów | L18: 2022-07-01
H19: FV/2022/676271 | I19: Kontrahent 78 | J19: 5594378169 | K19: Alojzego Tujakowskiego 24 Koszalin | L19: 2022-12-11
H20: FV/2022/677271 | I20: Kontrahent 20 | J20: 7283178831 | K20: Ametystowa 15 Ustrzyki Dolne | L20: 2022-05-31
H21: FV/2022/677900 | I21: Kontrahent 67 | J21: 1172659576 | K21: Andrzeja Kmicica 42 Lębork | L21: 2022-02-12
H22: FV/2022/679106 | I22: Kontrahent 58 | J22: 7999254554 | K22: Andrzeja Sobkowiaka 27 Gdańsk | L22: 2022-04-02
H23: FV/2022/680636 | I23: Kontrahent 94 | J23: 7357344333 | K23: Antoniego Antczaka 4 Łódź | L23: 2022-08-24
H24: FV/2022/682453 | I24: Kontrahent 14 | J24: 4873997712 | K24: Antoniego Bagińskiego 8 Niepołomice | L24: 2022-07-03
H25: FV/2022/685801 | I25: Kontrahent 105 | J25: 4799438727 | K25: Antoniego Bolta 22 Aleksandrów Kuj. | L25: 2022-06-05
H26: FV/2022/685977 | I26: Kontrahent 22 | J26: 2764918523 | K26: Antoniego Grabowskiego 9 Chełmno | L26: 2022-05-11
H27: FV/2022/688715 | I27: Kontrahent 82 | J27: 7927429122 | K27: Antoniego Swinarskiego 30 Grudziądz | L27: 2022-12-04
H28: FV/2022/700080 | I28: Kontrahent 45 | J28: 2584361591 | K28: Apatora 33 Toruń | L28: 2022-09-13
H29: FV/2022/702108 | I29: Kontrahent 103 | J29: 4217143975 | K29: Artyleryjska 33 Poznań | L29: 2022-05-22
H30: FV/2022/704832 | I30: Kontrahent 96 | J30: 8176917375 | K30: Astrowa 37 Trzebiatów | L30: 2022-08-31
H31: FV/2022/713035 | I31: Kontrahent 23 | J31: 8254276767 | K31: Augustowska 17 Koszalin | L31: 2022-05-03
H32: FV/2022/714891 | I32: Kontrahent 40 | J32: 2594722352 | K32: Augustyna Kordeckiego 48 Ustrzyki Dolne | L32: 2022-12-14
H33: FV/2022/715221 | I33: Kontrahent 21 | J33: 8884464625 | K33: Bajeczna 20 Lębork | L33: 2022-06-05
H34: FV/2022/722728 | I34: Kontrahent 88 | J34: 6569959145 | K34: Balladyny 37 Gdańsk | L34: 2022-10-15
H35: FV/2022/726032 | I35: Kontrahent 98 | J35: 2663448375 | K35: Balonowa 45 Łódź | L35: 2022-08-22
H36: FV/2022/732043 | I36: Kontrahent 28 | J36: 7527137551 | K36: Bananowa 2 Niepołomice | L36: 2022-03-22
H37: FV/2022/733934 | I37: Kontrahent 12 | J37: 4299915756 | K37: Bankowa 48 Aleksandrów Kuj. | L37: 2022-07-20
H38: FV/2022/743130 | I38: Kontrahent 51 | J38: 8328284385 | K38: Barbarka 34 Chełmno | L38: 2022-07-17
H39: FV/2022/744573 | I39: Kontrahent 79 | J39: 7451739774 | K39: Bartnicza 3 Grudziądz | L39: 2022-12-10
H40: FV/2022/745783 | I40: Kontrahent 87 | J40: 6974289225 | K40: Bartosza Głowackiego 5 Toruń | L40: 2022-10-25
H41: FV/2022/756072 | I41: Kontrahent 26 | J41: 3591476396 | K41: Barwna 13 Poznań | L41: 2022-04-05
H42: FV/2022/771305 | I42: Kontrahent 41 | J42: 9176929143 | K42: Basieńki 9 Trzebiatów | L42: 2022-11-18
H43: FV/2022/772600 | I43: Kontrahent 107 | J43: 5812234819 | K43: Baśniowa 40 Koszalin | L43: 2022-05-03
H44: FV/2022/773718 | I44: Kontrahent 111 | J44: 5238757358 | K44: Bawarczyków 49 Ustrzyki Dolne | L44: 2022-04-11
H45: FV/2022/777829 | I45: Kontrahent 109 | J45: 7791464224 | K45: Bażantowa 18 Lębork | L45: 2022-04-14
H46: FV/2022/780400 | I46: Kontrahent 74 | J46: 2698566894 | K46: Bażyńskich 6 Gdańsk | L46: 2022-12-16
H47: FV/2022/788868 | I47: Kontrahent 57 | J47: 5987716775 | K47: Bekasa 41 Łódź | L47: 2022-04-27
H48: FV/2022/789767 | I48: Kontrahent 19 | J48: 2262142156 | K48: Biała 14 Niepołomice | L48: 2022-06-07
H49: FV/2022/789780 | I49: Kontrahent 65 | J49: 6689361663 | K49: Białostocka 50 Aleksandrów Kuj. | L49: 2022-02-28
H50: FV/2022/790579 | I50: Kontrahent 59 | J50: 1133167768 | K50: Bielańska 24 Chełmno | L50: 2022-04-12
H51: FV/2022/790733 | I51: Kontrahent 91 | J51: 8271195267 | K51: Bliska 22 Chełmno | L51: 2022-09-15
H52: FV/2022/790998 | I52: Kontrahent 46 | J52: 9913862525 | K52: Bluszczowa 30 Trzebiatów | L52: 2022-09-07
H53: FV/2022/795743 | I53: Kontrahent 69 | J53: 3157316353 | K53: Bobrowa 5 Koszalin | L53: 2022-02-24
H54: FV/2022/795805 | I54: Kontrahent 108 | J54: 4563532829 | K54: Bociana 41 Ustrzyki Dolne | L54: 2022-05-08
H55: FV/2022/800032 | I55: Kontrahent 77 | J55: 9337688556 | K55: Boczna 9 Gdańsk | L55: 2022-12-04
H56: FV/2022/800763 | I56: Kontrahent 102 | J56: 8447643577 | K56: Bohdana Paczyńskiego 27 Toruń | L56: 2022-06-03
H57: FV/2022/813478 | I57: Kontrahent 92 | J57: 4527179128 | K57: Bolesława Chrobrego 1 Poznań | L57: 2022-09-12
H58: FV/2022/816566 | I58: Kontrahent 60 | J58: 4343659226 | K58: Bolesława Leśmiana 26 Niepołomice | L58: 2022-04-13
H59: FV/2022/819899 | I59: Kontrahent 62 | J59: 2961263598 | K59: Bolesława Prusa 19 Aleksandrów Kuj. | L59: 2022-03-25
H60: FV/2022/823686 | I60: Kontrahent 97 | J60: 3421295796 | K60: Borowiacka 38 Chełmno | L60: 2022-08-18
H61: FV/2022/839524 | I61: Kontrahent 44 | J61: 7338864497 | K61: Borowikowa 6 Chełmno | L61: 2022-09-13
H62: FV/2022/841375 | I62: Kontrahent 35 | J62: 3446274968 | K62: Bractwa Kurkowego 25 Trzebiatów | L62: 2022-01-26
H63: FV/2022/845894 | I63: Kontrahent 42 | J63: 4291946929 | K63: Bratnia 39 Koszalin | L63: 2022-10-23
H64: FV/2022/846176 | I64: Kontrahent 64 | J64: 7922465283 | K64: Brązowa 46 Ustrzyki Dolne | L64: 2022-03-15
H65: FV/2022/853986 | I65: Kontrahent 18 | J65: 6194877656 | K65: Bronisława Jamontta 8 Gdańsk | L65: 2022-06-24
H66: FV/2022/855641 | I66: Kontrahent 47 | J66: 4639131434 | K66: Bronisława Malinowskiego 26 Toruń | L66: 2022-09-04
H67: FV/2022/860777 | I67: Kontrahent 76 | J67: 1464895361 | K67: Browarna 45 Warszawa | L67: 2022-12-02
H68: FV/2022/864688 | I68: Kontrahent 80 | J68: 2891829467 | K68: Brylantowa 9 Kraków | L68: 2022-12-14
H69: FV/2022/870139 | I69: Kontrahent 84 | J69: 1614872227 | K69: Brzoskwiniowa 29 Koszalin | L69: 2022-11-15
H70: FV/2022/877456 | I70: Kontrahent 75 | J70: 9575964885 | K70: Brzozowa 2 Ustrzyki Dolne | L70: 2022-12-18
H71: FV/2022/883162 | I71: Kontrahent 63 | J71: 1162537972 | K71: Bukowa 1 Gdańsk | L71: 2022-03-06
H72: FV/2022/895373 | I72: Kontrahent 39 | J72: 3162179574 | K72: Bulwar Filadelfijski 6 Toruń | L72: 2022-12-11
H73: FV/2022/895446 | I73: Kontrahent 81 | J73: 6871769379 | K73: Bursztynowa 3 Poznań | L73: 2022-12-12
H74: FV/2022/895562 | I74: Kontrahent 54 | J74: 7282176899 | K74: Bydgoska 9 Niepołomice | L74: 2022-05-21
H75: FV/2022/895889 | I75: Kontrahent 48 | J75: 6431494576 | K75: Bytomska 6 Aleksandrów Kuj. | L75: 2022-08-16
H76: FV/2022/896649 | I76: Kontrahent 83 | J76: 7232664616 | K76: bł. ks. phm. S. Frelichowskiego 19 Chełmno | L76: 2022-12-13
H77: FV/2022/900341 | I77: Kontrahent 90 | J77: 2877557498 | K77: Bławatkowa 4 Chełmno | L77: 2022-09-22
H78: FV/2022/901168 | I78: Kontrahent 17 | J78: 4921969264 | K78: Błękitna 5 Trzebiatów | L78: 2022-06-14
H79: FV/2022/905020 | I79: Kontrahent 70 | J79: 5448881946 | K79: Calineczki 20 Niepołomice | L79: 2022-02-22
H80: FV/2022/908265 | I80: Kontrahent 30 | J80: 1149581826 | K80: Cedrowa 33 Aleksandrów Kuj. | L80: 2022-02-15
H81: FV/2022/908437 | I81: Kontrahent 15 | J81: 2353744211 | K81: Ceglana 39 Chełmno | L81: 2022-06-29
H82: FV/2022/917768 | I82: Kontrahent 33 | J82: 6479383121 | K82: Celnicza 3 Grudziądz | L82: 2022-01-19
H83: FV/2022/920292 | I83: Kontrahent 24 | J83: 3342243693 | K83: Ceramiczna 5 Toruń | L83: 2022-04-15
H84: FV/2022/920734 | I84: Kontrahent 38 | J84: 2755942367 | K84: Chabrowa 22 Poznań | L84: 2022-12-24
H85: FV/2022/924369 | I85: Kontrahent 73 | J85: 3655774712 | K85: Chełmińska 34 Trzebiatów | L85: 2022-01-05
H86: FV/2022/928717 | I86: Kontrahent 49 | J86: 2778325543 | K86: Chełmska 2 Koszalin | L86: 2022-07-24
H87: FV/2022/935074 | I87: Kontrahent 52 | J87: 2236284954 | K87: Chmielna 46 Ustrzyki Dolne | L87: 2022-06-23
H88: FV/2022/936015 | I88: Kontrahent 89 | J88: 3677544439 | K88: Ciasna 10 Lębork | L88: 2022-10-09
H89: FV/2022/939360 | I89: Kontrahent 104 | J89: 6524349996 | K89: Cicha 14 Gdańsk | L89: 2022-05-31
H90: FV/2022/940767 | I90: Kontrahent 72 | J90: 7571345196 | K90: Ciechanowska 48 Niepołomice | L90: 2022-01-28
H91: FV/2022/944565 | I91: Kontrahent 50 | J91: 8836254781 | K91: Ciechocińska 42 Aleksandrów Kuj. | L91: 2022-07-08
H92: FV/2022/952341 | I92: Kontrahent 56 | J92: 3179631317 | K92: Ciekawa 27 Chełmno | L92: 2022-05-15
H93: FV/2022/962515 | I93: Kontrahent 16 | J93: 8967825712 | K93: Cienista 27 Grudziądz | L93: 2022-06-14
H94: FV/2022/964205 | I94: Kontrahent 106 | J94: 3514225713 | K94: Cierpicka 22 Toruń | L94: 2022-05-14
H95: FV/2022/966144 | I95: Kontrahent 66 | J95: 5276293317 | K95: Cisowa 11 Poznań | L95: 2022-02-21
H96: FV/2022/967088 | I96: Kontrahent 93 | J96: 7318111599 | K96: Cypriana Kamila Norwida 19 Trzebiatów | L96: 2022-08-20
H97: FV/2022/968190 | I97: Kontrahent 25 | J97: 5785389942 | K97: Cyprysowa 10 Koszalin | L97: 2022-03-27
H98: FV/2022/972839 | I98: Kontrahent 13 | J98: 5565612378 | K98: Czapli 48 Ustrzyki Dolne | L98: 2022-06-28
H99: FV/2022/975858 | I99: Kontrahent 55 | J99: 2284478225 | K99: Czecha 24 Lębork | L99: 2022-05-18
H100: FV/2022/977251 | I100: Kontrahent 110 | J100: 2511819653 | K100: Czekoladowa 13 Gdańsk | L100: 2022-04-16
H101: FV/2022/983686 | I101: Kontrahent 86 | J101: 2452353471 | K101: Czeremchowa 32 Kraków | L101: 2022-10-22
H102: FV/2022/986746 | I102: Kontrahent 101 | J102: 5567647866 | K102: Czereśniowa 35 Warszawa | L102: 2022-07-01

Sheet 24.1 (hidden)
D6: Nr dokumentu | E6: Data wystawienia
D7: FV/2022/823379 | E7: 2022-12-12
D8: FV/2022/755561 | E8: 2022-12-17
D9: FV/2022/895871 | E9: 2022-12-22
D10: FV/2022/816500 | E10: 2022-12-27
D11: FV/2022/636900 | E11: 2022-01-01
D12: FV/2022/939362 | E12: 2022-01-06
D13: FV/2022/640277 | E13: 2022-01-11

Sheet 25
B2: ROK | C2: 1950 | E2: KRAJ | F2: Portugal
B4: Spodziewana długość życia | E4: =INDEX(A7:H202,MATCH(F2,A7:A202,0),MATCH(C2,A7:H7,0)) -> 59.3
A6: Spodziewana długość życia ludzi wg statystyk umieralności
A7: KRAJ | B7: 1800 | C7: 1850 | D7: 1900 | E7: 1950 | F7: 2000 | G7: 2050 | H7: 2100
A8: Afghanistan | B8: 28.2 | C8: 27.7 | D8: 33.3 | E8: 42.7 | F8: 54.7 | G8: 70 | H8: 76.8
A9: Angola | B9: 27 | C9: 27 | D9: 32.6 | E9: 45.6 | F9: 52.8 | G9: 73.1 | H9: 80
A10: Albania | B10: 35.4 | C10: 35.4 | D10: 34.9 | E10: 52.2 | F10: 75.4 | G10: 82.8 | H10: 88.4
A11: Andorra | E11: 74.6 | F11: 80.8
A12: UAE | B12: 30.7 | C12: 30.7 | D12: 35.4 | E12: 58.4 | F12: 69.1 | G12: 78 | H12: 83.3
A13: Argentina | B13: 33.2 | C13: 33.2 | D13: 37.2 | E13: 63.3 | F13: 74.2 | G13: 81.2 | H13: 87.2
A14: Armenia | B14: 34 | C14: 34 | D14: 35.9 | E14: 48.2 | F14: 72.4 | G14: 79.9 | H14: 86.2
A15: Antigua and Barbuda | B15: 33.5 | C15: 33.5 | D15: 33.7 | E15: 58.1 | F15: 74.8 | G15: 80.2 | H15: 85.9
A16: Australia | B16: 34 | C16: 34 | D16: 50 | E16: 69.4 | F16: 79.7 | G16: 86.6 | H16: 92.3
A17: Austria | B17: 34.4 | C17: 34.4 | D17: 41.5 | E17: 64.8 | F17: 78.5 | G17: 86.5 | H17: 92
A18: Azerbaijan | B18: 29.2 | C18: 29.2 | D18: 27.1 | E18: 37.8 | F18: 66.5 | G18: 74.4 | H18: 80.8
A19: Burundi | B19: 31.5 | C19: 31.5 | D19: 32 | E19: 40.2 | F19: 44.7 | G19: 72.2 | H19: 80.1
A20: Belgium | B20: 40 | C20: 42.3 | D20: 46.7 | E20: 66.6 | F20: 78 | G20: 85.6 | H20: 91.1
A21: Benin | B21: 31 | C21: 31 | D21: 34.9 | E21: 43.6 | F21: 57.4 | G21: 71.3 | H21: 77.9
A22: Burkina Faso | B22: 29.2 | C22: 29.2 | D22: 31.4 | E22: 36.1 | F22: 52.5 | G22: 70.3 | H22: 77.3
A23: Bangladesh | B23: 25.5 | C23: 25.5 | D23: 21.2 | E23: 39.7 | F23: 65.5 | G23: 81.5 | H23: 88.7
A24: Bulgaria | B24: 35.8 | C24: 38 | D24: 40.1 | E24: 61 | F24: 70.2 | G24: 77.3 | H24: 83.3
A25: Bahrain | B25: 30.3 | C25: 30.3 | D25: 32.9 | E25: 50.7 | F25: 71.7 | G25: 81 | H25: 86.4
A26: Bahamas | B26: 35.2 | C26: 35.2 | D26: 34.9 | E26: 58 | F26: 71.3 | G26: 76.9 | H26: 83.1
A27: Bosnia and Herzegovina | B27: 35.1 | C27: 35.1 | D27: 35 | E27: 51.1 | F27: 75.5 | G27: 81.5 | H27: 87.3
A28: Belarus | B28: 36.2 | C28: 36.2 | D28: 36.9 | E28: 68.2 | F28: 69 | G28: 78.3 | H28: 84.3
A29: Belize | B29: 26.5 | C29: 26.5 | D29: 26.6 | E29: 55.5 | F29: 70 | G29: 78.9 | H29: 85.5
A30: Bolivia | B30: 33 | C30: 33 | D30: 31.9 | E30: 36.4 | F30: 66.5 | G30: 78 | H30: 85.1
A31: Brazil | B31: 32 | C31: 32 | D31: 31.4 | E31: 47.6 | F31: 71.2 | G31: 81.6 | H31: 88
A32: Barbados | B32: 32.1 | C32: 32.1 | D32: 32.7 | E32: 58.8 | F32: 74.7 | G32: 80.3 | H32: 85.4
A33: Brunei | B33: 29.2 | C33: 29.2 | D33: 28.3 | E33: 51.7 | F33: 72.5 | G33: 78.4 | H33: 84.3
A34: Bhutan | B34: 28.8 | C34: 28.8 | D34: 31.9 | E34: 36.9 | F34: 65.7 | G34: 79.5 | H34: 86.3
A35: Botswana | B35: 33.6 | C35: 33.6 | D35: 35.4 | E35: 53.7 | F35: 45.5 | G35: 65.7 | H35: 71.6
A36: Central African Republic | B36: 30 | C36: 30 | D36: 33.8 | E36: 43.6 | F36: 43.8 | G36: 60.6 | H36: 67.4
A37: Canada | B37: 39 | C37: 41 | D37: 48.4 | E37: 68.5 | F37: 79.4 | G37: 86.2 | H37: 91.6
A38: Switzerland | B38: 38 | C38: 38 | D38: 47.5 | E38: 69 | F38: 80.3 | G38: 87.7 | H38: 93.3
A39: Chile | B39: 32 | C39: 32 | D39: 31.1 | E39: 50.3 | F39: 76.9 | G39: 85.2 | H39: 90.7
A40: China | B40: 32 | C40: 32 | D40: 32 | E40: 41.6 | F40: 71.3 | G40: 82.6 | H40: 88.7
A41: Cote d'Ivoire | B41: 31.2 | C41: 31.2 | D41: 35.1 | E41: 41.8 | F41: 51.1 | G41: 71.2 | H41: 78.3
A42: Cameroon | B42: 28.8 | C42: 28.8 | D42: 30 | E42: 42.4 | F42: 54.5 | G42: 71.5 | H42: 78.9
A43: Congo, Dem. Rep. | B43: 31.6 | C43: 31.6 | D43: 33.8 | E43: 45.3 | F43: 53.9 | G43: 72.3 | H43: 79.1
A44: Congo, Rep. | B44: 32.7 | C44: 32.7 | D44: 32.8 | E44: 42 | F44: 53 | G44: 70.5 | H44: 76.5
A45: Colombia | B45: 32 | C45: 32 | D45: 33.4 | E45: 54.1 | F45: 74.2 | G45: 85.5 | H45: 91.7
A46: Comoros | B46: 32.1 | C46: 32.1 | D46: 33.5 | E46: 44.7 | F46: 61.4 | G46: 74 | H46: 80.3
A47: Cape Verde | B47: 33.8 | C47: 33.8 | D47: 36 | E47: 56.2 | F47: 70.3 | G47: 78.8 | H47: 86
A48: Costa Rica | B48: 30.2 | C48: 30.2 | D48: 35 | E48: 57.5 | F48: 77.9 | G48: 85 | H48: 90.5
A49: Cuba | B49: 32.2 | C49: 36.3 | D49: 34.9 | E49: 66.4 | F49: 77 | G49: 83.4 | H49: 88.8
A50: Cyprus | B50: 38.5 | C50: 38.5 | D50: 40.9 | E50: 62.2 | F50: 76.7 | G50: 85.1 | H50: 90.5
A51: Czech Republic | B51: 35 | C51: 35 | D51: 40.2 | E51: 64.3 | F51: 75.2 | G51: 83.8 | H51: 89.3
A52: Germany | B52: 38.4 | C52: 38.4 | D52: 43.8 | E52: 66.5 | F52: 78.4 | G52: 85.4 | H52: 91
A53: Djibouti | B53: 29.9 | C53: 29.9 | D53: 33.9 | E53: 54.6 | F53: 60.4 | G53: 72.8 | H53: 80.2
A54: Dominica | E54: 49.3 | F54: 72.1
A55: Denmark | B55: 37.4 | C55: 43.5 | D55: 52 | E55: 70.7 | F55: 77.2 | G55: 85.4 | H55: 90.8
A56: Dominican Republic | B56: 29.9 | C56: 29.9 | D56: 32.9 | E56: 56.2 | F56: 73.7 | G56: 78.1 | H56: 84.8
A57: Algeria | B57: 28.8 | C57: 15 | D57: 32.2 | E57: 55.1 | F57: 71 | G57: 81.2 | H57: 87
A58: Ecuador | B58: 32.9 | C58: 32.9 | D58: 33.7 | E58: 50.3 | F58: 74.5 | G58: 82 | H58: 88
A59: Egypt | B59: 33 | C59: 33 | D59: 33.9 | E59: 41.3 | F59: 68.5 | G59: 75.5 | H59: 82.3
A60: Eritrea | B60: 30.2 | C60: 30.2 | D60: 31.6 | E60: 39.8 | F60: 54.8 | G60: 70.7 | H60: 78.1
A61: Spain | B61: 29.5 | C61: 29.5 | D61: 34.8 | E61: 61.8 | F61: 79.5 | G61: 86.8 | H61: 92.3
A62: Estonia | B62: 36.1 | C62: 34 | D62: 43.1 | E62: 66.7 | F62: 71 | G62: 82.3 | H62: 87.7
A63: Ethiopia | B63: 29.7 | C63: 29.7 | D63: 29.7 | E63: 33.3 | F63: 51.1 | G63: 76.7 | H63: 84.7
A64: Finland | B64: 36.6 | C64: 37.4 | D64: 41.9 | E64: 64.5 | F64: 78 | G64: 85.9 | H64: 91.5
A65: Fiji | B65: 26.1 | C65: 26.1 | D65: 27.7 | E65: 59.3 | F65: 65.8 | G65: 72.6 | H65: 79.1
A66: France | B66: 34 | C66: 43.3 | D66: 45.3 | E66: 67.1 | F66: 79.2 | G66: 86.7 | H66: 92.3
A67: Micronesia, Fed. Sts. | B67: 26.7 | C67: 26.7 | D67: 26 | E67: 49.9 | F67: 62.6 | G67: 67.2 | H67: 72.2
A68: Gabon | B68: 30.6 | C68: 30.6 | D68: 34.6 | E68: 48.6 | F68: 59.6 | G68: 72.5 | H68: 78.9
A69: UK | B69: 38.6 | C69: 42.8 | D69: 46.4 | E69: 68.9 | F69: 78 | G69: 85.3 | H69: 90.5
A70: Georgia | B70: 31.9 | C70: 31.9 | D70: 33.8 | E70: 49.6 | F70: 70.7 | G70: 77.8 | H70: 84.4
A71: Ghana | B71: 28 | C71: 28 | D71: 29.5 | E71: 47.1 | F71: 59.6 | G71: 72.5 | H71: 79.2
A72: Guinea | B72: 29.5 | C72: 30 | D72: 32.6 | E72: 38.4 | F72: 54.3 | G72: 68.3 | H72: 74.2
A73: Gambia | B73: 28.8 | C73: 28.8 | D73: 36.9 | E73: 51.8 | F73: 61.6 | G73: 74.2 | H73: 81
A74: Guinea-Bissau | B74: 32 | C74: 32 | D74: 30.3 | E74: 33.3 | F74: 51.5 | G74: 68.9 | H74: 75.8
A75: Equatorial Guinea | B75: 29.8 | C75: 29.8 | D75: 31.6 | E75: 39.3 | F75: 57.6 | G75: 74.3 | H75: 81.4
A76: Greece | B76: 36.6 | C76: 36.6 | D76: 40.8 | E76: 69 | F76: 78.4 | G76: 84.9 | H76: 90.4
A77: Grenada | B77: 31.4 | C77: 37.3 | D77: 38.2 | E77: 58.6 | F77: 72 | G77: 77.3 | H77: 83.9
A78: Guatemala | B78: 25.8 | C78: 25.8 | D78: 26.1 | E78: 42.7 | F78: 66.7 | G78: 78.4 | H78: 85
A79: Guyana | B79: 31.1 | C79: 31.1 | D79: 30.1 | E79: 51.8 | F79: 64 | G79: 70.6 | H79: 76.7
A80: Hong Kong, China | B80: 34.9 | C80: 34.9 | D80: 34.9 | E80: 62.1 | F80: 80.4 | G80: 88.5 | H80: 93.8
A81: Honduras | B81: 33.9 | C81: 33.9 | D81: 33.9 | E81: 40.8 | F81: 70.1 | G81: 76.9 | H81: 83
A82: Croatia | B82: 36.1 | C82: 36.1 | D82: 34.9 | E82: 55 | F82: 74.7 | G82: 83.4 | H82: 89.1
A83: Haiti | B83: 29 | C83: 29 | D83: 30.9 | E83: 42.5 | F83: 57.4 | G83: 70.3 | H83: 77.1
A84: Hungary | B84: 36 | C84: 36 | D84: 37.3 | E84: 61.9 | F84: 71.9 | G84: 80.9 | H84: 86.8
A85: Indonesia | B85: 30 | C85: 30 | D85: 30 | E85: 36.4 | F85: 67.2 | G85: 76.4 | H85: 83.6
A86: India | B86: 25.4 | C86: 25.4 | D86: 20.1 | E86: 43.4 | F86: 62.9 | G86: 76.2 | H86: 83.3
A87: Ireland | B87: 38.3 | C87: 31.2 | D87: 49.2 | E87: 66 | F87: 76.8 | G87: 86.1 | H87: 91.5
A88: Iran | B88: 25.6 | C88: 25.6 | D88: 25.6 | E88: 39.4 | F88: 71.9 | G88: 83.1 | H88: 89.1
A89: Iraq | B89: 31.2 | C89: 31.2 | D89: 38.3 | E89: 56 | F89: 68.6 | G89: 77.3 | H89: 83.9
A90: Iceland | B90: 42.9 | C90: 36.6 | D90: 46.8 | E90: 71.5 | F90: 80.3 | G90: 88 | H90: 93.4
A91: Israel | B91: 32 | C91: 32 | D91: 33.6 | E91: 73 | F91: 78.9 | G91: 86.9 | H91: 92.4
A92: Italy | B92: 29.7 | C92: 29.7 | D92: 41.7 | E92: 65.9 | F92: 79.6 | G92: 86.9 | H92: 92.4
A93: Jamaica | B93: 34.2 | C93: 34.2 | D93: 38 | E93: 57.5 | F93: 74.6 | G93: 80 | H93: 86.4
A94: Jordan | B94: 31.7 | C94: 31.7 | D94: 34.9 | E94: 56.9 | F94: 72.9 | G94: 82.6 | H94: 89.2
A95: Japan | B95: 36.4 | C95: 36.4 | D95: 38.7 | E95: 59.8 | F95: 81.6 | G95: 88.4 | H95: 94
A96: Kazakhstan | B96: 26.2 | C96: 26.2 | D96: 28.7 | E96: 57.4 | F96: 64.7 | G96: 75.9 | H96: 82.6
A97: Kenya | B97: 25.5 | C97: 25.5 | D97: 27.1 | E97: 48.8 | F97: 54.8 | G97: 72.4 | H97: 79.9
A98: Kyrgyz Republic | B98: 23.9 | C98: 23.9 | D98: 25.5 | E98: 50 | F98: 67.2 | G98: 77.8 | H98: 85.2
A99: Cambodia | B99: 35 | C99: 35 | D99: 37.1 | E99: 46.2 | F99: 60.4 | G99: 75.1 | H99: 82
A100: Kiribati | B100: 24.9 | C100: 24.9 | D100: 25.4 | E100: 44.7 | F100: 56.4 | G100: 65.9 | H100: 72.8
A101: St. Kitts and Nevis | E101: 60.8 | F101: 69.9
A102: South Korea | B102: 25.8 | C102: 25.8 | D102: 25.8 | E102: 43 | F102: 76.3 | G102: 86.9 | H102: 92.7
A103: Kuwait | B103: 26 | C103: 26 | D103: 28.7 | E103: 65.3 | F103: 78.1 | G103: 85.3 | H103: 91.7
A104: Lao | B104: 31.9 | C104: 31.9 | D104: 31.5 | E104: 38.9 | F104: 58.4 | G104: 75.4 | H104: 82.4
A105: Lebanon | B105: 29.7 | C105: 29.7 | D105: 29.6 | E105: 58.8 | F105: 74.8 | G105: 81.3 | H105: 86.8
A106: Liberia | B106: 31.1 | C106: 31.1 | D106: 33 | E106: 38 | F106: 54.8 | G106: 72.4 | H106: 78.6
A107: Libya | B107: 33.1 | C107: 33.1 | D107: 36.4 | E107: 47.3 | F107: 74.9 | G107: 80.6 | H107: 87.8
A108: St. Lucia | B108: 28 | C108: 28 | D108: 28 | E108: 51.8 | F108: 73.4 | G108: 79.1 | H108: 84.9
A109: Sri Lanka | B109: 32.6 | C109: 32.6 | D109: 33.5 | E109: 56.3 | F109: 71.5 | G109: 82.4 | H109: 88.4
A110: Lesotho | B110: 32.8 | C110: 32.8 | D110: 36.1 | E110: 52 | F110: 48.5 | G110: 61.4 | H110: 69.2
A111: Lithuania | B111: 28.9 | C111: 28.9 | D111: 42.6 | E111: 67.1 | F111: 72.2 | G111: 81 | H111: 86.6
A112: Luxembourg | B112: 36.9 | C112: 36.9 | D112: 47.8 | E112: 66.4 | F112: 78 | G112: 87 | H112: 92.7
A113: Latvia | B113: 33 | C113: 33 | D113: 46.2 | E113: 64.7 | F113: 70.7 | G113: 80.2 | H113: 86.2
A114: Morocco | B114: 33.1 | C114: 33.1 | D114: 33 | E114: 44.6 | F114: 69.5 | G114: 78.8 | H114: 84.5
A115: Monaco | E115: 68.2 | F115: 78.8
A116: Moldova | B116: 33.1 | C116: 33.1 | D116: 32.1 | E116: 53.4 | F116: 68.9 | G116: 78.4 | H116: 85.5
A117: Madagascar | B117: 30.5 | C117: 30.5 | D117: 32.4 | E117: 41.3 | F117: 59.5 | G117: 72.6 | H117: 80.1
A118: Maldives | B118: 32.6 | C118: 32.6 | D118: 31.9 | E118: 30.6 | F118: 72.2 | G118: 85.5 | H118: 91.3
A119: Mexico | B119: 26.9 | C119: 26.9 | D119: 27.6 | E119: 48.8 | F119: 74.2 | G119: 80.8 | H119: 87.2
A120: Marshall Islands | E120: 52.1 | F120: 62.7
A121: North Macedonia | B121: 36.1 | C121: 36.1 | D121: 35.4 | E121: 50.2 | F121: 71.5 | G121: 78.5 | H121: 84.5
A122: Mali | B122: 26.4 | C122: 26.4 | D122: 29.7 | E122: 35.2 | F122: 53.3 | G122: 69.5 | H122: 75.3
A123: Malta | B123: 28.7 | C123: 28.7 | D123: 41.4 | E123: 63.2 | F123: 78.8 | G123: 86.6 | H123: 92.1
A124: Myanmar | B124: 30.8 | C124: 30.8 | D124: 31.2 | E124: 34.6 | F124: 58.9 | G124: 74.5 | H124: 81.6
A125: Montenegro | B125: 35.4 | C125: 35.4 | D125: 37.3 | E125: 67.5 | F125: 73.7 | G125: 80.2 | H125: 85.7
A126: Mongolia | B126: 31.8 | C126: 31.8 | D126: 30.8 | E126: 38.9 | F126: 61 | G126: 73.4 | H126: 81
A127: Mozambique | B127: 30.3 | C127: 30.3 | D127: 35 | E127: 43 | F127: 52.2 | G127: 67.2 | H127: 75
A128: Mauritania | B128: 32 | C128: 32 | D128: 35.3 | E128: 47.6 | F128: 63.6 | G128: 75.8 | H128: 81.9
A129: Mauritius | B129: 28.7 | C129: 31.1 | D129: 26.3 | E129: 53.1 | F129: 72.3 | G129: 80.2 | H129: 86.7
A130: Malawi | B130: 30.3 | C130: 30.3 | D130: 29.8 | E130: 34.4 | F130: 45.9 | G130: 73.7 | H130: 82.1
A131: Malaysia | B131: 30.6 | C131: 30.6 | D131: 30.6 | E131: 53.5 | F131: 73 | G131: 79.3 | H131: 85.4
A132: Namibia | B132: 32.4 | C132: 32.4 | D132: 36.8 | E132: 54.8 | F132: 53.9 | G132: 72.6 | H132: 80
A133: Niger | B133: 30.8 | C133: 30.8 | D133: 31.8 | E133: 37.8 | F133: 51.9 | G133: 70.3 | H133: 76.5
A134: Nigeria | B134: 30.4 | C134: 30.4 | D134: 34.3 | E134: 44.8 | F134: 54.6 | G134: 74.2 | H134: 82.5
A135: Nicaragua | B135: 25.4 | C135: 25.4 | D135: 26.9 | E135: 47.7 | F135: 73.7 | G135: 81.3 | H135: 88.1
A136: Netherlands | B136: 39.9 | C136: 39.9 | D136: 48.4 | E136: 71.6 | F136: 78.3 | G136: 85.7 | H136: 91
A137: Norway | B137: 37.9 | C137: 49.5 | D137: 53.6 | E137: 71.9 | F137: 78.9 | G137: 86.8 | H137: 92.3
A138: Nepal | B138: 32.8 | C138: 32.8 | D138: 35 | E138: 40.6 | F138: 65.4 | G138: 77.3 | H138: 84.3
A139: Nauru | E139: 58.5 | F139: 59.1
A140: New Zealand | B140: 34 | C140: 34 | D140: 47.5 | E140: 69.5 | F140: 78.4 | G140: 85.8 | H140: 91.3
A141: Oman | B141: 32.3 | C141: 32.3 | D141: 34.6 | E141: 40.8 | F141: 69.1 | G141: 79.4 | H141: 85
A142: Pakistan | B142: 25.8 | C142: 25.8 | D142: 23.3 | E142: 46 | F142: 61 | G142: 69.9 | H142: 76.1
A143: Panama | B143: 32.9 | C143: 32.9 | D143: 34 | E143: 60.8 | F143: 78 | G143: 85.2 | H143: 90.9
A144: Peru | B144: 35.7 | C144: 35.7 | D144: 34.1 | E144: 38.1 | F144: 74.6 | G144: 86.5 | H144: 93
A145: Philippines | B145: 30.9 | C145: 30.9 | D145: 31 | E145: 55.1 | F145: 70.3 | G145: 75.9 | H145: 83
A146: Palau | E146: 49 | F146: 66.4
A147: Papua New Guinea | B147: 31.5 | C147: 31.5 | D147: 37.1 | E147: 49.6 | F147: 63.1 | G147: 69.5 | H147: 75.2
A148: Poland | B148: 35.9 | C148: 35.9 | D148: 40.4 | E148: 59 | F148: 73.9 | G148: 82.7 | H148: 88.3
A149: North Korea | B149: 26 | C149: 26 | D149: 26 | E149: 36 | F149: 63.9 | G149: 78.5 | H149: 85.9
A150: Portugal | B150: 35.6 | C150: 35.6 | D150: 35.8 | E150: 59.3 | F150: 76.8 | G150: 85.9 | H150: 91.5
A151: Paraguay | B151: 35.5 | C151: 35.5 | D151: 35.2 | E151: 61.1 | F151: 75.6 | G151: 80.2 | H151: 86.9
A152: Palestine | B152: 32.1 | C152: 32.1 | D152: 34.3 | E152: 54.4 | F152: 70.2 | G152: 79.5 | H152: 86
A153: Qatar | B153: 30.8 | C153: 30.8 | D153: 33.1 | E153: 64.5 | F153: 71.2 | G153: 80.5 | H153: 85.7
A154: Romania | B154: 35.7 | C154: 35.7 | D154: 35.6 | E154: 60.5 | F154: 71.2 | G154: 79.8 | H154: 86
A155: Russia | B155: 29.6 | C155: 29.6 | D155: 30.8 | E155: 57.3 | F155: 65.6 | G155: 77.3 | H155: 84.2
A156: Rwanda | B156: 31.8 | C156: 31.8 | D156: 24.3 | E156: 36.5 | F156: 50.5 | G156: 75.5 | H156: 83.1
A157: Saudi Arabia | B157: 32.1 | C157: 32.1 | D157: 35 | E157: 50.9 | F157: 70.4 | G157: 79 | H157: 85.2
A158: Sudan | B158: 31.4 | C158: 31.4 | D158: 32.4 | E158: 46.9 | F158: 63.3 | G158: 76.7 | H158: 84.1
A159: Senegal | B159: 25.2 | C159: 25.2 | D159: 28.1 | E159: 45.2 | F159: 60.6 | G159: 74.7 | H159: 82
A160: Singapore | B160: 29.1 | C160: 34 | D160: 33.7 | E160: 57 | F160: 79.4 | G160: 88.6 | H160: 94.4
A161: Solomon Islands | B161: 25.1 | C161: 25.1 | D161: 24.6 | E161: 42.1 | F161: 57 | G161: 62.3 | H161: 67.7
A162: Sierra Leone | B162: 25.1 | C162: 25.1 | D162: 28.9 | E162: 40 | F162: 51.6 | G162: 72.3 | H162: 80.3
A163: El Salvador | B163: 28.7 | C163: 28.7 | D163: 29.4 | E163: 46 | F163: 73.1 | G163: 81.8 | H163: 88.9
A164: San Marino | E164: 72 | F164: 81.5
A165: Somalia | B165: 29.4 | C165: 29.4 | D165: 33.1 | E165: 44.2 | F165: 51.4 | G165: 66 | H165: 73
A166: Serbia | B166: 35.5 | C166: 35.5 | D166: 34.6 | E166: 54.4 | F166: 71.4 | G166: 79.9 | H166: 86
A167: South Sudan | B167: 26.7 | C167: 26.7 | D167: 34.4 | E167: 47.2 | F167: 57 | G167: 71.1 | H167: 78.2
A168: Sao Tome and Principe | B168: 31 | C168: 31 | D168: 29.8 | E168: 40.7 | F168: 65 | G168: 76.1 | H168: 83.6
A169: Suriname | B169: 32.9 | C169: 32.9 | D169: 33.6 | E169: 57.7 | F169: 69.8 | G169: 76.8 | H169: 83.8
A170: Slovak Republic | B170: 36.4 | C170: 36.4 | D170: 37.9 | E170: 60.7 | F170: 73.7 | G170: 82 | H170: 87.6
A171: Slovenia | B171: 36.6 | C171: 36.6 | D171: 36.6 | E171: 58.5 | F171: 76.3 | G171: 85.5 | H171: 91.2
A172: Sweden | B172: 32.2 | C172: 44.7 | D172: 52.3 | E172: 71.4 | F172: 80 | G172: 86.7 | H172: 92.1
A173: Eswatini | B173: 32.3 | C173: 32.3 | D173: 33.1 | E173: 43.3 | F173: 48.3 | G173: 65.5 | H173: 71.8
A174: Seychelles | B174: 37 | C174: 37 | D174: 45.4 | E174: 60 | F174: 72.2 | G174: 77.9 | H174: 84.8
A175: Syria | B175: 31.1 | C175: 31.1 | D175: 32.9 | E175: 55 | F175: 71.6 | G175: 82.3 | H175: 87.9
A176: Chad | B176: 30.9 | C176: 30.9 | D176: 34 | E176: 45 | F176: 52.3 | G176: 69 | H176: 77.6
A177: Togo | B177: 31.3 | C177: 31.3 | D177: 35 | E177: 44.8 | F177: 56.4 | G177: 72.2 | H177: 79.1
A178: Thailand | B178: 30.4 | C178: 30.4 | D178: 31.1 | E178: 53.8 | F178: 71.8 | G178: 83.8 | H178: 89.8
A179: Tajikistan | B179: 24.2 | C179: 24.2 | D179: 26.1 | E179: 46.2 | F179: 66.6 | G179: 74.6 | H179: 81.3
A180: Turkmenistan | B180: 24 | C180: 24 | D180: 24 | E180: 48.4 | F180: 66.3 | G180: 74.6 | H180: 81.3
A181: Timor-Leste | B181: 28.9 | C181: 28.9 | D181: 34 | E181: 42.5 | F181: 65.5 | G181: 75.6 | H181: 82.4
A182: Tonga | B182: 28.2 | C182: 28.2 | D182: 28.9 | E182: 61.5 | F182: 70.7 | G182: 76.5 | H182: 82.7
A183: Trinidad and Tobago | B183: 32.9 | C183: 38.8 | D183: 38.9 | E183: 57.4 | F183: 70.5 | G183: 78.8 | H183: 85.6
A184: Tunisia | B184: 28.8 | C184: 14 | D184: 30.4 | E184: 43.8 | F184: 74.3 | G184: 83 | H184: 88.9
A185: Turkey | B185: 35 | C185: 35 | D185: 36.6 | E185: 45 | F185: 74.7 | G185: 84.5 | H185: 90.5
A186: Tuvalu | E186: 47 | F186: 61.5
A187: Taiwan | B187: 28.3 | C187: 28.3 | D187: 29.5 | E187: 60.6 | F187: 76.9 | G187: 84.9 | H187: 90.5
A188: Tanzania | B188: 32.2 | C188: 32.2 | D188: 33.2 | E188: 43.8 | F188: 53.4 | G188: 74.3 | H188: 82
A189: Uganda | B189: 25.3 | C189: 25.3 | D189: 27.3 | E189: 47.1 | F189: 49.6 | G189: 74 | H189: 81.8
A190: Ukraine | B190: 36.6 | C190: 36.6 | D190: 37.8 | E190: 68.2 | F190: 68 | G190: 78.1 | H190: 85.1
A191: Uruguay | B191: 32.9 | C191: 32.9 | D191: 32.8 | E191: 65.1 | F191: 74.8 | G191: 82.1 | H191: 87.8
A192: USA | B192: 39.4 | C192: 39.4 | D192: 49 | E192: 68.3 | F192: 77 | G192: 83.5 | H192: 88.9
A193: Uzbekistan | B193: 26.9 | C193: 26.9 | D193: 29.1 | E193: 56.3 | F193: 65.1 | G193: 71.5 | H193: 77.5
A194: St. Vincent and the Grenadines | B194: 26 | C194: 26 | D194: 26.7 | E194: 53.6 | F194: 71.1 | G194: 76.9 | H194: 83.5
A195: Venezuela | B195: 32.2 | C195: 32.2 | D195: 33.2 | E195: 58.7 | F195: 74.2 | G195: 80.1 | H195: 87.3
A196: Vietnam | B196: 32 | C196: 32 | D196: 32.1 | E196: 52.3 | F196: 72.2 | G196: 78.8 | H196: 85
A197: Vanuatu | B197: 24.3 | C197: 24.3 | D197: 25.8 | E197: 47.4 | F197: 63.6 | G197: 69.2 | H197: 75.1
A198: Samoa | B198: 25.4 | C198: 25.4 | D198: 27.4 | E198: 54.4 | F198: 68.5 | G198: 74.3 | H198: 80.8
A199: Yemen | B199: 23.4 | C199: 23.4 | D199: 26.6 | E199: 31.9 | F199: 63.5 | G199: 72.2 | H199: 78
A200: South Africa | B200: 33.5 | C200: 33.5 | D200: 36 | E200: 52.1 | F200: 55.6 | G200: 70.9 | H200: 77.7
A201: Zambia | B201: 32.6 | C201: 32.6 | D201: 34.3 | E201: 47 | F201: 45.3 | G201: 69.8 | H201: 77.1
A202: Zimbabwe | B202: 33.7 | C202: 33.7 | D202: 35.3 | E202: 53.8 | F202: 47.5 | G202: 67.6 | H202: 74.4

Sheet 26
B2: kod produktu | C2: czas pracy na produkcie | D2: środkowy argument w [] | F2: Czas grupy ID
B3: ID[afwf]67 | C3: 08:00:00 | D3: afwf | F3: =SUMIF(B3:B27,"ID*",C3:C27) -> 2.736111111
B4: TM[sasa]38 | C4: 08:00:00 | D4: sasa
B5: DB[okjijao]28 | C5: 08:16:00 | D5: okjijao
B6: GH[mclma]73 | C6: 00:15:00 | D6: mclma
B7: ID[asscdc]25 | C7: 08:00:00 | D7: asscdc
B8: TM[xasxa]61 | C8: 07:00:00 | D8: xasxa
B9: DB[klow]72 | C9: 07:25:00 | D9: klow
B10: GH[axz]48 | C10: 19:01:00 | D10: axz
B11: ID[csacfdd]84 | C11: 07:50:00 | D11: csacfdd
B12: TM[mknn]97 | C12: 08:00:00 | D12: mknn
B13: DB[snka]72 | C13: 15:54:00 | D13: snka
B14: GH[skiuhe]66 | C14: 17:59:00 | D14: skiuhe
B15: ID[oishxh]32 | C15: 08:00:00 | D15: oishxh
B16: TM[iajoj]27 | C16: 07:00:00 | D16: iajoj
B17: DB[wnjkn]95 | C17: 06:30:00 | D17: wnjkn
B18: GH[spopw]99 | C18: 17:14:00 | D18: spopw
B19: ID[iuhas]41 | C19: 08:00:00 | D19: iuhas
B20: TM[njnjck]39 | C20: 06:00:00 | D20: njnjck
B21: ID[iopkl]73 | C21: 07:50:00 | D21: iopkl
B22: TM[hwu]92 | C22: 05:00:00 | D22: hwu
B23: DB[ddoio]80 | C23: 05:52:00 | D23: ddoio
B24: GH[owjjqoj]79 | C24: 03:30:00 | D24: owjjqoj
B25: ID[ojcbhdsj]58 | C25: 18:00:00 | D25: ojcbhdsj
B26: TM[aasg]94 | C26: 08:00:00 | D26: aasg
B27: DB[uggis]32 | C27: 02:52:00 | D27: uggis

Sheet 27
A2: Plan sprzedaży | B2: 270000 | D2: Stopień wykonanania planu | F2: =G29/B2 -> 0.7244740741 | I2: Rozpatrywany miesiąc | K2: grudzień
A4: produkt | B4: handlowiec zgłaszający | C4: data zamówienia | D4: planowana data zakończenia produkcji | E4: Ilość zamówiona | F4: cena jednostkowa | G4: wartość spodziewanej sprzedaży
A5: ekran | B5: IR | C5: 2023-07-02 | D5: 2023-08-01 | E5: 12 | F5: 25 | G5: =E5*F5 -> 300
A6: ekran | B6: MA | C6: 2023-07-20 | D6: 2023-08-19 | E6: 9 | F6: 80 | G6: =E6*F6 -> 720
A7: ekran | B7: MA | C7: 2022-11-16 | D7: 2022-12-16 | E7: 25 | F7: 271 | G7: 6775
A8: firana | B8: MA | C8: 2022-12-03 | D8: 2023-01-02 | E8: 5 | F8: 640 | G8: 3200
A9: firana | B9: IR | C9: 2023-03-17 | D9: 2023-04-16 | E9: 71 | F9: 291 | G9: 20661
A10: kurtyna | B10: IR | C10: 2023-05-25 | D10: 2023-06-24 | E10: 23 | F10: 117 | G10: 2691
A11: moskitiera | B11: UJ | C11: 2023-07-07 | D11: 2023-08-06 | E11: 14 | F11: 851 | G11: 11914
A12: moskitiera | B12: HJ | C12: 2023-07-14 | D12: 2023-08-13 | E12: 22 | F12: 178 | G12: 3916
A13: moskitiera | B13: UJ | C13: 2022-08-19 | D13: 2022-09-18 | E13: 56 | F13: 233 | G13: 13048
A14: moskitiera | B14: UJ | C14: 2022-10-20 | D14: 2022-11-19 | E14: 6 | F14: 236 | G14: 1416
A15: roleta | B15: IR | C15: 2022-11-01 | D15: 2022-12-01 | E15: 69 | F15: 286 | G15: 19734
A16: roleta | B16: IR | C16: 2023-07-06 | D16: 2023-08-05 | E16: 50 | F16: 451 | G16: 22550
A17: roleta | B17: UJ | C17: 2022-09-15 | D17: 2022-10-15 | E17: 83 | F17: 132 | G17: =E17*F17 -> 10956
A18: taśma | B18: IR | C18: 2023-01-20 | D18: 2023-02-19 | E18: 13 | F18: 134 | G18: 1742
A19: taśma | B19: HJ | C19: 2023-04-09 | D19: 2023-05-09 | E19: 14 | F19: 102 | G19: 1428
A20: vertical | B20: ZD | C20: 2023-07-04 | D20: 2023-08-03 | E20: 10 | F20: 256 | G20: 2560
A21: vertical | B21: ZD | C21: 2023-07-19 | D21: 2023-08-18 | E21: 38 | F21: 258 | G21: 9804
A22: zaczep | B22: ZD | C22: 2023-07-01 | D22: 2023-07-31 | E22: 13 | F22: 259 | G22: 3367
A23: zaczep | B23: ZD | C23: 2023-07-17 | D23: 2023-08-16 | E23: 65 | F23: 52 | G23: 3380
A24: zasłona | B24: HJ | C24: 2022-10-05 | D24: 2022-11-04 | E24: 10 | F24: 754 | G24: 7540
A25: zasłona | B25: MA | C25: 2023-02-17 | D25: 2023-03-19 | E25: 43 | F25: 243 | G25: 10449
A26: zasłona | B26: MA | C26: 2023-06-16 | D26: 2023-07-16 | E26: 81 | F26: 217 | G26: 17577
A27: żaluzja | B27: ZD | C27: 2023-06-27 | D27: 2023-07-27 | E27: 80 | F27: 64 | G27: 5120
A28: żaluzja | B28: ZD | C28: 2023-07-08 | D28: 2023-08-07 | E28: 12 | F28: 1230 | G28: 14760
F29: suma | G29: =SUM(G5:G28) -> 195608

Sheet 28
B16: Miejsce | C16: Imię i nazwisko | D16: Majątek (USD)
B17: 1 | C17: Novak Djokovic | D17: 200 milionów | I17: Miejsce | J17: 13
B18: 2 | C18: Roger Federer | D18: 150 milionów
B19: 3 | C19: Rafael Nadal | D19: 125 milionów | I19: Tenisista | J19: =VLOOKUP(J17,B16:D36,2,0) -> Iga Świątek
B20: 4 | C20: Serena Williams | D20: 95 milionów
B21: 5 | C21: Venus Williams | D21: 75 milionów | I21: Majątek | J21: =VLOOKUP(J17,B16:D36,3,0) -> 13 milionów
B22: 6 | C22: Maria Szarapowa | D22: 60 milionów
B23: 7 | C23: Caroline Wozniacki | D23: 50 milionów
B24: 8 | C24: Ana Ivanovic | D24: 40 milionów
B25: 9 | C25: Li Na | D25: 30 milionów
B26: 10 | C26: Kim Clijsters | D26: 25 milionów
B27: 11 | C27: Simona Halep | D27: 20 milionów
B28: 12 | C28: Angelique Kerber | D28: 15 milionów
B29: 13 | C29: Iga Świątek | D29: 13 milionów
B30: 14 | C30: Victoria Azarenka | D30: 10 milionów
B31: 15 | C31: Agnieszka Radwańska | D31: 8 milionów
B32: 16 | C32: Petra Kvitova | D32: 7 milionów
B33: 17 | C33: Caroline Garcia | D33: 6 milionów
B34: 18 | C34: Sloane Stephens | D34: 5 milionów
B35: 19 | C35: Johanna Konta | D35: 4 miliony
B36: 20 | C36: Elise Mertens | D36: 3 miliony

Sheet 29
A1: Numer | B1: Data zlecenia | C1: Oddział | D1: Stan | E1: Kategoria | F1: Ilość | G1: Cena jednostkowa | H1: Wartość zamówienia
A2: ZLEC-00001 | B2: 2022-11-22 | C2: Warszawa | D2: Zakończone | E2: Akcesoria | F2: 68 | G2: 282 | H2: =F2*G2 -> 19176
A3: ZLEC-00002 | B3: 2022-11-22 | C3: Łódź | D3: Zakończone | E3: Sukienki | F3: 602 | G3: 387 | H3: =F3*G3 -> 232974
A4: ZLEC-00003 | B4: 2022-11-22 | C4: Kraków | D4: W toku | E4: Marynarki | F4: 124 | G4: 155 | H4: 19220
A5: ZLEC-00004 | B5: 2022-11-22 | C5: Wrocław | D5: W toku | E5: Koszule | F5: 56 | G5: 489 | H5: 27384
A6: ZLEC-00005 | B6: 2022-11-26 | C6: Poznań | D6: W toku | E6: T-shirty | F6: 18 | G6: 288 | H6: 5184
A7: ZLEC-00006 | B7: 2022-11-26 | C7: Gdańsk | D7: Zakończone | E7: Topy | F7: 92 | G7: 59 | H7: 5428
A8: ZLEC-00007 | B8: 2022-11-26 | C8: Łódź | D8: Zakończone | E8: Buty | F8: 500 | G8: 443 | H8: 221500
A9: ZLEC-00008 | B9: 2022-11-26 | C9: Bydgoszcz | D9: Zakończone | E9: Len | F9: 159 | G9: 466 | H9: 74094
A10: ZLEC-00009 | B10: 2022-11-30 | C10: Lublin | D10: W toku | E10: Szorty | F10: 115 | G10: 197 | H10: 22655
A11: ZLEC-00010 | B11: 2022-11-30 | C11: Łódź | D11: Nierozpoczęty | E11: Spodnie | F11: 79 | G11: 427 | H11: 33733
A12: ZLEC-00011 | B12: 2022-12-03 | C12: Łódź | D12: Zakończone | E12: Jeansy | F12: 500 | G12: 83 | H12: 41500
A13: ZLEC-00012 | B13: 2022-12-07 | C13: Bydgoszcz | D13: Zakończone | E13: Spódnice | F13: 120 | G13: 271 | H13: 32520
A14: ZLEC-00013 | B14: 2022-12-12 | C14: Wrocław | D14: Nierozpoczęty | E14: Kurtki, płaszcze | F14: 172 | G14: 316 | H14: 54352
A15: ZLEC-00014 | B15: 2022-12-15 | C15: Poznań | D15: Zakończone | E15: Swetry | F15: 50 | G15: 377 | H15: 18850
A16: ZLEC-00015 | B16: 2022-12-15 | C16: Gdańsk | D16: Zakończone | E16: Bluzy | F16: 110 | G16: 119 | H16: 13090
A17: ZLEC-00016 | B17: 2022-12-15 | C17: Szczecin | D17: W toku | E17: Komplety | F17: 127 | G17: 53 | H17: 6731
A18: ZLEC-00017 | B18: 2022-12-17 | C18: Warszawa | D18: Zakończone | E18: Akcesoria | F18: 32 | G18: 117 | H18: 3744
A19: ZLEC-00018 | B19: 2022-12-22 | C19: Łódź | D19: Zakończone | E19: Sukienki | F19: 51 | G19: 345 | H19: 17595
A20: ZLEC-00019 | B20: 2022-12-22 | C20: Bydgoszcz | D20: W toku | E20: Marynarki | F20: 74 | G20: 290 | H20: 21460
A21: ZLEC-00020 | B21: 2022-12-23 | C21: Łódź | D21: Nierozpoczęty | E21: Koszule | F21: 85 | G21: 125 | H21: 10625
A22: ZLEC-00021 | B22: 2022-12-23 | C22: Warszawa | D22: W toku | E22: T-shirty | F22: 31 | G22: 339 | H22: 10509
A23: ZLEC-00022 | B23: 2022-12-23 | C23: Wrocław | D23: Zakończone | E23: Topy | F23: 42 | G23: 275 | H23: 11550
A24: ZLEC-00023 | B24: 2022-12-23 | C24: Łódź | D24: W toku | E24: Buty | F24: 46 | G24: 452 | H24: 20792
A25: ZLEC-00024 | B25: 2022-12-23 | C25: Gdańsk | D25: W toku | E25: Len | F25: 131 | G25: 415 | H25: 54365
A26: ZLEC-00025 | B26: 2022-12-23 | C26: Szczecin | D26: W toku | E26: Szorty | F26: 40 | G26: 331 | H26: 13240
A27: ZLEC-00026 | B27: 2022-12-27 | C27: Kraków | D27: W toku | E27: Spodnie | F27: 15 | G27: 53 | H27: 795
A28: ZLEC-00027 | B28: 2022-12-28 | C28: Lublin | D28: W toku | E28: Jeansy | F28: 142 | G28: 139 | H28: 19738
A29: ZLEC-00028 | B29: 2022-12-28 | C29: Warszawa | D29: W toku | E29: Spódnice | F29: 41 | G29: 460 | H29: 18860
A30: ZLEC-00029 | B30: 2022-12-28 | C30: Łódź | D30: Zakończone | E30: Kurtki, płaszcze | F30: 600 | G30: 35 | H30: 21000
A31: ZLEC-00030 | B31: 2022-12-29 | C31: Kraków | D31: W toku | E31: Swetry | F31: 169 | G31: 134 | H31: 22646
A32: ZLEC-00031 | B32: 2022-12-29 | C32: Wrocław | D32: Zakończone | E32: Bluzy | F32: 113 | G32: 373 | H32: 42149
A33: ZLEC-00032 | B33: 2022-12-29 | C33: Poznań | D33: Zakończone | E33: Komplety | F33: 80 | G33: 481 | H33: 38480
A34: ZLEC-00033 | B34: 2022-12-29 | C34: Gdańsk | D34: W toku | E34: Akcesoria | F34: 52 | G34: 13 | H34: 676
A35: ZLEC-00034 | B35: 2022-12-30 | C35: Szczecin | D35: W toku | E35: Sukienki | F35: 126 | G35: 206 | H35: 25956
A36: ZLEC-00035 | B36: 2022-12-30 | C36: Bydgoszcz | D36: Zakończone | E36: Marynarki | F36: 58 | G36: 447 | H36: 25926
A37: ZLEC-00036 | B37: 2022-12-30 | C37: Lublin | D37: W toku | E37: Koszule | F37: 113 | G37: 363 | H37: 41019
A38: ZLEC-00037 | B38: 2021-01-02 | C38: Łódź | D38: W toku | E38: T-shirty | F38: 91 | G38: 44 | H38: 4004
A39: ZLEC-00038 | B39: 2021-01-02 | C39: Łódź | D39: Zakończone | E39: Topy | F39: 800 | G39: 458 | H39: 366400
A40: ZLEC-00039 | B40: 2021-01-02 | C40: Bydgoszcz | D40: Nierozpoczęty | E40: Buty | F40: 165 | G40: 28 | H40: 4620
A41: ZLEC-00040 | B41: 2021-01-02 | C41: Wrocław | D41: W toku | E41: Len | F41: 189 | G41: 184 | H41: 34776
A42: ZLEC-00041 | B42: 2021-01-02 | C42: Poznań | D42: W toku | E42: Szorty | F42: 117 | G42: 434 | H42: 50778
A43: ZLEC-00042 | B43: 2021-01-02 | C43: Gdańsk | D43: Nierozpoczęty | E43: Spodnie | F43: 128 | G43: 466 | H43: 59648
A44: ZLEC-00043 | B44: 2021-01-02 | C44: Szczecin | D44: W toku | E44: Jeansy | F44: 165 | G44: 311 | H44: 51315
A45: ZLEC-00044 | B45: 2021-01-03 | C45: Warszawa | D45: W toku | E45: Spódnice | F45: 183 | G45: 68 | H45: 12444
A46: ZLEC-00045 | B46: 2021-01-03 | C46: Lublin | D46: Nierozpoczęty | E46: Kurtki, płaszcze | F46: 58 | G46: 248 | H46: 14384
A47: ZLEC-00046 | B47: 2021-01-03 | C47: Bydgoszcz | D47: W toku | E47: Swetry | F47: 195 | G47: 482 | H47: 93990
A48: ZLEC-00047 | B48: 2021-01-03 | C48: Łódź | D48: W toku | E48: Bluzy | F48: 112 | G48: 268 | H48: 30016
A49: ZLEC-00048 | B49: 2021-01-03 | C49: Warszawa | D49: Nierozpoczęty | E49: Komplety | F49: 187 | G49: 381 | H49: 71247
A50: ZLEC-00049 | B50: 2021-01-03 | C50: Wrocław | D50: W toku | E50: Akcesoria | F50: 83 | G50: 125 | H50: 10375
A51: ZLEC-00050 | B51: 2021-01-03 | C51: Poznań | D51: W toku | E51: Sukienki | F51: 34 | G51: 440 | H51: 14960
A52: ZLEC-00051 | B52: 2021-01-03 | C52: Gdańsk | D52: W toku | E52: Marynarki | F52: 129 | G52: 326 | H52: 42054
A53: ZLEC-00052 | B53: 2021-01-03 | C53: Łódź | D53: W toku | E53: Koszule | F53: 70 | G53: 64 | H53: 4480
A54: ZLEC-00053 | B54: 2021-01-03 | C54: Kraków | D54: Zakończone | E54: T-shirty | F54: 179 | G54: 444 | H54: 79476
A55: ZLEC-00054 | B55: 2021-01-03 | C55: Lublin | D55: Zakończone | E55: Topy | F55: 66 | G55: 497 | H55: 32802
A56: ZLEC-00055 | B56: 2021-01-03 | C56: Warszawa | D56: W toku | E56: Buty | F56: 27 | G56: 227 | H56: 6129
A57: ZLEC-00056 | B57: 2021-01-03 | C57: Łódź | D57: W toku | E57: Len | F57: 115 | G57: 380 | H57: 43700
A58: ZLEC-00057 | B58: 2021-01-03 | C58: Kraków | D58: Zakończone | E58: Szorty | F58: 103 | G58: 110 | H58: 11330
A59: ZLEC-00058 | B59: 2021-01-03 | C59: Wrocław | D59: Zakończone | E59: Spodnie | F59: 150 | G59: 201 | H59: 30150
A60: ZLEC-00059 | B60: 2021-01-03 | C60: Poznań | D60: W toku | E60: Jeansy | F60: 87 | G60: 285 | H60: 24795
A61: ZLEC-00060 | B61: 2021-01-03 | C61: Gdańsk | D61: Zakończone | E61: Spódnice | F61: 17 | G61: 180 | H61: 3060
A62: ZLEC-00061 | B62: 2021-01-04 | C62: Łódź | D62: Zakończone | E62: Kurtki, płaszcze | F62: 149 | G62: 14 | H62: 2086
A63: ZLEC-00062 | B63: 2021-01-04 | C63: Bydgoszcz | D63: Nierozpoczęty | E63: Swetry | F63: 178 | G63: 477 | H63: 84906
A64: ZLEC-00063 | B64: 2021-01-04 | C64: Lublin | D64: Zakończone | E64: Bluzy | F64: 32 | G64: 196 | H64: 6272
A65: ZLEC-00064 | B65: 2021-01-04 | C65: Kraków | D65: W toku | E65: Komplety | F65: 90 | G65: 169 | H65: 15210
A66: ZLEC-00065 | B66: 2021-01-04 | C66: Łódź | D66: Zakończone | E66: Akcesoria | F66: 134 | G66: 69 | H66: 9246
A67: ZLEC-00066 | B67: 2021-01-04 | C67: Bydgoszcz | D67: Nierozpoczęty | E67: Sukienki | F67: 18 | G67: 344 | H67: =F67*G67 -> 6192
A68: ZLEC-00067 | B68: 2021-01-04 | C68: Wrocław | D68: Nierozpoczęty | E68: Marynarki | F68: 22 | G68: 355 | H68: 7810
A69: ZLEC-00068 | B69: 2021-01-04 | C69: Poznań | D69: W toku | E69: Koszule | F69: 115 | G69: 75 | H69: 8625
A70: ZLEC-00069 | B70: 2021-01-04 | C70: Gdańsk | D70: W toku | E70: T-shirty | F70: 116 | G70: 457 | H70: 53012
A71: ZLEC-00070 | B71: 2021-01-04 | C71: Szczecin | D71: Zakończone | E71: Topy | F71: 110 | G71: 246 | H71: 27060
A72: ZLEC-00071 | B72: 2021-01-04 | C72: Warszawa | D72: Nierozpoczęty | E72: Buty | F72: 54 | G72: 135 | H72: 7290
A73: ZLEC-00072 | B73: 2021-01-04 | C73: Lublin | D73: W toku | E73: Len | F73: 194 | G73: 413 | H73: 80122
A74: ZLEC-00073 | B74: 2021-01-05 | C74: Bydgoszcz | D74: W toku | E74: Szorty | F74: 12 | G74: 32 | H74: 384
A75: ZLEC-00074 | B75: 2021-01-05 | C75: Łódź | D75: W toku | E75: Spodnie | F75: 55 | G75: 390 | H75: 21450
A76: ZLEC-00075 | B76: 2021-01-05 | C76: Warszawa | D76: Zakończone | E76: Jeansy | F76: 61 | G76: 69 | H76: 4209
A77: ZLEC-00076 | B77: 2021-01-05 | C77: Wrocław | D77: W toku | E77: Spódnice | F77: 166 | G77: 258 | H77: 42828
A78: ZLEC-00077 | B78: 2021-01-05 | C78: Poznań | D78: Zakończone | E78: Kurtki, płaszcze | F78: 103 | G78: 312 | H78: 32136
A79: ZLEC-00078 | B79: 2021-01-05 | C79: Gdańsk | D79: Zakończone | E79: Swetry | F79: 100 | G79: 385 | H79: 38500
A80: ZLEC-00079 | B80: 2021-01-05 | C80: Szczecin | D80: W toku | E80: Bluzy | F80: 40 | G80: 145 | H80: 5800
A81: ZLEC-00080 | B81: 2021-01-05 | C81: Kraków | D81: W toku | E81: Komplety | F81: 26 | G81: 466 | H81: 12116
A82: ZLEC-00081 | B82: 2021-01-05 | C82: Lublin | D82: W toku | E82: Akcesoria | F82: 128 | G82: 63 | H82: 8064
A83: ZLEC-00082 | B83: 2021-01-05 | C83: Warszawa | D83: W toku | E83: Sukienki | F83: 129 | G83: 232 | H83: 29928
A84: ZLEC-00083 | B84: 2021-01-05 | C84: Łódź | D84: W toku | E84: Marynarki | F84: 117 | G84: 150 | H84: 17550
A85: ZLEC-00084 | B85: 2021-01-05 | C85: Kraków | D85: Nierozpoczęty | E85: Koszule | F85: 167 | G85: 271 | H85: 45257
A86: ZLEC-00085 | B86: 2021-01-05 | C86: Łódź | D86: W toku | E86: T-shirty | F86: 76 | G86: 355 | H86: 26980
A87: ZLEC-00086 | B87: 2021-01-05 | C87: Poznań | D87: W toku | E87: Topy | F87: 62 | G87: 309 | H87: 19158
A88: ZLEC-00087 | B88: 2021-01-05 | C88: Łódź | D88: W toku | E88: Buty | F88: 21 | G88: 421 | H88: 8841
A89: ZLEC-00088 | B89: 2021-01-05 | C89: Szczecin | D89: W toku | E89: Len | F89: 89 | G89: 290 | H89: 25810
A90: ZLEC-00089 | B90: 2021-01-05 | C90: Bydgoszcz | D90: Zakończone | E90: Szorty | F90: 137 | G90: 249 | H90: 34113
A91: ZLEC-00090 | B91: 2021-01-05 | C91: Lublin | D91: W toku | E91: Spodnie | F91: 109 | G91: 291 | H91: 31719
A92: ZLEC-00091 | B92: 2021-01-09 | C92: Kraków | D92: Zakończone | E92: Jeansy | F92: 133 | G92: 489 | H92: 65037
A93: ZLEC-00092 | B93: 2021-01-09 | C93: Łódź | D93: W toku | E93: Spódnice | F93: 56 | G93: 149 | H93: 8344
A94: ZLEC-00093 | B94: 2021-01-09 | C94: Bydgoszcz | D94: Zakończone | E94: Kurtki, płaszcze | F94: 120 | G94: 29 | H94: 3480
A95: ZLEC-00094 | B95: 2021-01-09 | C95: Łódź | D95: Zakończone | E95: Swetry | F95: 540 | G95: 395 | H95: 213300
A96: ZLEC-00095 | B96: 2021-01-09 | C96: Poznań | D96: Zakończone | E96: Bluzy | F96: 139 | G96: 220 | H96: 30580
A97: ZLEC-00096 | B97: 2021-01-09 | C97: Gdańsk | D97: Zakończone | E97: Komplety | F97: 130 | G97: 84 | H97: 10920
A98: ZLEC-00097 | B98: 2021-01-09 | C98: Łódź | D98: W toku | E98: Akcesoria | F98: 89 | G98: 488 | H98: 43432
A99: ZLEC-00098 | B99: 2021-01-09 | C99: Łódź | D99: Nierozpoczęty | E99: Sukienki | F99: 128 | G99: 273 | H99: 34944
A100: ZLEC-00099 | B100: 2021-01-09 | C100: Lublin | D100: Nierozpoczęty | E100: Marynarki | F100: 94 | G100: 46 | H100: 4324
A101: ZLEC-00100 | B101: 2021-01-09 | C101: Bydgoszcz | D101: Zakończone | E101: Koszule | F101: 47 | G101: 452 | H101: 21244
A102: ZLEC-00101 | B102: 2021-01-09 | C102: Łódź | D102: W toku | E102: T-shirty | F102: 141 | G102: 431 | H102: 60771
A103: ZLEC-00102 | B103: 2021-01-09 | C103: Warszawa | D103: W toku | E103: Topy | F103: 96 | G103: 374 | H103: 35904
A104: ZLEC-00103 | B104: 2021-01-09 | C104: Wrocław | D104: Zakończone | E104: Buty | F104: 48 | G104: 256 | H104: 12288
A105: ZLEC-00104 | B105: 2021-01-09 | C105: Poznań | D105: W toku | E105: Len | F105: 64 | G105: 352 | H105: 22528
A106: ZLEC-00105 | B106: 2021-01-09 | C106: Gdańsk | D106: W toku | E106: Szorty | F106: 84 | G106: 300 | H106: 25200
A107: ZLEC-00106 | B107: 2021-01-09 | C107: Łódź | D107: Zakończone | E107: Spodnie | F107: 149 | G107: 437 | H107: 65113
A108: ZLEC-00107 | B108: 2021-01-09 | C108: Kraków | D108: W toku | E108: Jeansy | F108: 127 | G108: 102 | H108: 12954
A109: ZLEC-00108 | B109: 2021-01-09 | C109: Lublin | D109: Zakończone | E109: Spódnice | F109: 84 | G109: 250 | H109: 21000
A110: ZLEC-00109 | B110: 2021-01-09 | C110: Warszawa | D110: Zakończone | E110: Kurtki, płaszcze | F110: 51 | G110: 423 | H110: 21573
A111: ZLEC-00110 | B111: 2021-01-09 | C111: Łódź | D111: W toku | E111: Swetry | F111: 59 | G111: 379 | H111: 22361
A112: ZLEC-00111 | B112: 2021-01-09 | C112: Kraków | D112: Zakończone | E112: Bluzy | F112: 198 | G112: 278 | H112: 55044
A113: ZLEC-00112 | B113: 2021-01-09 | C113: Wrocław | D113: W toku | E113: Komplety | F113: 18 | G113: 173 | H113: 3114
A114: ZLEC-00113 | B114: 2021-01-09 | C114: Poznań | D114: Zakończone | E114: Akcesoria | F114: 121 | G114: 410 | H114: 49610
A115: ZLEC-00114 | B115: 2021-01-09 | C115: Gdańsk | D115: W toku | E115: Sukienki | F115: 150 | G115: 41 | H115: 6150
A116: ZLEC-00115 | B116: 2021-01-09 | C116: Łódź | D116: W toku | E116: Marynarki | F116: 160 | G116: 261 | H116: 41760
A117: ZLEC-00116 | B117: 2021-01-09 | C117: Bydgoszcz | D117: Nierozpoczęty | E117: Koszule | F117: 97 | G117: 378 | H117: 36666
A118: ZLEC-00117 | B118: 2021-01-09 | C118: Lublin | D118: W toku | E118: T-shirty | F118: 39 | G118: 452 | H118: 17628
A119: ZLEC-00118 | B119: 2021-01-10 | C119: Kraków | D119: Zakończone | E119: Topy | F119: 27 | G119: 300 | H119: 8100
A120: ZLEC-00119 | B120: 2021-01-10 | C120: Łódź | D120: W toku | E120: Buty | F120: 24 | G120: 274 | H120: 6576
A121: ZLEC-00120 | B121: 2021-01-10 | C121: Bydgoszcz | D121: W toku | E121: Len | F121: 150 | G121: 111 | H121: 16650
A122: ZLEC-00121 | B122: 2021-01-10 | C122: Wrocław | D122: W toku | E122: Szorty | F122: 23 | G122: 261 | H122: 6003
A123: ZLEC-00122 | B123: 2021-01-10 | C123: Poznań | D123: Zakończone | E123: Spodnie | F123: 95 | G123: 105 | H123: 9975
A124: ZLEC-00123 | B124: 2021-01-10 | C124: Gdańsk | D124: Nierozpoczęty | E124: Jeansy | F124: 26 | G124: 442 | H124: 11492
A125: ZLEC-00124 | B125: 2021-01-10 | C125: Łódź | D125: W toku | E125: Spódnice | F125: 37 | G125: 338 | H125: 12506
A126: ZLEC-00125 | B126: 2021-01-10 | C126: Warszawa | D126: Zakończone | E126: Kurtki, płaszcze | F126: 11 | G126: 443 | H126: 4873
A127: ZLEC-00126 | B127: 2021-01-10 | C127: Lublin | D127: Nierozpoczęty | E127: Swetry | F127: 180 | G127: 128 | H127: 23040
A128: ZLEC-00127 | B128: 2021-01-10 | C128: Bydgoszcz | D128: W toku | E128: Bluzy | F128: 138 | G128: 94 | H128: 12972
A129: ZLEC-00128 | B129: 2021-01-10 | C129: Łódź | D129: W toku | E129: Komplety | F129: 17 | G129: 388 | H129: 6596
A130: ZLEC-00129 | B130: 2021-01-10 | C130: Warszawa | D130: W toku | E130: Akcesoria | F130: 90 | G130: 333 | H130: 29970
A131: ZLEC-00130 | B131: 2021-01-10 | C131: Wrocław | D131: Zakończone | E131: Sukienki | F131: 11 | G131: 454 | H131: =F131*G131 -> 4994
A132: ZLEC-00131 | B132: 2021-01-10 | C132: Poznań | D132: Nierozpoczęty | E132: Marynarki | F132: 50 | G132: 484 | H132: 24200
A133: ZLEC-00132 | B133: 2021-01-10 | C133: Gdańsk | D133: W toku | E133: Koszule | F133: 153 | G133: 137 | H133: 20961
A134: ZLEC-00133 | B134: 2021-01-10 | C134: Łódź | D134: Nierozpoczęty | E134: T-shirty | F134: 73 | G134: 358 | H134: 26134
A135: ZLEC-00134 | B135: 2021-01-10 | C135: Kraków | D135: W toku | E135: Topy | F135: 62 | G135: 449 | H135: 27838
A136: ZLEC-00135 | B136: 2021-01-10 | C136: Lublin | D136: W toku | E136: Buty | F136: 163 | G136: 285 | H136: 46455
A137: ZLEC-00136 | B137: 2021-01-10 | C137: Warszawa | D137: Zakończone | E137: Len | F137: 110 | G137: 104 | H137: 11440
A138: ZLEC-00137 | B138: 2021-01-10 | C138: Łódź | D138: Nierozpoczęty | E138: Szorty | F138: 98 | G138: 241 | H138: 23618
A139: ZLEC-00138 | B139: 2021-01-10 | C139: Kraków | D139: W toku | E139: Spodnie | F139: 148 | G139: 448 | H139: 66304
A140: ZLEC-00139 | B140: 2021-01-10 | C140: Wrocław | D140: W toku | E140: Jeansy | F140: 147 | G140: 125 | H140: 18375
A141: ZLEC-00140 | B141: 2021-01-10 | C141: Poznań | D141: Nierozpoczęty | E141: Spódnice | F141: 116 | G141: 204 | H141: 23664
A142: ZLEC-00141 | B142: 2021-01-10 | C142: Gdańsk | D142: W toku | E142: Kurtki, płaszcze | F142: 78 | G142: 52 | H142: 4056
A143: ZLEC-00142 | B143: 2021-01-10 | C143: Łódź | D143: Nierozpoczęty | E143: Swetry | F143: 198 | G143: 28 | H143: 5544
A144: ZLEC-00143 | B144: 2021-01-10 | C144: Bydgoszcz | D144: Nierozpoczęty | E144: Bluzy | F144: 133 | G144: 286 | H144: 38038
A145: ZLEC-00144 | B145: 2021-01-11 | C145: Lublin | D145: W toku | E145: Komplety | F145: 198 | G145: 328 | H145: 64944
A146: ZLEC-00145 | B146: 2021-01-11 | C146: Kraków | D146: W toku | E146: Akcesoria | F146: 157 | G146: 305 | H146: 47885
A147: ZLEC-00146 | B147: 2021-01-11 | C147: Łódź | D147: Nierozpoczęty | E147: Sukienki | F147: 176 | G147: 447 | H147: 78672
A148: ZLEC-00147 | B148: 2021-01-11 | C148: Bydgoszcz | D148: W toku | E148: Marynarki | F148: 25 | G148: 389 | H148: 9725
A149: ZLEC-00148 | B149: 2021-01-11 | C149: Wrocław | D149: W toku | E149: Koszule | F149: 79 | G149: 241 | H149: 19039
A150: ZLEC-00149 | B150: 2021-01-11 | C150: Poznań | D150: W toku | E150: T-shirty | F150: 29 | G150: 369 | H150: 10701
A151: ZLEC-00150 | B151: 2021-01-11 | C151: Gdańsk | D151: Zakończone | E151: Topy | F151: 140 | G151: 417 | H151: 58380
A152: ZLEC-00151 | B152: 2021-01-11 | C152: Łódź | D152: Nierozpoczęty | E152: Buty | F152: 191 | G152: 264 | H152: 50424
A153: ZLEC-00152 | B153: 2021-01-11 | C153: Warszawa | D153: W toku | E153: Len | F153: 30 | G153: 486 | H153: 14580
A154: ZLEC-00153 | B154: 2021-01-11 | C154: Lublin | D154: Zakończone | E154: Szorty | F154: 34 | G154: 164 | H154: 5576
A155: ZLEC-00154 | B155: 2021-01-11 | C155: Bydgoszcz | D155: Zakończone | E155: Spodnie | F155: 56 | G155: 99 | H155: 5544
A156: ZLEC-00155 | B156: 2021-01-11 | C156: Łódź | D156: Nierozpoczęty | E156: Jeansy | F156: 112 | G156: 51 | H156: 5712
A157: ZLEC-00156 | B157: 2021-01-11 | C157: Warszawa | D157: W toku | E157: Spódnice | F157: 22 | G157: 318 | H157: 6996
A158: ZLEC-00157 | B158: 2021-01-11 | C158: Wrocław | D158: Nierozpoczęty | E158: Kurtki, płaszcze | F158: 164 | G158: 249 | H158: 40836
A159: ZLEC-00158 | B159: 2021-01-11 | C159: Poznań | D159: W toku | E159: Swetry | F159: 35 | G159: 445 | H159: 15575
A160: ZLEC-00159 | B160: 2021-01-11 | C160: Gdańsk | D160: Zakończone | E160: Bluzy | F160: 11 | G160: 84 | H160: 924
A161: ZLEC-00160 | B161: 2021-01-11 | C161: Łódź | D161: W toku | E161: Komplety | F161: 130 | G161: 220 | H161: 28600
A162: ZLEC-00161 | B162: 2021-01-11 | C162: Kraków | D162: Zakończone | E162: Akcesoria | F162: 32 | G162: 78 | H162: 2496
A163: ZLEC-00162 | B163: 2021-01-11 | C163: Lublin | D163: Zakończone | E163: Sukienki | F163: 17 | G163: 17 | H163: 289
A164: ZLEC-00163 | B164: 2021-01-11 | C164: Warszawa | D164: Zakończone | E164: Marynarki | F164: 173 | G164: 308 | H164: 53284
A165: ZLEC-00164 | B165: 2021-01-11 | C165: Łódź | D165: Zakończone | E165: Koszule | F165: 88 | G165: 390 | H165: 34320
A166: ZLEC-00165 | B166: 2021-01-11 | C166: Kraków | D166: Nierozpoczęty | E166: T-shirty | F166: 151 | G166: 478 | H166: 72178
A167: ZLEC-00166 | B167: 2021-01-11 | C167: Wrocław | D167: Zakończone | E167: Topy | F167: 151 | G167: 33 | H167: 4983
A168: ZLEC-00167 | B168: 2021-01-11 | C168: Poznań | D168: Zakończone | E168: Buty | F168: 84 | G168: 399 | H168: 33516
A169: ZLEC-00168 | B169: 2021-01-11 | C169: Gdańsk | D169: W toku | E169: Len | F169: 175 | G169: 225 | H169: 39375
A170: ZLEC-00169 | B170: 2021-01-11 | C170: Łódź | D170: W toku | E170: Szorty | F170: 163 | G170: 72 | H170: 11736
A171: ZLEC-00170 | B171: 2021-01-11 | C171: Bydgoszcz | D171: Zakończone | E171: Spodnie | F171: 71 | G171: 313 | H171: 22223
A172: ZLEC-00171 | B172: 2021-01-12 | C172: Lublin | D172: Nierozpoczęty | E172: Jeansy | F172: 180 | G172: 97 | H172: 17460
A173: ZLEC-00172 | B173: 2021-01-12 | C173: Kraków | D173: Nierozpoczęty | E173: Spódnice | F173: 92 | G173: 321 | H173: 29532
A174: ZLEC-00173 | B174: 2021-01-12 | C174: Łódź | D174: W toku | E174: Kurtki, płaszcze | F174: 134 | G174: 321 | H174: 43014
A175: ZLEC-00174 | B175: 2021-01-12 | C175: Bydgoszcz | D175: Zakończone | E175: Swetry | F175: 170 | G175: 13 | H175: 2210
A176: ZLEC-00175 | B176: 2021-01-12 | C176: Wrocław | D176: Zakończone | E176: Bluzy | F176: 200 | G176: 67 | H176: 13400
A177: ZLEC-00176 | B177: 2021-01-12 | C177: Poznań | D177: Zakończone | E177: Komplety | F177: 36 | G177: 174 | H177: 6264
A178: ZLEC-00177 | B178: 2021-01-12 | C178: Gdańsk | D178: W toku | E178: Akcesoria | F178: 145 | G178: 374 | H178: 54230
A179: ZLEC-00178 | B179: 2021-01-12 | C179: Łódź | D179: Zakończone | E179: Sukienki | F179: 11 | G179: 76 | H179: 836
A180: ZLEC-00179 | B180: 2021-01-12 | C180: Warszawa | D180: W toku | E180: Marynarki | F180: 180 | G180: 296 | H180: 53280
A181: ZLEC-00180 | B181: 2021-01-12 | C181: Lublin | D181: W toku | E181: Koszule | F181: 177 | G181: 170 | H181: 30090
A182: ZLEC-00181 | B182: 2021-01-12 | C182: Bydgoszcz | D182: W toku | E182: T-shirty | F182: 189 | G182: 70 | H182: 13230
A183: ZLEC-00182 | B183: 2021-01-12 | C183: Łódź | D183: Nierozpoczęty | E183: Topy | F183: 176 | G183: 166 | H183: 29216
A184: ZLEC-00183 | B184: 2021-01-12 | C184: Warszawa | D184: Zakończone | E184: Buty | F184: 158 | G184: 408 | H184: 64464
A185: ZLEC-00184 | B185: 2021-01-12 | C185: Wrocław | D185: W toku | E185: Len | F185: 52 | G185: 252 | H185: 13104
A186: ZLEC-00185 | B186: 2021-01-12 | C186: Poznań | D186: Zakończone | E186: Szorty | F186: 180 | G186: 126 | H186: 22680
A187: ZLEC-00186 | B187: 2021-01-12 | C187: Gdańsk | D187: Zakończone | E187: Spodnie | F187: 150 | G187: 330 | H187: 49500
A188: ZLEC-00187 | B188: 2021-01-12 | C188: Łódź | D188: W toku | E188: Jeansy | F188: 197 | G188: 358 | H188: 70526
A189: ZLEC-00188 | B189: 2021-01-12 | C189: Kraków | D189: W toku | E189: Spódnice | F189: 18 | G189: 435 | H189: 7830
A190: ZLEC-00189 | B190: 2021-01-12 | C190: Lublin | D190: Nierozpoczęty | E190: Kurtki, płaszcze | F190: 47 | G190: 125 | H190: 5875
A191: ZLEC-00190 | B191: 2021-01-12 | C191: Warszawa | D191: Nierozpoczęty | E191: Swetry | F191: 169 | G191: 250 | H191: 42250
A192: ZLEC-00191 | B192: 2021-01-12 | C192: Łódź | D192: Zakończone | E192: Bluzy | F192: 81 | G192: 273 | H192: 22113
A193: ZLEC-00192 | B193: 2021-01-12 | C193: Kraków | D193: Zakończone | E193: Komplety | F193: 52 | G193: 168 | H193: 8736
A194: ZLEC-00193 | B194: 2021-01-12 | C194: Wrocław | D194: Nierozpoczęty | E194: Akcesoria | F194: 138 | G194: 451 | H194: 62238
A195: ZLEC-00194 | B195: 2021-01-12 | C195: Poznań | D195: Zakończone | E195: Sukienki | F195: 32 | G195: 205 | H195: =F195*G195 -> 6560
A196: ZLEC-00195 | B196: 2021-01-12 | C196: Gdańsk | D196: Zakończone | E196: Marynarki | F196: 62 | G196: 322 | H196: 19964
A197: ZLEC-00196 | B197: 2021-01-13 | C197: Łódź | D197: Nierozpoczęty | E197: Koszule | F197: 88 | G197: 433 | H197: 38104
A198: ZLEC-00197 | B198: 2021-01-13 | C198: Bydgoszcz | D198: Zakończone | E198: T-shirty | F198: 77 | G198: 34 | H198: 2618
A199: ZLEC-00198 | B199: 2021-01-13 | C199: Lublin | D199: Nierozpoczęty | E199: Topy | F199: 66 | G199: 79 | H199: 5214
A200: ZLEC-00199 | B200: 2021-01-13 | C200: Kraków | D200: Zakończone | E200: Buty | F200: 83 | G200: 176 | H200: 14608
... 5757 more rows

Sheet Tabela przestawna
A3: Etykiety wierszy | B3: Suma z Wartość | C3: Udział % w zysku | D3: Różnica wg Gdańska | E3: Suma z Premia
A4: Łódź | B4: 37530503 | C4: 0.2309909406 | D4: 20676516 | E4: 1876525.15
A5: Bydgoszcz | B5: 18551818 | C5: 0.11418184 | D5: 1697831 | E5: 927590.9
A6: Wrocław | B6: 18465655 | C6: 0.1136515281 | D6: 1611668 | E6: 923282.75
A7: Warszawa | B7: 18028390 | C7: 0.1109602704 | D7: 1174403 | E7: 901419.5
A8: Lublin | B8: 17925389 | C8: 0.1103263248 | D8: 1071402 | E8: 896269.45
A9: Kraków | B9: 17643368 | C9: 0.1085905555 | D9: 789381 | E9: 882168.4
A10: Poznań | B10: 17321060 | C10: 0.1066068297 | D10: 467073 | E10: 866053
A11: Gdańsk | B11: 16853987 | C11: 0.1037321112 | E11: 842699.35
A12: Szczecin | B12: 155912 | C12: 0.0009595997028 | D12: -16698075 | E12: 7795.6
A13: Suma końcowa | B13: 162476082 | C13: 1 | E13: 8123804.1

Sheet Wartość per kategoria
A3: Etykiety wierszy | B3: Suma z Wartość zamówienia
A4: Szorty | B4: 3933072
A5: Len | B5: 3881496
A6: Sukienki | B6: 3716448
A7: Marynarki | B7: 3701049
A8: Topy | B8: 3607672
A9: Spodnie | B9: 3541614
A10: Buty | B10: 3541280
A11: T-shirty | B11: 3485492
A12: Swetry | B12: 3432200
A13: Koszule | B13: 3431585
A14: Bluzy | B14: 3357480
A15: Komplety | B15: 3215281
A16: Jeansy | B16: 3204998
A17: Spódnice | B17: 3196772
A18: Akcesoria | B18: 3129058
A19: Kurtki, płaszcze | B19: 2929187
A20: Suma końcowa | B20: 55304684

Sheet Stan zamówień
A3: Etykiety wierszy | B3: Suma z Wartość zamówienia
A4: Nierozpoczęty | B4: 0.1516663218
A5: W toku | B5: 0.4902027467
A6: Zakończone | B6: 0.3581309316
A7: Suma końcowa | B7: 1

Sheet Dashboard

Sheet 30
H21: And2.pl | L21: And2.pl

Sheet PODSUMOWANIE ZAAWANSOWANY

Sheet CO DALEJ

Sheet DARMOWA WIEDZA
B1: Darmowa wiedza:
B3: 1 | C3: Skróty klawiaturowe Excel | D3: https://and2.pl/top-10-zestawow-skrotow-klawiaturowych-z-excela
B4: 2 | C4: Checkboxy | D4: https://and2.pl/jak-prawidlowo-uzywac-pola-wyboru-checkbox-w-excelu/
B5: 3 | C5: Lista rozwijana na bazie funkcji 365 | D5: https://and2.pl/dynamicznie-rozszerzana-przeszukiwalna-lista-rozwijana-na-bazie-funkcji-excel-365
B6: 4 | C6: Tabela | D6: https://and2.pl/narzedzie-tabela-w-excelu-podstawa-przechowywania-danych
